Workbook

Sheet Paramétrage
B2: Paramètres du projet
C5: Nom : | D5: *Compléter* | E5: Client
C6: Prénom : | D6: *Compléter*
C7: Mail : | D7: *Compléter*
C8: Téléphone : | D8: *Compléter*
C10: Rue - N° - Bte : | D10: *Compléter* | E10: Projet
C11: Code postal : | D11: *Compléter*
C12: Ville : | D12: =IFERROR(IF(VLOOKUP(D11,Tableau4[],6,FALSE)="Région wallonne",VLOOKUP(D11,Tableau4[],3,FALSE),"Commune hors région wallonne FR"),"*Compléter*") -> *Compléter*
C14: Numéro projet : | D14: *Compléter* | E14: Reno + | I14: Exemples de remarques à communiquer :
C15: Date de visite du collaborateur : | D15: *Compléter* | I15: Rappel : Demande d'évacuer les éléments encombrant les zones de travail et/ou de passage.
C16: Remarque à faire apparaître dans le devis : | D16: *Compléter* | E16: *Compléter* | F16: *Compléter* | I16: Rappel : Avoir réglé le(s) problème(s) d'étanchéité de toiture(s) et/ou d'humidité des combles au préalable !
D17: *Compléter* | E17: *Compléter* | F17: *Compléter* | I17: Rappel : Nous n'intervenons pas sur l'agrandissement ou l'ouverture structurelle pour l'installation de nouvelles fenêtres de toit !
I18: Selon la méthode d'isolation et les matériaux choisis, il est nécessaire d'assurer la ventilation des combles.
C19: Déterminer votre régime de primes associé aux revenus du/des demandeur(s) : | I19: Rappel : Nous n'intervenons pas sur la sous-toiture et l'étanchéité de la toiture en place.
C20: Somme des revenus annuels imposables globaux du ménage → | F20: 70000 | I20: Note : installer calage ou quincaillerie à clé sur la/les fenêtre(s) ne respectant pas les critères de salubrité --> éligibilté SWCS (taux de financement 0%)
C21: Nombre d'enfants à charge (existant, à naître, orphelin ou en hébergement égalitaire) → | F21: 2 | I21: Note : la demande de prime "audit" à faire auprès de la commune de Braine L'Alleud est sous la responsabilité du client.
C22: Nombre de personnes présentant un handicap et faisant partie du ménage → | F22: 0
C23: Nombre de parents-cohabitants de plus de 60 ans → | F23: 0
C24: Revenu de référence du ménage → | E24: =F20-F21*5000-F22*5000-F23*5000 -> 60000
C25: Régime de majoration des primes du demandeur → | E25: =IF(E24<='Primes - infos'!K9,'Primes - infos'!I9,IF(E24<='Primes - infos'!K10,'Primes - infos'!I10,IF(E24<='Primes - infos'!K11,'Primes - infos'!I11,IF(E24<='Primes - infos'!K12,'Primes - infos'!I12,IF(E24>'Primes - infos'!J13,'Primes - infos'!I13,"erreur"))))) -> R4 | F25: =VLOOKUP($E$25,'Primes - infos'!I9:L13,4) -> 2
C27: Apport client disponible → | D27: 0
C29: Appel à un auditeur Logement ? → | D29: oui
C31: Appel à la SWCS (si éligible) ? → | D31: oui
C33: Qui va réaliser les travaux du projet ? → | D33: un entrepreneur
C35: Taux de risque à appliquer dans l'offre → | D35: 0.15
C37: Taux de TVA à appliquer dans le devis → | D37: 0.06
C39: Conformité électrique ? → | D39: non
C41: Conformité gaz ? → | D41: Pas de gaz dans le logement

Sheet Check-list - Constatations
B3: N° | C3: Sujet | D3: Constatations / résultats / commentaires | E3: Où ? | F3: Secteurs | G3: Mesurable/ détectable en 3D | H3: à mesurer/ tester à la main | I3: Statut ?
B4: 00 | C4: INSTALLATION & GENERALITES DE CHANTIER | E4: titres | F4: 00 - Installation & généralités | G4: =IF(LEN(Table119[[#This Row],[N°]])=2,"titre",IF(Table119[[#This Row],[Sujet]]="","non","non")) -> titre | H4: =IF(LEN(Table119[[#This Row],[N°]])=2,"titre",IF(Table119[[#This Row],[Sujet]]="","non","non")) -> titre | I4: =IF(LEN(Table119[[#This Row],[N°]])=2,"",IF(Table119[[#This Row],[Sujet]]="","","?")) -> 
B5: 00.01 | C5: Accès voirie/routes au bâtiment (passage possible ? voiture / camionnette / camions / …) | E5: extérieur | F5: =$F$4 -> 00 - Installation & généralités | G5: oui | H5: =IF(LEN(Table119[[#This Row],[N°]])=2,"titre",IF(Table119[[#This Row],[Sujet]]="","non","non")) -> non | I5: =IF(LEN(Table119[[#This Row],[N°]])=2,"",IF(Table119[[#This Row],[Sujet]]="","","?")) -> ?
B6: 00.02 | C6: Accès, nombre et disponibilité de parking(s) (à charge du client) | E6: extérieur | F6: =$F$4 -> 00 - Installation & généralités | G6: oui | H6: =IF(LEN(Table119[[#This Row],[N°]])=2,"titre",IF(Table119[[#This Row],[Sujet]]="","non","non")) -> non | I6: =IF(LEN(Table119[[#This Row],[N°]])=2,"",IF(Table119[[#This Row],[Sujet]]="","","?")) -> ?
B7: 00.03 | C7: Accès jusque porte d'entrée du bâtiment | E7: extérieur | F7: 00 - Installation & généralités | G7: oui | H7: =IF(LEN(Table119[[#This Row],[N°]])=2,"titre",IF(Table119[[#This Row],[Sujet]]="","non","non")) -> non | I7: =IF(LEN(Table119[[#This Row],[N°]])=2,"",IF(Table119[[#This Row],[Sujet]]="","","?")) -> ?
B8: 00.04 | C8: Porte d'entrée du bâtiment ≥ 80*200 cm | D8: dimensions / mesurage | E8: extérieur | F8: 00 - Installation & généralités | G8: oui | H8: non | I8: =IF(LEN(Table119[[#This Row],[N°]])=2,"",IF(Table119[[#This Row],[Sujet]]="","","?")) -> ?
B9: 00.05 | C9: Présence de cables aériens devant le bâtiment ? | E9: extérieur | F9: 00 - Installation & généralités | G9: =IF(LEN(Table119[[#This Row],[N°]])=2,"titre",IF(Table119[[#This Row],[Sujet]]="","non","non")) -> non | H9: oui | I9: =IF(LEN(Table119[[#This Row],[N°]])=2,"",IF(Table119[[#This Row],[Sujet]]="","","?")) -> ?
B10: 00.06 | C10: Difficulté(s) techniques avec maison(s) voisine(s) ? | E10: extérieur | F10: 00 - Installation & généralités | G10: =IF(LEN(Table119[[#This Row],[N°]])=2,"titre",IF(Table119[[#This Row],[Sujet]]="","non","non")) -> non | H10: oui | I10: =IF(LEN(Table119[[#This Row],[N°]])=2,"",IF(Table119[[#This Row],[Sujet]]="","","?")) -> ?
B11: 00.07 | C11: Accès aux caves (ou au vide ventilé) ≥ 60*60 cm | D11: dimensions / mesurage | E11: caves | F11: 00 - Installation & généralités | G11: oui | H11: non | I11: =IF(LEN(Table119[[#This Row],[N°]])=2,"",IF(Table119[[#This Row],[Sujet]]="","","?")) -> ?
B12: 00.08 | C12: Caves ventilées ? | E12: caves | F12: 00 - Installation & généralités | G12: =IF(LEN(Table119[[#This Row],[N°]])=2,"titre",IF(Table119[[#This Row],[Sujet]]="","non","non")) -> non | H12: oui | I12: =IF(LEN(Table119[[#This Row],[N°]])=2,"",IF(Table119[[#This Row],[Sujet]]="","","?")) -> ?
B13: 00.09 | C13: Accès complet jusque local chaufferie ≥ 70*150 cm | D13: dimensions / mesurage | E13: techniques | F13: 00 - Installation & généralités | G13: oui | H13: oui | I13: =IF(LEN(Table119[[#This Row],[N°]])=2,"",IF(Table119[[#This Row],[Sujet]]="","","?")) -> ?
B14: 00.10 | C14: Accès aux combles/grenier ≥ 60*60 cm → dimensions + type (trappe/escalier) → | D14: dimensions / mesurage Ꙭ📏 | E14: combles | F14: 00 - Installation & généralités | G14: =IF(LEN(Table119[[#This Row],[N°]])=2,"titre",IF(Table119[[#This Row],[Sujet]]="","non","non")) -> non | H14: oui | I14: =IF(LEN(Table119[[#This Row],[N°]])=2,"",IF(Table119[[#This Row],[Sujet]]="","","?")) -> ?
B15: 00.11 | C15: Présence de Zone de stockage / déchargement ? → dimensions → | D15: dimensions / mesurage | E15: extérieur | F15: 00 - Installation & généralités | G15: oui | H15: =IF(LEN(Table119[[#This Row],[N°]])=2,"titre",IF(Table119[[#This Row],[Sujet]]="","non","non")) -> non | I15: =IF(LEN(Table119[[#This Row],[N°]])=2,"",IF(Table119[[#This Row],[Sujet]]="","","?")) -> ?
B16: 00.12 | C16: Possibilité d'accèder à la toiture sans échafaudage ? | E16: combles | F16: 00 - Installation & généralités | G16: =IF(LEN(Table119[[#This Row],[N°]])=2,"titre",IF(Table119[[#This Row],[Sujet]]="","non","non")) -> non | H16: oui | I16: =IF(LEN(Table119[[#This Row],[N°]])=2,"",IF(Table119[[#This Row],[Sujet]]="","","?")) -> ?
B17: 00.13 | C17: Présence de gaines techniques → dimensions + encombrement → | D17: dimensions / mesurage | E17: intérieur | F17: 00 - Installation & généralités | G17: oui | H17: =IF(LEN(Table119[[#This Row],[N°]])=2,"titre",IF(Table119[[#This Row],[Sujet]]="","non","non")) -> non | I17: =IF(LEN(Table119[[#This Row],[N°]])=2,"",IF(Table119[[#This Row],[Sujet]]="","","?")) -> ?
B18: 00.14 | C18: Cheminée(s) ? → tubée/étanche + nombre + position + utilisée ? + ramonée ? → | E18: questions | F18: 00 - Installation & généralités | G18: =IF(LEN(Table119[[#This Row],[N°]])=2,"titre",IF(Table119[[#This Row],[Sujet]]="","non","non")) -> non | H18: =IF(LEN(Table119[[#This Row],[N°]])=2,"titre",IF(Table119[[#This Row],[Sujet]]="","non","non")) -> non | I18: =IF(LEN(Table119[[#This Row],[N°]])=2,"",IF(Table119[[#This Row],[Sujet]]="","","?")) -> ?
B19: 00.15 | C19: Encombrement des zones ? (dégagement, évacuation, déménagement, ...) | E19: intérieur | F19: 00 - Installation & généralités | G19: oui | H19: =IF(LEN(Table119[[#This Row],[N°]])=2,"titre",IF(Table119[[#This Row],[Sujet]]="","non","non")) -> non | I19: =IF(LEN(Table119[[#This Row],[N°]])=2,"",IF(Table119[[#This Row],[Sujet]]="","","?")) -> ?
B20: 00.16 | C20: Zones spécifiques à protéger ? (poussière, eau, bruit, odeurs, …) | E20: questions | F20: 00 - Installation & généralités | G20: =IF(LEN(Table119[[#This Row],[N°]])=2,"titre",IF(Table119[[#This Row],[Sujet]]="","non","non")) -> non | H20: =IF(LEN(Table119[[#This Row],[N°]])=2,"titre",IF(Table119[[#This Row],[Sujet]]="","non","non")) -> non | I20: =IF(LEN(Table119[[#This Row],[N°]])=2,"",IF(Table119[[#This Row],[Sujet]]="","","?")) -> ?
B21: 00.17 | C21: Besoin d'échafaudages ? → longueur / hauteur + travaux liés → | D21: dimensions / mesurage | E21: extérieur | F21: 00 - Installation & généralités | G21: oui | H21: =IF(LEN(Table119[[#This Row],[N°]])=2,"titre",IF(Table119[[#This Row],[Sujet]]="","non","non")) -> non | I21: =IF(LEN(Table119[[#This Row],[N°]])=2,"",IF(Table119[[#This Row],[Sujet]]="","","?")) -> ?
B22: 00.18 | C22: Présence d'indésirables ? (rats, souris, insectes, fouine, oiseaux, …) | E22: questions | F22: 00 - Installation & généralités | G22: =IF(LEN(Table119[[#This Row],[N°]])=2,"titre",IF(Table119[[#This Row],[Sujet]]="","non","non")) -> non | H22: =IF(LEN(Table119[[#This Row],[N°]])=2,"titre",IF(Table119[[#This Row],[Sujet]]="","non","non")) -> non | I22: =IF(LEN(Table119[[#This Row],[N°]])=2,"",IF(Table119[[#This Row],[Sujet]]="","","?")) -> ?
B23: 00.19 | C23: Présence de courants/fuites d'air ? → origines ? (test poire à fumée) → | E23: questions | F23: 00 - Installation & généralités | G23: =IF(LEN(Table119[[#This Row],[N°]])=2,"titre",IF(Table119[[#This Row],[Sujet]]="","non","non")) -> non | H23: =IF(LEN(Table119[[#This Row],[N°]])=2,"titre",IF(Table119[[#This Row],[Sujet]]="","non","non")) -> non | I23: =IF(LEN(Table119[[#This Row],[N°]])=2,"",IF(Table119[[#This Row],[Sujet]]="","","?")) -> ?
B24: 00.20 | C24: Obligations sur délais démarrage / durée / fin des travaux ? | E24: questions | F24: 00 - Installation & généralités | G24: =IF(LEN(Table119[[#This Row],[N°]])=2,"titre",IF(Table119[[#This Row],[Sujet]]="","non","non")) -> non | H24: =IF(LEN(Table119[[#This Row],[N°]])=2,"titre",IF(Table119[[#This Row],[Sujet]]="","non","non")) -> non | I24: =IF(LEN(Table119[[#This Row],[N°]])=2,"",IF(Table119[[#This Row],[Sujet]]="","","?")) -> ?
B25: 00.21 | C25: Urbanisme dans les règles ? | E25: questions | F25: 00 - Installation & généralités | G25: =IF(LEN(Table119[[#This Row],[N°]])=2,"titre",IF(Table119[[#This Row],[Sujet]]="","non","non")) -> non | H25: =IF(LEN(Table119[[#This Row],[N°]])=2,"titre",IF(Table119[[#This Row],[Sujet]]="","non","non")) -> non | I25: =IF(LEN(Table119[[#This Row],[N°]])=2,"",IF(Table119[[#This Row],[Sujet]]="","","?")) -> ?
B26: 00.22 | C26: Réglementation locale ? Problèmes de voisinage ? | E26: questions | F26: 00 - Installation & généralités | G26: =IF(LEN(Table119[[#This Row],[N°]])=2,"titre",IF(Table119[[#This Row],[Sujet]]="","non","non")) -> non | H26: =IF(LEN(Table119[[#This Row],[N°]])=2,"titre",IF(Table119[[#This Row],[Sujet]]="","non","non")) -> non | I26: =IF(LEN(Table119[[#This Row],[N°]])=2,"",IF(Table119[[#This Row],[Sujet]]="","","?")) -> ?
B27: 00.23 | C27: Préférences : goûts esthétiques / finitions / matériaux / couleurs ? | E27: questions | F27: 00 - Installation & généralités | G27: =IF(LEN(Table119[[#This Row],[N°]])=2,"titre",IF(Table119[[#This Row],[Sujet]]="","non","non")) -> non | H27: =IF(LEN(Table119[[#This Row],[N°]])=2,"titre",IF(Table119[[#This Row],[Sujet]]="","non","non")) -> non | I27: =IF(LEN(Table119[[#This Row],[N°]])=2,"",IF(Table119[[#This Row],[Sujet]]="","","?")) -> ?
B28: 00.24 | C28: Priorités et impératifs dans le projet de rénovation ? | E28: questions | F28: 00 - Installation & généralités | G28: =IF(LEN(Table119[[#This Row],[N°]])=2,"titre",IF(Table119[[#This Row],[Sujet]]="","non","non")) -> non | H28: =IF(LEN(Table119[[#This Row],[N°]])=2,"titre",IF(Table119[[#This Row],[Sujet]]="","non","non")) -> non | I28: =IF(LEN(Table119[[#This Row],[N°]])=2,"",IF(Table119[[#This Row],[Sujet]]="","","?")) -> ?
B29: 00.25 | C29: Salubrité : logement surpeuplé ? ( appréciation globale, au feeling ! ) | D29: Superficie min. habitable (en m²/occupant) → [ 1p. ≥ 15m² ] _ [ 2p. ≥ 28m² ] _ [ 3p. ≥ 33m² ] Au moins une pièce d'habitation (en m²/occupant) → [ 1p. ≥ 10m² ] _ [ 2p. ≥ 15m² ] Chambres → [ 2p. ≥ 6m² ] _ [ 3p. ≥ 9m² ] La cuisine ne peut pas servir de chambre Le living ne peut pas servir de chambre si présence d'un enfant de + de 6 ans Min. 2 chambres si présence d'un enfant de + de 1an Suffisamment de chambres pour qu'un enfant de ≥ 10ans ne doive pas partager sa chambre avec un enfant de sexe différent Largeur façade rue extérieure ≥ 3,50m ? Largeur façade rue entre murs intérieurs ≥ 2,80m ? Hauteurs sous plafond ≥ 2m ? Largeur des pièces ≥ 2,80m ? | E29: intérieur | F29: 00 - Installation & généralités | G29: =IF(LEN(Table119[[#This Row],[N°]])=2,"titre",IF(Table119[[#This Row],[Sujet]]="","non","non")) -> non | H29: oui | I29: ?
B30: 00.26 | C30: Détecteurs incendie ? → nombre + position + fonctionnel ? → | E30: intérieur | F30: 00 - Installation & généralités | G30: =IF(LEN(Table119[[#This Row],[N°]])=2,"titre",IF(Table119[[#This Row],[Sujet]]="","non","non")) -> non | H30: oui | I30: =IF(LEN(Table119[[#This Row],[N°]])=2,"",IF(Table119[[#This Row],[Sujet]]="","","?")) -> ?
B31: 00.27 | C31: Amiante (ou doute d'amiante) ? | D31: dimensions / mesurage | E31: extérieur | F31: 00 - Installation & généralités | G31: =IF(LEN(Table119[[#This Row],[N°]])=2,"titre",IF(Table119[[#This Row],[Sujet]]="","non","non")) -> non | H31: oui | I31: =IF(LEN(Table119[[#This Row],[N°]])=2,"",IF(Table119[[#This Row],[Sujet]]="","","?")) -> ?
B32: 00.28 | C32: Salubrité : présence de moisissures ? → position + doute sur origine ? → | D32: Si moisissure sur + de 1m² Si moisissure dans pièces "dangereuses pour la santé" (chambre d'enfant) | E32: intérieur | F32: 00 - Installation & généralités | G32: =IF(LEN(Table119[[#This Row],[N°]])=2,"titre",IF(Table119[[#This Row],[Sujet]]="","non","non")) -> non | H32: oui | I32: =IF(LEN(Table119[[#This Row],[N°]])=2,"",IF(Table119[[#This Row],[Sujet]]="","","?")) -> ?
B33: 00.29 | C33: Salubrité / Santé : risque de monoxyde de carbone, d’amiante, et de radon ? | D33: En cas de suspicion, recommander analyse par organisme provincial. | E33: intérieur | F33: 00 - Installation & généralités | G33: =IF(LEN(Table119[[#This Row],[N°]])=2,"titre",IF(Table119[[#This Row],[Sujet]]="","non","non")) -> non | H33: oui | I33: =IF(LEN(Table119[[#This Row],[N°]])=2,"",IF(Table119[[#This Row],[Sujet]]="","","?")) -> ?
B34: 00.30 | C34: Plancher grenier fermé ? (vue sur les gîtes par-dessus ?) | E34: combles | F34: 00 - Installation & généralités | G34: oui | H34: oui | I34: =IF(LEN(Table119[[#This Row],[N°]])=2,"",IF(Table119[[#This Row],[Sujet]]="","","?")) -> ?
B35: 00.31 | C35: Certificat de mise en conformité électricité | E35: document | F35: 00 - Installation & généralités | G35: =IF(LEN(Table119[[#This Row],[N°]])=2,"titre",IF(Table119[[#This Row],[Sujet]]="","non","non")) -> non | H35: =IF(LEN(Table119[[#This Row],[N°]])=2,"titre",IF(Table119[[#This Row],[Sujet]]="","non","non")) -> non | I35: =IF(LEN(Table119[[#This Row],[N°]])=2,"",IF(Table119[[#This Row],[Sujet]]="","","?")) -> ?
B36: 00.32 | C36: Certificat de mise en conformité gaz | E36: document | F36: 00 - Installation & généralités | G36: =IF(LEN(Table119[[#This Row],[N°]])=2,"titre",IF(Table119[[#This Row],[Sujet]]="","non","non")) -> non | H36: =IF(LEN(Table119[[#This Row],[N°]])=2,"titre",IF(Table119[[#This Row],[Sujet]]="","non","non")) -> non | I36: =IF(LEN(Table119[[#This Row],[N°]])=2,"",IF(Table119[[#This Row],[Sujet]]="","","?")) -> ?
B37: 00.33 | C37: Factures des installations de gaz et/ou chaudière gaz existante (pour responsabilité installation gaz) ? | E37: document | F37: 00 - Installation & généralités | G37: =IF(LEN(Table119[[#This Row],[N°]])=2,"titre",IF(Table119[[#This Row],[Sujet]]="","non","non")) -> non | H37: =IF(LEN(Table119[[#This Row],[N°]])=2,"titre",IF(Table119[[#This Row],[Sujet]]="","non","non")) -> non | I37: =IF(LEN(Table119[[#This Row],[N°]])=2,"",IF(Table119[[#This Row],[Sujet]]="","","?")) -> ?
B38: 00.34 | C38: Avertissement d'extrait de rôle du ménage | E38: document | F38: 00 - Installation & généralités | G38: =IF(LEN(Table119[[#This Row],[N°]])=2,"titre",IF(Table119[[#This Row],[Sujet]]="","non","non")) -> non | H38: =IF(LEN(Table119[[#This Row],[N°]])=2,"titre",IF(Table119[[#This Row],[Sujet]]="","non","non")) -> non | I38: =IF(LEN(Table119[[#This Row],[N°]])=2,"",IF(Table119[[#This Row],[Sujet]]="","","?")) -> ?
B39: 00.35 | C39: Plans architecturaux du logement | E39: document | F39: 00 - Installation & généralités | G39: =IF(LEN(Table119[[#This Row],[N°]])=2,"titre",IF(Table119[[#This Row],[Sujet]]="","non","non")) -> non | H39: =IF(LEN(Table119[[#This Row],[N°]])=2,"titre",IF(Table119[[#This Row],[Sujet]]="","non","non")) -> non | I39: =IF(LEN(Table119[[#This Row],[N°]])=2,"",IF(Table119[[#This Row],[Sujet]]="","","?")) -> ?
B40: 00.36 | C40: Factures des travaux énergétiques précédents | E40: document | F40: 00 - Installation & généralités | G40: =IF(LEN(Table119[[#This Row],[N°]])=2,"titre",IF(Table119[[#This Row],[Sujet]]="","non","non")) -> non | H40: =IF(LEN(Table119[[#This Row],[N°]])=2,"titre",IF(Table119[[#This Row],[Sujet]]="","non","non")) -> non | I40: =IF(LEN(Table119[[#This Row],[N°]])=2,"",IF(Table119[[#This Row],[Sujet]]="","","?")) -> ?
B41: 00.37 | C41: Factures de consommation énergétiques | E41: document | F41: 00 - Installation & généralités | G41: =IF(LEN(Table119[[#This Row],[N°]])=2,"titre",IF(Table119[[#This Row],[Sujet]]="","non","non")) -> non | H41: =IF(LEN(Table119[[#This Row],[N°]])=2,"titre",IF(Table119[[#This Row],[Sujet]]="","non","non")) -> non | I41: =IF(LEN(Table119[[#This Row],[N°]])=2,"",IF(Table119[[#This Row],[Sujet]]="","","?")) -> ?
B42: 00.38 | C42: Factures des travaux de salubrité précédents (injection murs humidité, traitement de champignons, …) | E42: document | F42: 00 - Installation & généralités | G42: =IF(LEN(Table119[[#This Row],[N°]])=2,"titre",IF(Table119[[#This Row],[Sujet]]="","non","non")) -> non | H42: =IF(LEN(Table119[[#This Row],[N°]])=2,"titre",IF(Table119[[#This Row],[Sujet]]="","non","non")) -> non | I42: =IF(LEN(Table119[[#This Row],[N°]])=2,"",IF(Table119[[#This Row],[Sujet]]="","","?")) -> ?
B43: 00.39 | C43: Factures des travaux de stabilisation précédents (reprise sous fondations, agraffage de fissures, …) | E43: document | F43: 00 - Installation & généralités | G43: =IF(LEN(Table119[[#This Row],[N°]])=2,"titre",IF(Table119[[#This Row],[Sujet]]="","non","non")) -> non | H43: =IF(LEN(Table119[[#This Row],[N°]])=2,"titre",IF(Table119[[#This Row],[Sujet]]="","non","non")) -> non | I43: =IF(LEN(Table119[[#This Row],[N°]])=2,"",IF(Table119[[#This Row],[Sujet]]="","","?")) -> ?
B44: 00.40 | C44: Rapport entretien périodique chaudière et autres installations technique | E44: document | F44: 00 - Installation & généralités | G44: =IF(LEN(Table119[[#This Row],[N°]])=2,"titre",IF(Table119[[#This Row],[Sujet]]="","non","non")) -> non | H44: =IF(LEN(Table119[[#This Row],[N°]])=2,"titre",IF(Table119[[#This Row],[Sujet]]="","non","non")) -> non | I44: =IF(LEN(Table119[[#This Row],[N°]])=2,"",IF(Table119[[#This Row],[Sujet]]="","","?")) -> ?
B45: 00.41 | C45: DIU (dossier d'interventions ultérieures) | E45: document | F45: 00 - Installation & généralités | G45: =IF(LEN(Table119[[#This Row],[N°]])=2,"titre",IF(Table119[[#This Row],[Sujet]]="","non","non")) -> non | H45: =IF(LEN(Table119[[#This Row],[N°]])=2,"titre",IF(Table119[[#This Row],[Sujet]]="","non","non")) -> non | I45: =IF(LEN(Table119[[#This Row],[N°]])=2,"",IF(Table119[[#This Row],[Sujet]]="","","?")) -> ?
B46: 00.42 | C46: Certificat d'étanchéité de citerne/cuve à mazout/gaz | E46: document | F46: 00 - Installation & généralités | G46: =IF(LEN(Table119[[#This Row],[N°]])=2,"titre",IF(Table119[[#This Row],[Sujet]]="","non","non")) -> non | H46: =IF(LEN(Table119[[#This Row],[N°]])=2,"titre",IF(Table119[[#This Row],[Sujet]]="","non","non")) -> non | I46: =IF(LEN(Table119[[#This Row],[N°]])=2,"",IF(Table119[[#This Row],[Sujet]]="","","?")) -> ?
B47: 00.43 | C47: Compteur gaz ? → position + état général (photo) + dispositif de coupure accessible ? → | E47: techniques | F47: 00 - Installation & généralités | G47: =IF(LEN(Table119[[#This Row],[N°]])=2,"titre",IF(Table119[[#This Row],[Sujet]]="","non","non")) -> non | H47: oui | I47: =IF(LEN(Table119[[#This Row],[N°]])=2,"",IF(Table119[[#This Row],[Sujet]]="","","?")) -> ?
B48: 00.44 | C48: Plan des installations techniques | E48: document | F48: 00 - Installation & généralités | G48: =IF(LEN(Table119[[#This Row],[N°]])=2,"titre",IF(Table119[[#This Row],[Sujet]]="","non","non")) -> non | H48: =IF(LEN(Table119[[#This Row],[N°]])=2,"titre",IF(Table119[[#This Row],[Sujet]]="","non","non")) -> non | I48: =IF(LEN(Table119[[#This Row],[N°]])=2,"",IF(Table119[[#This Row],[Sujet]]="","","?")) -> ?
B49: 00.45 | C49: Contraintes sur les horaires du chantier ? | E49: questions | F49: 00 - Installation & généralités | G49: =IF(LEN(Table119[[#This Row],[N°]])=2,"titre",IF(Table119[[#This Row],[Sujet]]="","non","non")) -> non | H49: =IF(LEN(Table119[[#This Row],[N°]])=2,"titre",IF(Table119[[#This Row],[Sujet]]="","non","non")) -> non | I49: =IF(LEN(Table119[[#This Row],[N°]])=2,"",IF(Table119[[#This Row],[Sujet]]="","","?")) -> ?
B50: 00.46 | C50: Permis d'urbanisme | E50: document | F50: 00 - Installation & généralités | G50: =IF(LEN(Table119[[#This Row],[N°]])=2,"titre",IF(Table119[[#This Row],[Sujet]]="","non","non")) -> non | H50: =IF(LEN(Table119[[#This Row],[N°]])=2,"titre",IF(Table119[[#This Row],[Sujet]]="","non","non")) -> non | I50: =IF(LEN(Table119[[#This Row],[N°]])=2,"",IF(Table119[[#This Row],[Sujet]]="","","?")) -> ?
B51: 00.47 | C51: Position des techniques (chauffe, compteur gaz, elec, eau, boiler, tableaux, …) | E51: questions | F51: 00 - Installation & généralités | G51: =IF(LEN(Table119[[#This Row],[N°]])=2,"titre",IF(Table119[[#This Row],[Sujet]]="","non","non")) -> non | H51: =IF(LEN(Table119[[#This Row],[N°]])=2,"titre",IF(Table119[[#This Row],[Sujet]]="","non","non")) -> non | I51: =IF(LEN(Table119[[#This Row],[N°]])=2,"",IF(Table119[[#This Row],[Sujet]]="","","?")) -> ?
B52: 00.48 | C52: Présence d'amiante sur tuyaux ? Dans conduit de cheminée ? | E52: caves | F52: =$F$4 -> 00 - Installation & généralités | G52: oui | H52: oui | I52: =IF(LEN(Table119[[#This Row],[N°]])=2,"",IF(Table119[[#This Row],[Sujet]]="","","?")) -> ?
B53: 00.49 | C53: Eclairage naturel dans chaque pièces "habitée" ? → au feeling ! | D53: (taille raisonnable → Salon 25m² : ~ 2m², Chambre 12m² : ~ 0.8m², ...) ≥ 1/14 surface sol → fenêtres verticales ≥ 1/16 surface sol → fenêtres de toit | E53: intérieur | F53: 00 - Installation & généralités | G53: =IF(LEN(Table119[[#This Row],[N°]])=2,"titre",IF(Table119[[#This Row],[Sujet]]="","non","non")) -> non | H53: oui | I53: =IF(LEN(Table119[[#This Row],[N°]])=2,"",IF(Table119[[#This Row],[Sujet]]="","","?")) -> ?
B54: 00.50 | C54: Salubrité : Planchers droits / risque de chute (escaliers, trappes, ...) / non exigu / sans danger → constat visuel ! | E54: intérieur | F54: 00 - Installation & généralités | G54: =IF(LEN(Table119[[#This Row],[N°]])=2,"titre",IF(Table119[[#This Row],[Sujet]]="","non","non")) -> non | H54: oui | I54: =IF(LEN(Table119[[#This Row],[N°]])=2,"",IF(Table119[[#This Row],[Sujet]]="","","?")) -> ?
B55: 00.51 | C55: Installation gaz : caractère manifestement /potentiellement dangereux ? | D55: voir 00.43 | E55: techniques | F55: 00 - Installation & généralités | G55: =IF(LEN(Table119[[#This Row],[N°]])=2,"titre",IF(Table119[[#This Row],[Sujet]]="","non","non")) -> non | H55: oui | I55: =IF(LEN(Table119[[#This Row],[N°]])=2,"",IF(Table119[[#This Row],[Sujet]]="","","?")) -> ?
B56: 00.52 | C56: Puissance installation photovoltaïque existante ? | E56: questions | F56: 00 - Installation & généralités | G56: =IF(LEN(Table119[[#This Row],[N°]])=2,"titre",IF(Table119[[#This Row],[Sujet]]="","non","non")) -> non | H56: =IF(LEN(Table119[[#This Row],[N°]])=2,"titre",IF(Table119[[#This Row],[Sujet]]="","non","non")) -> non | I56: =IF(LEN(Table119[[#This Row],[N°]])=2,"",IF(Table119[[#This Row],[Sujet]]="","","?")) -> ?
B57: 00.53 | C57: Salubrité / Santé : Doute d’amiante, de plomb (peintures) et de radon ? | E57: questions | F57: 00 - Installation & généralités | G57: =IF(LEN(Table119[[#This Row],[N°]])=2,"titre",IF(Table119[[#This Row],[Sujet]]="","non","non")) -> non | H57: =IF(LEN(Table119[[#This Row],[N°]])=2,"titre",IF(Table119[[#This Row],[Sujet]]="","non","non")) -> non | I57: =IF(LEN(Table119[[#This Row],[N°]])=2,"",IF(Table119[[#This Row],[Sujet]]="","","?")) -> ?
B58: 00.54 | C58: Salubrité : logement surpeuplé ? ( appréciation globale, au feeling ! ) | D58: Superficie min. habitable (en m²/occupant) → [ 1p. ≥ 15m² ] _ [ 2p. ≥ 28m² ] _ [ 3p. ≥ 33m² ] Au moins une pièce d'habitation (en m²/occupant) → [ 1p. ≥ 10m² ] _ [ 2p. ≥ 15m² ] Chambres → [ 2p. ≥ 6m² ] _ [ 3p. ≥ 9m² ] La cuisine ne peut pas servir de chambre Le living ne peut pas servir de chambre si présence d'un enfant de + de 6 ans Min. 2 chambres si présence d'un enfant de + de 1an Suffisamment de chambres pour qu'un enfant de ≥ 10ans ne doive pas partager sa chambre avec un enfant de sexe différent Largeur façade rue extérieure ≥ 3,50m ? Largeur façade rue entre murs intérieurs ≥ 2,80m ? Hauteurs sous plafond ≥ 2m ? Largeur des pièces ≥ 2,80m ? | E58: questions | F58: 00 - Installation & généralités | G58: =IF(LEN(Table119[[#This Row],[N°]])=2,"titre",IF(Table119[[#This Row],[Sujet]]="","non","non")) -> non | H58: oui | I58: ?
B59: 00.55 | E59: =IF(Table119[[#This Row],[Sujet]]="","","intérieur") ->  | F59: 00 - Installation & généralités | G59: =IF(LEN(Table119[[#This Row],[N°]])=2,"titre",IF(Table119[[#This Row],[Sujet]]="","non","non")) -> non | H59: =IF(LEN(Table119[[#This Row],[N°]])=2,"titre",IF(Table119[[#This Row],[Sujet]]="","non","non")) -> non | I59: =IF(LEN(Table119[[#This Row],[N°]])=2,"",IF(Table119[[#This Row],[Sujet]]="","","?")) -> 
B60: 00.56 | E60: =IF(Table119[[#This Row],[Sujet]]="","","intérieur") ->  | F60: 00 - Installation & généralités | G60: =IF(LEN(Table119[[#This Row],[N°]])=2,"titre",IF(Table119[[#This Row],[Sujet]]="","non","non")) -> non | H60: =IF(LEN(Table119[[#This Row],[N°]])=2,"titre",IF(Table119[[#This Row],[Sujet]]="","non","non")) -> non | I60: =IF(LEN(Table119[[#This Row],[N°]])=2,"",IF(Table119[[#This Row],[Sujet]]="","","?")) -> 
B61: 00.57 | E61: =IF(Table119[[#This Row],[Sujet]]="","","intérieur") ->  | F61: 00 - Installation & généralités | G61: =IF(LEN(Table119[[#This Row],[N°]])=2,"titre",IF(Table119[[#This Row],[Sujet]]="","non","non")) -> non | H61: =IF(LEN(Table119[[#This Row],[N°]])=2,"titre",IF(Table119[[#This Row],[Sujet]]="","non","non")) -> non | I61: =IF(LEN(Table119[[#This Row],[N°]])=2,"",IF(Table119[[#This Row],[Sujet]]="","","?")) -> 
E62: =IF(Table119[[#This Row],[Sujet]]="","","intérieur") ->  | F62: 00 - Installation & généralités | G62: =IF(LEN(Table119[[#This Row],[N°]])=2,"titre",IF(Table119[[#This Row],[Sujet]]="","non","non")) -> non | H62: =IF(LEN(Table119[[#This Row],[N°]])=2,"titre",IF(Table119[[#This Row],[Sujet]]="","non","non")) -> non | I62: =IF(LEN(Table119[[#This Row],[N°]])=2,"",IF(Table119[[#This Row],[Sujet]]="","","?")) -> 
B63: 01 | C63: DEMOLITION | E63: titres | F63: 01 - Démolition | G63: =IF(LEN(Table119[[#This Row],[N°]])=2,"titre",IF(Table119[[#This Row],[Sujet]]="","non","non")) -> titre | H63: =IF(LEN(Table119[[#This Row],[N°]])=2,"titre",IF(Table119[[#This Row],[Sujet]]="","non","non")) -> titre | I63: =IF(LEN(Table119[[#This Row],[N°]])=2,"",IF(Table119[[#This Row],[Sujet]]="","","?")) -> 
B64: 01.01 | C64: Enlèvement de chape possible au rez (pour possibilité d'isolation sol par l'intérieur) ? | D64: dimensions / mesurage | E64: questions | F64: =$F$63 -> 01 - Démolition | G64: =IF(LEN(Table119[[#This Row],[N°]])=2,"titre",IF(Table119[[#This Row],[Sujet]]="","non","non")) -> non | H64: oui | I64: =IF(LEN(Table119[[#This Row],[N°]])=2,"",IF(Table119[[#This Row],[Sujet]]="","","?")) -> ?
B65: 01.02 | C65: Démontage de corps de cheminée à prévoir ? → dimensions + nb de niveaux ? → | D65: dimensions / mesurage | E65: questions | F65: =$F$63 -> 01 - Démolition | G65: oui | H65: non | I65: =IF(LEN(Table119[[#This Row],[N°]])=2,"",IF(Table119[[#This Row],[Sujet]]="","","?")) -> ?
B66: 01.03 | C66: Ouverture/agrandissement de baie(s) à prévoir ? → longueur + profondeur mur + hauteur → | D66: dimensions / mesurage | E66: questions | F66: 01 - Démolition | G66: non | H66: oui | I66: =IF(LEN(Table119[[#This Row],[N°]])=2,"",IF(Table119[[#This Row],[Sujet]]="","","?")) -> ?
B67: 01.04 | C67: Percements / carottages à prévoir ? | E67: =IF(Table119[[#This Row],[Sujet]]="","","intérieur") -> intérieur | F67: 01 - Démolition | G67: =IF(LEN(Table119[[#This Row],[N°]])=2,"titre",IF(Table119[[#This Row],[Sujet]]="","non","non")) -> non | H67: oui | I67: =IF(LEN(Table119[[#This Row],[N°]])=2,"",IF(Table119[[#This Row],[Sujet]]="","","?")) -> ?
B68: 01.05 | C68: Enlèvement de parement de façade à prévoir ? | D68: dimensions / mesurage | E68: questions | F68: 01 - Démolition | G68: oui | H68: non | I68: =IF(LEN(Table119[[#This Row],[N°]])=2,"",IF(Table119[[#This Row],[Sujet]]="","","?")) -> ?
B69: 01.06 | C69: Enlèvement de revêtement de sols à prévoir ? → mesurage + type → | D69: dimensions / mesurage | E69: =IF(Table119[[#This Row],[Sujet]]="","","intérieur") -> intérieur | F69: 01 - Démolition | G69: oui | H69: non | I69: =IF(LEN(Table119[[#This Row],[N°]])=2,"",IF(Table119[[#This Row],[Sujet]]="","","?")) -> ?
B70: 01.07 | C70: Enlèvement de revêtement de murs à prévoir ? → mesurage + type → | D70: dimensions / mesurage | E70: =IF(Table119[[#This Row],[Sujet]]="","","intérieur") -> intérieur | F70: 01 - Démolition | G70: oui | H70: non | I70: =IF(LEN(Table119[[#This Row],[N°]])=2,"",IF(Table119[[#This Row],[Sujet]]="","","?")) -> ?
B71: 01.08 | C71: Enlèvement de revêtement de plafonds à prévoir ? → mesurage + type → | D71: dimensions / mesurage | E71: combles | F71: 01 - Démolition | G71: oui | H71: oui | I71: =IF(LEN(Table119[[#This Row],[N°]])=2,"",IF(Table119[[#This Row],[Sujet]]="","","?")) -> ?
B72: 01.09 | C72: Enlèvement de cuve mazout/gaz à prévoir ? → position + type + dimensions → | D72: complexité ? | E72: questions | F72: 01 - Démolition | G72: =IF(LEN(Table119[[#This Row],[N°]])=2,"titre",IF(Table119[[#This Row],[Sujet]]="","non","non")) -> non | H72: oui | I72: =IF(LEN(Table119[[#This Row],[N°]])=2,"",IF(Table119[[#This Row],[Sujet]]="","","?")) -> ?
B73: 01.10 | C73: Enlèvement de meubles/équipement lourd à prévoir ? → mesurage + type → | D73: dimensions / mesurage | E73: =IF(Table119[[#This Row],[Sujet]]="","","intérieur") -> intérieur | F73: 01 - Démolition | G73: oui | H73: oui | I73: =IF(LEN(Table119[[#This Row],[N°]])=2,"",IF(Table119[[#This Row],[Sujet]]="","","?")) -> ?
B74: 01.11 | C74: Enlèvement d'installations/équipements légers à prévoir ? → mesurage + type → | D74: dimensions / mesurage | E74: combles | F74: 01 - Démolition | G74: oui | H74: oui | I74: =IF(LEN(Table119[[#This Row],[N°]])=2,"",IF(Table119[[#This Row],[Sujet]]="","","?")) -> ?
B75: 01.12 | C75: Changement / ajout d'éléments/électros de cuisine à prévoir ? → mesurage + type + électros → | E75: questions | F75: 01 - Démolition | G75: =IF(LEN(Table119[[#This Row],[N°]])=2,"titre",IF(Table119[[#This Row],[Sujet]]="","non","non")) -> non | H75: non | I75: =IF(LEN(Table119[[#This Row],[N°]])=2,"",IF(Table119[[#This Row],[Sujet]]="","","?")) -> ?
B76: 01.13 | C76: Enlèvement / remplacement de chaudière à prévoir ? → position + type + dimensions → | E76: questions | F76: 01 - Démolition | G76: =IF(LEN(Table119[[#This Row],[N°]])=2,"titre",IF(Table119[[#This Row],[Sujet]]="","non","non")) -> non | H76: non | I76: =IF(LEN(Table119[[#This Row],[N°]])=2,"",IF(Table119[[#This Row],[Sujet]]="","","?")) -> ?
B77: 01.14 | C77: Evacuation de déchets à prévoir ? → position + type + quantité → | D77: dimensions / mesurage | E77: combles | F77: 01 - Démolition | G77: oui | H77: oui | I77: =IF(LEN(Table119[[#This Row],[N°]])=2,"",IF(Table119[[#This Row],[Sujet]]="","","?")) -> ?
B78: 01.15 | E78: =IF(Table119[[#This Row],[Sujet]]="","","intérieur") ->  | F78: 01 - Démolition | G78: =IF(LEN(Table119[[#This Row],[N°]])=2,"titre",IF(Table119[[#This Row],[Sujet]]="","non","non")) -> non | H78: =IF(LEN(Table119[[#This Row],[N°]])=2,"titre",IF(Table119[[#This Row],[Sujet]]="","non","non")) -> non | I78: =IF(LEN(Table119[[#This Row],[N°]])=2,"",IF(Table119[[#This Row],[Sujet]]="","","?")) -> 
B79: 01.16 | E79: =IF(Table119[[#This Row],[Sujet]]="","","intérieur") ->  | F79: 01 - Démolition | G79: =IF(LEN(Table119[[#This Row],[N°]])=2,"titre",IF(Table119[[#This Row],[Sujet]]="","non","non")) -> non | H79: =IF(LEN(Table119[[#This Row],[N°]])=2,"titre",IF(Table119[[#This Row],[Sujet]]="","non","non")) -> non | I79: =IF(LEN(Table119[[#This Row],[N°]])=2,"",IF(Table119[[#This Row],[Sujet]]="","","?")) -> 
B80: 01.17 | E80: =IF(Table119[[#This Row],[Sujet]]="","","intérieur") ->  | F80: 01 - Démolition | G80: =IF(LEN(Table119[[#This Row],[N°]])=2,"titre",IF(Table119[[#This Row],[Sujet]]="","non","non")) -> non | H80: =IF(LEN(Table119[[#This Row],[N°]])=2,"titre",IF(Table119[[#This Row],[Sujet]]="","non","non")) -> non | I80: =IF(LEN(Table119[[#This Row],[N°]])=2,"",IF(Table119[[#This Row],[Sujet]]="","","?")) -> 
B81: 01.18 | E81: =IF(Table119[[#This Row],[Sujet]]="","","intérieur") ->  | F81: 01 - Démolition | G81: =IF(LEN(Table119[[#This Row],[N°]])=2,"titre",IF(Table119[[#This Row],[Sujet]]="","non","non")) -> non | H81: =IF(LEN(Table119[[#This Row],[N°]])=2,"titre",IF(Table119[[#This Row],[Sujet]]="","non","non")) -> non | I81: =IF(LEN(Table119[[#This Row],[N°]])=2,"",IF(Table119[[#This Row],[Sujet]]="","","?")) -> 
B82: 01.19 | E82: =IF(Table119[[#This Row],[Sujet]]="","","intérieur") ->  | F82: 01 - Démolition | G82: =IF(LEN(Table119[[#This Row],[N°]])=2,"titre",IF(Table119[[#This Row],[Sujet]]="","non","non")) -> non | H82: =IF(LEN(Table119[[#This Row],[N°]])=2,"titre",IF(Table119[[#This Row],[Sujet]]="","non","non")) -> non | I82: =IF(LEN(Table119[[#This Row],[N°]])=2,"",IF(Table119[[#This Row],[Sujet]]="","","?")) -> 
B83: 01.20 | E83: =IF(Table119[[#This Row],[Sujet]]="","","intérieur") ->  | F83: 01 - Démolition | G83: =IF(LEN(Table119[[#This Row],[N°]])=2,"titre",IF(Table119[[#This Row],[Sujet]]="","non","non")) -> non | H83: =IF(LEN(Table119[[#This Row],[N°]])=2,"titre",IF(Table119[[#This Row],[Sujet]]="","non","non")) -> non | I83: =IF(LEN(Table119[[#This Row],[N°]])=2,"",IF(Table119[[#This Row],[Sujet]]="","","?")) -> 
B84: 01.21 | E84: =IF(Table119[[#This Row],[Sujet]]="","","intérieur") ->  | F84: 01 - Démolition | G84: =IF(LEN(Table119[[#This Row],[N°]])=2,"titre",IF(Table119[[#This Row],[Sujet]]="","non","non")) -> non | H84: =IF(LEN(Table119[[#This Row],[N°]])=2,"titre",IF(Table119[[#This Row],[Sujet]]="","non","non")) -> non | I84: =IF(LEN(Table119[[#This Row],[N°]])=2,"",IF(Table119[[#This Row],[Sujet]]="","","?")) -> 
B85: 01.22 | E85: =IF(Table119[[#This Row],[Sujet]]="","","intérieur") ->  | F85: 01 - Démolition | G85: =IF(LEN(Table119[[#This Row],[N°]])=2,"titre",IF(Table119[[#This Row],[Sujet]]="","non","non")) -> non | H85: =IF(LEN(Table119[[#This Row],[N°]])=2,"titre",IF(Table119[[#This Row],[Sujet]]="","non","non")) -> non | I85: =IF(LEN(Table119[[#This Row],[N°]])=2,"",IF(Table119[[#This Row],[Sujet]]="","","?")) -> 
B86: 01.23 | E86: =IF(Table119[[#This Row],[Sujet]]="","","intérieur") ->  | F86: 01 - Démolition | G86: =IF(LEN(Table119[[#This Row],[N°]])=2,"titre",IF(Table119[[#This Row],[Sujet]]="","non","non")) -> non | H86: =IF(LEN(Table119[[#This Row],[N°]])=2,"titre",IF(Table119[[#This Row],[Sujet]]="","non","non")) -> non | I86: =IF(LEN(Table119[[#This Row],[N°]])=2,"",IF(Table119[[#This Row],[Sujet]]="","","?")) -> 
B87: 01.24 | E87: =IF(Table119[[#This Row],[Sujet]]="","","intérieur") ->  | F87: 01 - Démolition | G87: =IF(LEN(Table119[[#This Row],[N°]])=2,"titre",IF(Table119[[#This Row],[Sujet]]="","non","non")) -> non | H87: =IF(LEN(Table119[[#This Row],[N°]])=2,"titre",IF(Table119[[#This Row],[Sujet]]="","non","non")) -> non | I87: =IF(LEN(Table119[[#This Row],[N°]])=2,"",IF(Table119[[#This Row],[Sujet]]="","","?")) -> 
B88: 01.25 | E88: =IF(Table119[[#This Row],[Sujet]]="","","intérieur") ->  | F88: 01 - Démolition | G88: =IF(LEN(Table119[[#This Row],[N°]])=2,"titre",IF(Table119[[#This Row],[Sujet]]="","non","non")) -> non | H88: =IF(LEN(Table119[[#This Row],[N°]])=2,"titre",IF(Table119[[#This Row],[Sujet]]="","non","non")) -> non | I88: =IF(LEN(Table119[[#This Row],[N°]])=2,"",IF(Table119[[#This Row],[Sujet]]="","","?")) -> 
E89: =IF(Table119[[#This Row],[Sujet]]="","","intérieur") ->  | F89: 01 - Démolition | G89: =IF(LEN(Table119[[#This Row],[N°]])=2,"titre",IF(Table119[[#This Row],[Sujet]]="","non","non")) -> non | H89: =IF(LEN(Table119[[#This Row],[N°]])=2,"titre",IF(Table119[[#This Row],[Sujet]]="","non","non")) -> non | I89: =IF(LEN(Table119[[#This Row],[N°]])=2,"",IF(Table119[[#This Row],[Sujet]]="","","?")) -> 
B90: 02 | C90: EGOUTTAGE | E90: titres | F90: 02 - Egouttage | G90: =IF(LEN(Table119[[#This Row],[N°]])=2,"titre",IF(Table119[[#This Row],[Sujet]]="","non","non")) -> titre | H90: =IF(LEN(Table119[[#This Row],[N°]])=2,"titre",IF(Table119[[#This Row],[Sujet]]="","non","non")) -> titre | I90: =IF(LEN(Table119[[#This Row],[N°]])=2,"",IF(Table119[[#This Row],[Sujet]]="","","?")) -> 
B91: 02.01 | C91: Remontée d'odeurs ? → ventilation primaire ? Anti-retour ? → | E91: questions | F91: =$F$90 -> 02 - Egouttage | G91: =IF(LEN(Table119[[#This Row],[N°]])=2,"titre",IF(Table119[[#This Row],[Sujet]]="","non","non")) -> non | H91: =IF(LEN(Table119[[#This Row],[N°]])=2,"titre",IF(Table119[[#This Row],[Sujet]]="","non","non")) -> non | I91: =IF(LEN(Table119[[#This Row],[N°]])=2,"",IF(Table119[[#This Row],[Sujet]]="","","?")) -> ?
B92: 02.02 | C92: Problèmes d'égouttage ? | E92: questions | F92: =$F$90 -> 02 - Egouttage | G92: =IF(LEN(Table119[[#This Row],[N°]])=2,"titre",IF(Table119[[#This Row],[Sujet]]="","non","non")) -> non | H92: =IF(LEN(Table119[[#This Row],[N°]])=2,"titre",IF(Table119[[#This Row],[Sujet]]="","non","non")) -> non | I92: =IF(LEN(Table119[[#This Row],[N°]])=2,"",IF(Table119[[#This Row],[Sujet]]="","","?")) -> ?
B93: 02.03 | C93: Tout à l'égout ? | E93: questions | F93: 02 - Egouttage | G93: =IF(LEN(Table119[[#This Row],[N°]])=2,"titre",IF(Table119[[#This Row],[Sujet]]="","non","non")) -> non | H93: =IF(LEN(Table119[[#This Row],[N°]])=2,"titre",IF(Table119[[#This Row],[Sujet]]="","non","non")) -> non | I93: =IF(LEN(Table119[[#This Row],[N°]])=2,"",IF(Table119[[#This Row],[Sujet]]="","","?")) -> ?
B94: 02.04 | C94: Présence de citerne d'eau pluviale ? → dimensions + type + position + état → | E94: questions | F94: 02 - Egouttage | G94: =IF(LEN(Table119[[#This Row],[N°]])=2,"titre",IF(Table119[[#This Row],[Sujet]]="","non","non")) -> non | H94: =IF(LEN(Table119[[#This Row],[N°]])=2,"titre",IF(Table119[[#This Row],[Sujet]]="","non","non")) -> non | I94: =IF(LEN(Table119[[#This Row],[N°]])=2,"",IF(Table119[[#This Row],[Sujet]]="","","?")) -> ?
B95: 02.05 | C95: Egouttage enterré ou apparent ? | E95: caves | F95: 02 - Egouttage | G95: =IF(LEN(Table119[[#This Row],[N°]])=2,"titre",IF(Table119[[#This Row],[Sujet]]="","non","non")) -> non | H95: oui | I95: =IF(LEN(Table119[[#This Row],[N°]])=2,"",IF(Table119[[#This Row],[Sujet]]="","","?")) -> ?
B96: 02.06 | C96: Réseau de drainage à prévoir ? | E96: =IF(Table119[[#This Row],[Sujet]]="","","intérieur") -> intérieur | F96: 02 - Egouttage | G96: =IF(LEN(Table119[[#This Row],[N°]])=2,"titre",IF(Table119[[#This Row],[Sujet]]="","non","non")) -> non | H96: oui | I96: =IF(LEN(Table119[[#This Row],[N°]])=2,"",IF(Table119[[#This Row],[Sujet]]="","","?")) -> ?
B97: 02.07 | C97: Présence/besoin d'une station d'épuration / fosse sceptique ? | D97: Possibilité d'installation ? | E97: questions | F97: 02 - Egouttage | G97: =IF(LEN(Table119[[#This Row],[N°]])=2,"titre",IF(Table119[[#This Row],[Sujet]]="","non","non")) -> non | H97: =IF(LEN(Table119[[#This Row],[N°]])=2,"titre",IF(Table119[[#This Row],[Sujet]]="","non","non")) -> non | I97: =IF(LEN(Table119[[#This Row],[N°]])=2,"",IF(Table119[[#This Row],[Sujet]]="","","?")) -> ?
B98: 02.08 | C98: Présence d'un système de filtration / dégraisseur à la sortie de la cuisine ? | E98: extérieur | F98: 02 - Egouttage | G98: =IF(LEN(Table119[[#This Row],[N°]])=2,"titre",IF(Table119[[#This Row],[Sujet]]="","non","non")) -> non | H98: oui | I98: =IF(LEN(Table119[[#This Row],[N°]])=2,"",IF(Table119[[#This Row],[Sujet]]="","","?")) -> ?
B99: 02.09 | E99: =IF(Table119[[#This Row],[Sujet]]="","","intérieur") ->  | F99: 02 - Egouttage | G99: =IF(LEN(Table119[[#This Row],[N°]])=2,"titre",IF(Table119[[#This Row],[Sujet]]="","non","non")) -> non | H99: =IF(LEN(Table119[[#This Row],[N°]])=2,"titre",IF(Table119[[#This Row],[Sujet]]="","non","non")) -> non | I99: =IF(LEN(Table119[[#This Row],[N°]])=2,"",IF(Table119[[#This Row],[Sujet]]="","","?")) -> 
B100: 02.10 | E100: =IF(Table119[[#This Row],[Sujet]]="","","intérieur") ->  | F100: 02 - Egouttage | G100: =IF(LEN(Table119[[#This Row],[N°]])=2,"titre",IF(Table119[[#This Row],[Sujet]]="","non","non")) -> non | H100: =IF(LEN(Table119[[#This Row],[N°]])=2,"titre",IF(Table119[[#This Row],[Sujet]]="","non","non")) -> non | I100: =IF(LEN(Table119[[#This Row],[N°]])=2,"",IF(Table119[[#This Row],[Sujet]]="","","?")) -> 
B101: 02.11 | E101: =IF(Table119[[#This Row],[Sujet]]="","","intérieur") ->  | F101: 02 - Egouttage | G101: =IF(LEN(Table119[[#This Row],[N°]])=2,"titre",IF(Table119[[#This Row],[Sujet]]="","non","non")) -> non | H101: =IF(LEN(Table119[[#This Row],[N°]])=2,"titre",IF(Table119[[#This Row],[Sujet]]="","non","non")) -> non | I101: =IF(LEN(Table119[[#This Row],[N°]])=2,"",IF(Table119[[#This Row],[Sujet]]="","","?")) -> 
B102: 02.12 | E102: =IF(Table119[[#This Row],[Sujet]]="","","intérieur") ->  | F102: 02 - Egouttage | G102: =IF(LEN(Table119[[#This Row],[N°]])=2,"titre",IF(Table119[[#This Row],[Sujet]]="","non","non")) -> non | H102: =IF(LEN(Table119[[#This Row],[N°]])=2,"titre",IF(Table119[[#This Row],[Sujet]]="","non","non")) -> non | I102: =IF(LEN(Table119[[#This Row],[N°]])=2,"",IF(Table119[[#This Row],[Sujet]]="","","?")) -> 
B103: 02.13 | E103: =IF(Table119[[#This Row],[Sujet]]="","","intérieur") ->  | F103: 02 - Egouttage | G103: =IF(LEN(Table119[[#This Row],[N°]])=2,"titre",IF(Table119[[#This Row],[Sujet]]="","non","non")) -> non | H103: =IF(LEN(Table119[[#This Row],[N°]])=2,"titre",IF(Table119[[#This Row],[Sujet]]="","non","non")) -> non | I103: =IF(LEN(Table119[[#This Row],[N°]])=2,"",IF(Table119[[#This Row],[Sujet]]="","","?")) -> 
B104: 02.14 | E104: =IF(Table119[[#This Row],[Sujet]]="","","intérieur") ->  | F104: 02 - Egouttage | G104: =IF(LEN(Table119[[#This Row],[N°]])=2,"titre",IF(Table119[[#This Row],[Sujet]]="","non","non")) -> non | H104: =IF(LEN(Table119[[#This Row],[N°]])=2,"titre",IF(Table119[[#This Row],[Sujet]]="","non","non")) -> non | I104: =IF(LEN(Table119[[#This Row],[N°]])=2,"",IF(Table119[[#This Row],[Sujet]]="","","?")) -> 
B105: 02.15 | E105: =IF(Table119[[#This Row],[Sujet]]="","","intérieur") ->  | F105: 02 - Egouttage | G105: =IF(LEN(Table119[[#This Row],[N°]])=2,"titre",IF(Table119[[#This Row],[Sujet]]="","non","non")) -> non | H105: =IF(LEN(Table119[[#This Row],[N°]])=2,"titre",IF(Table119[[#This Row],[Sujet]]="","non","non")) -> non | I105: =IF(LEN(Table119[[#This Row],[N°]])=2,"",IF(Table119[[#This Row],[Sujet]]="","","?")) -> 
B106: 02.16 | E106: =IF(Table119[[#This Row],[Sujet]]="","","intérieur") ->  | F106: 02 - Egouttage | G106: =IF(LEN(Table119[[#This Row],[N°]])=2,"titre",IF(Table119[[#This Row],[Sujet]]="","non","non")) -> non | H106: =IF(LEN(Table119[[#This Row],[N°]])=2,"titre",IF(Table119[[#This Row],[Sujet]]="","non","non")) -> non | I106: =IF(LEN(Table119[[#This Row],[N°]])=2,"",IF(Table119[[#This Row],[Sujet]]="","","?")) -> 
B107: 02.17 | E107: =IF(Table119[[#This Row],[Sujet]]="","","intérieur") ->  | F107: 02 - Egouttage | G107: =IF(LEN(Table119[[#This Row],[N°]])=2,"titre",IF(Table119[[#This Row],[Sujet]]="","non","non")) -> non | H107: =IF(LEN(Table119[[#This Row],[N°]])=2,"titre",IF(Table119[[#This Row],[Sujet]]="","non","non")) -> non | I107: =IF(LEN(Table119[[#This Row],[N°]])=2,"",IF(Table119[[#This Row],[Sujet]]="","","?")) -> 
B108: 02.18 | E108: =IF(Table119[[#This Row],[Sujet]]="","","intérieur") ->  | F108: 02 - Egouttage | G108: =IF(LEN(Table119[[#This Row],[N°]])=2,"titre",IF(Table119[[#This Row],[Sujet]]="","non","non")) -> non | H108: =IF(LEN(Table119[[#This Row],[N°]])=2,"titre",IF(Table119[[#This Row],[Sujet]]="","non","non")) -> non | I108: =IF(LEN(Table119[[#This Row],[N°]])=2,"",IF(Table119[[#This Row],[Sujet]]="","","?")) -> 
B109: 02.19 | E109: =IF(Table119[[#This Row],[Sujet]]="","","intérieur") ->  | F109: 02 - Egouttage | G109: =IF(LEN(Table119[[#This Row],[N°]])=2,"titre",IF(Table119[[#This Row],[Sujet]]="","non","non")) -> non | H109: =IF(LEN(Table119[[#This Row],[N°]])=2,"titre",IF(Table119[[#This Row],[Sujet]]="","non","non")) -> non | I109: =IF(LEN(Table119[[#This Row],[N°]])=2,"",IF(Table119[[#This Row],[Sujet]]="","","?")) -> 
B110: 02.20 | E110: =IF(Table119[[#This Row],[Sujet]]="","","intérieur") ->  | F110: 02 - Egouttage | G110: =IF(LEN(Table119[[#This Row],[N°]])=2,"titre",IF(Table119[[#This Row],[Sujet]]="","non","non")) -> non | H110: =IF(LEN(Table119[[#This Row],[N°]])=2,"titre",IF(Table119[[#This Row],[Sujet]]="","non","non")) -> non | I110: =IF(LEN(Table119[[#This Row],[N°]])=2,"",IF(Table119[[#This Row],[Sujet]]="","","?")) -> 
E111: =IF(Table119[[#This Row],[Sujet]]="","","intérieur") ->  | F111: 02 - Egouttage | G111: =IF(LEN(Table119[[#This Row],[N°]])=2,"titre",IF(Table119[[#This Row],[Sujet]]="","non","non")) -> non | H111: =IF(LEN(Table119[[#This Row],[N°]])=2,"titre",IF(Table119[[#This Row],[Sujet]]="","non","non")) -> non | I111: =IF(LEN(Table119[[#This Row],[N°]])=2,"",IF(Table119[[#This Row],[Sujet]]="","","?")) -> 
B112: 03 | C112: TERRASSEMENT | E112: titres | F112: 03 - Terrassement | G112: =IF(LEN(Table119[[#This Row],[N°]])=2,"titre",IF(Table119[[#This Row],[Sujet]]="","non","non")) -> titre | H112: =IF(LEN(Table119[[#This Row],[N°]])=2,"titre",IF(Table119[[#This Row],[Sujet]]="","non","non")) -> titre | I112: =IF(LEN(Table119[[#This Row],[N°]])=2,"",IF(Table119[[#This Row],[Sujet]]="","","?")) -> 
B113: 03.01 | C113: Position des impétrants connue ? | E113: questions | F113: =$F$112 -> 03 - Terrassement | G113: =IF(LEN(Table119[[#This Row],[N°]])=2,"titre",IF(Table119[[#This Row],[Sujet]]="","non","non")) -> non | H113: =IF(LEN(Table119[[#This Row],[N°]])=2,"titre",IF(Table119[[#This Row],[Sujet]]="","non","non")) -> non | I113: =IF(LEN(Table119[[#This Row],[N°]])=2,"",IF(Table119[[#This Row],[Sujet]]="","","?")) -> ?
B114: 03.02 | C114: Apport de terre à prévoir ? | D114: dimensions / mesurage | E114: questions | F114: =$F$112 -> 03 - Terrassement | G114: =IF(LEN(Table119[[#This Row],[N°]])=2,"titre",IF(Table119[[#This Row],[Sujet]]="","non","non")) -> non | H114: oui | I114: =IF(LEN(Table119[[#This Row],[N°]])=2,"",IF(Table119[[#This Row],[Sujet]]="","","?")) -> ?
B115: 03.03 | C115: Evacuation de terre à prévoir ? | D115: dimensions / mesurage | E115: questions | F115: 03 - Terrassement | G115: =IF(LEN(Table119[[#This Row],[N°]])=2,"titre",IF(Table119[[#This Row],[Sujet]]="","non","non")) -> non | H115: oui | I115: =IF(LEN(Table119[[#This Row],[N°]])=2,"",IF(Table119[[#This Row],[Sujet]]="","","?")) -> ?
B116: 03.04 | E116: =IF(Table119[[#This Row],[Sujet]]="","","intérieur") ->  | F116: 03 - Terrassement | G116: =IF(LEN(Table119[[#This Row],[N°]])=2,"titre",IF(Table119[[#This Row],[Sujet]]="","non","non")) -> non | H116: =IF(LEN(Table119[[#This Row],[N°]])=2,"titre",IF(Table119[[#This Row],[Sujet]]="","non","non")) -> non | I116: =IF(LEN(Table119[[#This Row],[N°]])=2,"",IF(Table119[[#This Row],[Sujet]]="","","?")) -> 
B117: 03.05 | E117: =IF(Table119[[#This Row],[Sujet]]="","","intérieur") ->  | F117: 03 - Terrassement | G117: =IF(LEN(Table119[[#This Row],[N°]])=2,"titre",IF(Table119[[#This Row],[Sujet]]="","non","non")) -> non | H117: =IF(LEN(Table119[[#This Row],[N°]])=2,"titre",IF(Table119[[#This Row],[Sujet]]="","non","non")) -> non | I117: =IF(LEN(Table119[[#This Row],[N°]])=2,"",IF(Table119[[#This Row],[Sujet]]="","","?")) -> 
B118: 03.06 | E118: =IF(Table119[[#This Row],[Sujet]]="","","intérieur") ->  | F118: 03 - Terrassement | G118: =IF(LEN(Table119[[#This Row],[N°]])=2,"titre",IF(Table119[[#This Row],[Sujet]]="","non","non")) -> non | H118: =IF(LEN(Table119[[#This Row],[N°]])=2,"titre",IF(Table119[[#This Row],[Sujet]]="","non","non")) -> non | I118: =IF(LEN(Table119[[#This Row],[N°]])=2,"",IF(Table119[[#This Row],[Sujet]]="","","?")) -> 
B119: 03.07 | E119: =IF(Table119[[#This Row],[Sujet]]="","","intérieur") ->  | F119: 03 - Terrassement | G119: =IF(LEN(Table119[[#This Row],[N°]])=2,"titre",IF(Table119[[#This Row],[Sujet]]="","non","non")) -> non | H119: =IF(LEN(Table119[[#This Row],[N°]])=2,"titre",IF(Table119[[#This Row],[Sujet]]="","non","non")) -> non | I119: =IF(LEN(Table119[[#This Row],[N°]])=2,"",IF(Table119[[#This Row],[Sujet]]="","","?")) -> 
B120: 03.08 | E120: =IF(Table119[[#This Row],[Sujet]]="","","intérieur") ->  | F120: 03 - Terrassement | G120: =IF(LEN(Table119[[#This Row],[N°]])=2,"titre",IF(Table119[[#This Row],[Sujet]]="","non","non")) -> non | H120: =IF(LEN(Table119[[#This Row],[N°]])=2,"titre",IF(Table119[[#This Row],[Sujet]]="","non","non")) -> non | I120: =IF(LEN(Table119[[#This Row],[N°]])=2,"",IF(Table119[[#This Row],[Sujet]]="","","?")) -> 
B121: 03.09 | E121: =IF(Table119[[#This Row],[Sujet]]="","","intérieur") ->  | F121: 03 - Terrassement | G121: =IF(LEN(Table119[[#This Row],[N°]])=2,"titre",IF(Table119[[#This Row],[Sujet]]="","non","non")) -> non | H121: =IF(LEN(Table119[[#This Row],[N°]])=2,"titre",IF(Table119[[#This Row],[Sujet]]="","non","non")) -> non | I121: =IF(LEN(Table119[[#This Row],[N°]])=2,"",IF(Table119[[#This Row],[Sujet]]="","","?")) -> 
B122: 03.10 | E122: =IF(Table119[[#This Row],[Sujet]]="","","intérieur") ->  | F122: 03 - Terrassement | G122: =IF(LEN(Table119[[#This Row],[N°]])=2,"titre",IF(Table119[[#This Row],[Sujet]]="","non","non")) -> non | H122: =IF(LEN(Table119[[#This Row],[N°]])=2,"titre",IF(Table119[[#This Row],[Sujet]]="","non","non")) -> non | I122: =IF(LEN(Table119[[#This Row],[N°]])=2,"",IF(Table119[[#This Row],[Sujet]]="","","?")) -> 
B123: 03.11 | E123: =IF(Table119[[#This Row],[Sujet]]="","","intérieur") ->  | F123: 03 - Terrassement | G123: =IF(LEN(Table119[[#This Row],[N°]])=2,"titre",IF(Table119[[#This Row],[Sujet]]="","non","non")) -> non | H123: =IF(LEN(Table119[[#This Row],[N°]])=2,"titre",IF(Table119[[#This Row],[Sujet]]="","non","non")) -> non | I123: =IF(LEN(Table119[[#This Row],[N°]])=2,"",IF(Table119[[#This Row],[Sujet]]="","","?")) -> 
B124: 03.12 | E124: =IF(Table119[[#This Row],[Sujet]]="","","intérieur") ->  | F124: 03 - Terrassement | G124: =IF(LEN(Table119[[#This Row],[N°]])=2,"titre",IF(Table119[[#This Row],[Sujet]]="","non","non")) -> non | H124: =IF(LEN(Table119[[#This Row],[N°]])=2,"titre",IF(Table119[[#This Row],[Sujet]]="","non","non")) -> non | I124: =IF(LEN(Table119[[#This Row],[N°]])=2,"",IF(Table119[[#This Row],[Sujet]]="","","?")) -> 
B125: 03.13 | E125: =IF(Table119[[#This Row],[Sujet]]="","","intérieur") ->  | F125: 03 - Terrassement | G125: =IF(LEN(Table119[[#This Row],[N°]])=2,"titre",IF(Table119[[#This Row],[Sujet]]="","non","non")) -> non | H125: =IF(LEN(Table119[[#This Row],[N°]])=2,"titre",IF(Table119[[#This Row],[Sujet]]="","non","non")) -> non | I125: =IF(LEN(Table119[[#This Row],[N°]])=2,"",IF(Table119[[#This Row],[Sujet]]="","","?")) -> 
B126: 03.14 | E126: =IF(Table119[[#This Row],[Sujet]]="","","intérieur") ->  | F126: 03 - Terrassement | G126: =IF(LEN(Table119[[#This Row],[N°]])=2,"titre",IF(Table119[[#This Row],[Sujet]]="","non","non")) -> non | H126: =IF(LEN(Table119[[#This Row],[N°]])=2,"titre",IF(Table119[[#This Row],[Sujet]]="","non","non")) -> non | I126: =IF(LEN(Table119[[#This Row],[N°]])=2,"",IF(Table119[[#This Row],[Sujet]]="","","?")) -> 
B127: 03.15 | E127: =IF(Table119[[#This Row],[Sujet]]="","","intérieur") ->  | F127: 03 - Terrassement | G127: =IF(LEN(Table119[[#This Row],[N°]])=2,"titre",IF(Table119[[#This Row],[Sujet]]="","non","non")) -> non | H127: =IF(LEN(Table119[[#This Row],[N°]])=2,"titre",IF(Table119[[#This Row],[Sujet]]="","non","non")) -> non | I127: =IF(LEN(Table119[[#This Row],[N°]])=2,"",IF(Table119[[#This Row],[Sujet]]="","","?")) -> 
B128: 03.16 | E128: =IF(Table119[[#This Row],[Sujet]]="","","intérieur") ->  | F128: 03 - Terrassement | G128: =IF(LEN(Table119[[#This Row],[N°]])=2,"titre",IF(Table119[[#This Row],[Sujet]]="","non","non")) -> non | H128: =IF(LEN(Table119[[#This Row],[N°]])=2,"titre",IF(Table119[[#This Row],[Sujet]]="","non","non")) -> non | I128: =IF(LEN(Table119[[#This Row],[N°]])=2,"",IF(Table119[[#This Row],[Sujet]]="","","?")) -> 
B129: 03.17 | E129: =IF(Table119[[#This Row],[Sujet]]="","","intérieur") ->  | F129: 03 - Terrassement | G129: =IF(LEN(Table119[[#This Row],[N°]])=2,"titre",IF(Table119[[#This Row],[Sujet]]="","non","non")) -> non | H129: =IF(LEN(Table119[[#This Row],[N°]])=2,"titre",IF(Table119[[#This Row],[Sujet]]="","non","non")) -> non | I129: =IF(LEN(Table119[[#This Row],[N°]])=2,"",IF(Table119[[#This Row],[Sujet]]="","","?")) -> 
B130: 03.18 | E130: =IF(Table119[[#This Row],[Sujet]]="","","intérieur") ->  | F130: 03 - Terrassement | G130: =IF(LEN(Table119[[#This Row],[N°]])=2,"titre",IF(Table119[[#This Row],[Sujet]]="","non","non")) -> non | H130: =IF(LEN(Table119[[#This Row],[N°]])=2,"titre",IF(Table119[[#This Row],[Sujet]]="","non","non")) -> non | I130: =IF(LEN(Table119[[#This Row],[N°]])=2,"",IF(Table119[[#This Row],[Sujet]]="","","?")) -> 
B131: 03.19 | E131: =IF(Table119[[#This Row],[Sujet]]="","","intérieur") ->  | F131: 03 - Terrassement | G131: =IF(LEN(Table119[[#This Row],[N°]])=2,"titre",IF(Table119[[#This Row],[Sujet]]="","non","non")) -> non | H131: =IF(LEN(Table119[[#This Row],[N°]])=2,"titre",IF(Table119[[#This Row],[Sujet]]="","non","non")) -> non | I131: =IF(LEN(Table119[[#This Row],[N°]])=2,"",IF(Table119[[#This Row],[Sujet]]="","","?")) -> 
B132: 03.20 | E132: =IF(Table119[[#This Row],[Sujet]]="","","intérieur") ->  | F132: 03 - Terrassement | G132: =IF(LEN(Table119[[#This Row],[N°]])=2,"titre",IF(Table119[[#This Row],[Sujet]]="","non","non")) -> non | H132: =IF(LEN(Table119[[#This Row],[N°]])=2,"titre",IF(Table119[[#This Row],[Sujet]]="","non","non")) -> non | I132: =IF(LEN(Table119[[#This Row],[N°]])=2,"",IF(Table119[[#This Row],[Sujet]]="","","?")) -> 
E133: =IF(Table119[[#This Row],[Sujet]]="","","intérieur") ->  | F133: 03 - Terrassement | G133: =IF(LEN(Table119[[#This Row],[N°]])=2,"titre",IF(Table119[[#This Row],[Sujet]]="","non","non")) -> non | H133: =IF(LEN(Table119[[#This Row],[N°]])=2,"titre",IF(Table119[[#This Row],[Sujet]]="","non","non")) -> non | I133: =IF(LEN(Table119[[#This Row],[N°]])=2,"",IF(Table119[[#This Row],[Sujet]]="","","?")) -> 
B134: 04 | C134: GROS ŒUVRE - STRUCTURE - FONDATIONS | E134: titres | F134: 04 - Gros œuvre | G134: =IF(LEN(Table119[[#This Row],[N°]])=2,"titre",IF(Table119[[#This Row],[Sujet]]="","non","non")) -> titre | H134: =IF(LEN(Table119[[#This Row],[N°]])=2,"titre",IF(Table119[[#This Row],[Sujet]]="","non","non")) -> titre | I134: =IF(LEN(Table119[[#This Row],[N°]])=2,"",IF(Table119[[#This Row],[Sujet]]="","","?")) -> 
B135: 04.01 | C135: Bâtiment stable ? → fondations + dévers et fissures + mérule ou analogues + risque de dislocation → | E135: =IF(Table119[[#This Row],[Sujet]]="","","intérieur") -> intérieur | F135: =$F$134 -> 04 - Gros œuvre | G135: =IF(LEN(Table119[[#This Row],[N°]])=2,"titre",IF(Table119[[#This Row],[Sujet]]="","non","non")) -> non | H135: oui | I135: =IF(LEN(Table119[[#This Row],[N°]])=2,"",IF(Table119[[#This Row],[Sujet]]="","","?")) -> ?
B136: 04.02 | C136: Présence de lézardes / fissures inquiétantes ? | D136: dimensions / mesurage | E136: extérieur | F136: =$F$134 -> 04 - Gros œuvre | G136: =IF(LEN(Table119[[#This Row],[N°]])=2,"titre",IF(Table119[[#This Row],[Sujet]]="","non","non")) -> non | H136: oui | I136: =IF(LEN(Table119[[#This Row],[N°]])=2,"",IF(Table119[[#This Row],[Sujet]]="","","?")) -> ?
B137: 04.03 | C137: Besoin de placer des couvre-murs ? → position + type + dimensions → | D137: dimensions / mesurage | E137: =IF(Table119[[#This Row],[Sujet]]="","","intérieur") -> intérieur | F137: 04 - Gros œuvre | G137: oui | H137: non | I137: =IF(LEN(Table119[[#This Row],[N°]])=2,"",IF(Table119[[#This Row],[Sujet]]="","","?")) -> ?
B138: 04.04 | C138: Besoin de remplacer des seuils de fenêtre ? → position + type + dimensions → | D138: dimensions / mesurage | E138: =IF(Table119[[#This Row],[Sujet]]="","","intérieur") -> intérieur | F138: 04 - Gros œuvre | G138: oui | H138: oui | I138: =IF(LEN(Table119[[#This Row],[N°]])=2,"",IF(Table119[[#This Row],[Sujet]]="","","?")) -> ?
B139: 04.05 | C139: Remise de plancher à niveau à prévoir ? → type + mesurage → | D139: dimensions / mesurage | E139: questions | F139: 04 - Gros œuvre | G139: oui | H139: non | I139: =IF(LEN(Table119[[#This Row],[N°]])=2,"",IF(Table119[[#This Row],[Sujet]]="","","?")) -> ?
B140: 04.06 | C140: Volonté de renforcement de murs instables ? | E140: questions | F140: 04 - Gros œuvre | G140: =IF(LEN(Table119[[#This Row],[N°]])=2,"titre",IF(Table119[[#This Row],[Sujet]]="","non","non")) -> non | H140: =IF(LEN(Table119[[#This Row],[N°]])=2,"titre",IF(Table119[[#This Row],[Sujet]]="","non","non")) -> non | I140: =IF(LEN(Table119[[#This Row],[N°]])=2,"",IF(Table119[[#This Row],[Sujet]]="","","?")) -> ?
B141: 04.07 | E141: =IF(Table119[[#This Row],[Sujet]]="","","intérieur") ->  | F141: 04 - Gros œuvre | G141: =IF(LEN(Table119[[#This Row],[N°]])=2,"titre",IF(Table119[[#This Row],[Sujet]]="","non","non")) -> non | H141: =IF(LEN(Table119[[#This Row],[N°]])=2,"titre",IF(Table119[[#This Row],[Sujet]]="","non","non")) -> non | I141: =IF(LEN(Table119[[#This Row],[N°]])=2,"",IF(Table119[[#This Row],[Sujet]]="","","?")) -> 
B142: 04.08 | E142: =IF(Table119[[#This Row],[Sujet]]="","","intérieur") ->  | F142: 04 - Gros œuvre | G142: =IF(LEN(Table119[[#This Row],[N°]])=2,"titre",IF(Table119[[#This Row],[Sujet]]="","non","non")) -> non | H142: =IF(LEN(Table119[[#This Row],[N°]])=2,"titre",IF(Table119[[#This Row],[Sujet]]="","non","non")) -> non | I142: =IF(LEN(Table119[[#This Row],[N°]])=2,"",IF(Table119[[#This Row],[Sujet]]="","","?")) -> 
B143: 04.09 | E143: =IF(Table119[[#This Row],[Sujet]]="","","intérieur") ->  | F143: 04 - Gros œuvre | G143: =IF(LEN(Table119[[#This Row],[N°]])=2,"titre",IF(Table119[[#This Row],[Sujet]]="","non","non")) -> non | H143: =IF(LEN(Table119[[#This Row],[N°]])=2,"titre",IF(Table119[[#This Row],[Sujet]]="","non","non")) -> non | I143: =IF(LEN(Table119[[#This Row],[N°]])=2,"",IF(Table119[[#This Row],[Sujet]]="","","?")) -> 
B144: 04.10 | E144: =IF(Table119[[#This Row],[Sujet]]="","","intérieur") ->  | F144: 04 - Gros œuvre | G144: =IF(LEN(Table119[[#This Row],[N°]])=2,"titre",IF(Table119[[#This Row],[Sujet]]="","non","non")) -> non | H144: =IF(LEN(Table119[[#This Row],[N°]])=2,"titre",IF(Table119[[#This Row],[Sujet]]="","non","non")) -> non | I144: =IF(LEN(Table119[[#This Row],[N°]])=2,"",IF(Table119[[#This Row],[Sujet]]="","","?")) -> 
B145: 04.11 | E145: =IF(Table119[[#This Row],[Sujet]]="","","intérieur") ->  | F145: 04 - Gros œuvre | G145: =IF(LEN(Table119[[#This Row],[N°]])=2,"titre",IF(Table119[[#This Row],[Sujet]]="","non","non")) -> non | H145: =IF(LEN(Table119[[#This Row],[N°]])=2,"titre",IF(Table119[[#This Row],[Sujet]]="","non","non")) -> non | I145: =IF(LEN(Table119[[#This Row],[N°]])=2,"",IF(Table119[[#This Row],[Sujet]]="","","?")) -> 
B146: 04.12 | E146: =IF(Table119[[#This Row],[Sujet]]="","","intérieur") ->  | F146: 04 - Gros œuvre | G146: =IF(LEN(Table119[[#This Row],[N°]])=2,"titre",IF(Table119[[#This Row],[Sujet]]="","non","non")) -> non | H146: =IF(LEN(Table119[[#This Row],[N°]])=2,"titre",IF(Table119[[#This Row],[Sujet]]="","non","non")) -> non | I146: =IF(LEN(Table119[[#This Row],[N°]])=2,"",IF(Table119[[#This Row],[Sujet]]="","","?")) -> 
B147: 04.13 | E147: =IF(Table119[[#This Row],[Sujet]]="","","intérieur") ->  | F147: 04 - Gros œuvre | G147: =IF(LEN(Table119[[#This Row],[N°]])=2,"titre",IF(Table119[[#This Row],[Sujet]]="","non","non")) -> non | H147: =IF(LEN(Table119[[#This Row],[N°]])=2,"titre",IF(Table119[[#This Row],[Sujet]]="","non","non")) -> non | I147: =IF(LEN(Table119[[#This Row],[N°]])=2,"",IF(Table119[[#This Row],[Sujet]]="","","?")) -> 
B148: 04.14 | E148: =IF(Table119[[#This Row],[Sujet]]="","","intérieur") ->  | F148: 04 - Gros œuvre | G148: =IF(LEN(Table119[[#This Row],[N°]])=2,"titre",IF(Table119[[#This Row],[Sujet]]="","non","non")) -> non | H148: =IF(LEN(Table119[[#This Row],[N°]])=2,"titre",IF(Table119[[#This Row],[Sujet]]="","non","non")) -> non | I148: =IF(LEN(Table119[[#This Row],[N°]])=2,"",IF(Table119[[#This Row],[Sujet]]="","","?")) -> 
B149: 04.15 | E149: =IF(Table119[[#This Row],[Sujet]]="","","intérieur") ->  | F149: 04 - Gros œuvre | G149: =IF(LEN(Table119[[#This Row],[N°]])=2,"titre",IF(Table119[[#This Row],[Sujet]]="","non","non")) -> non | H149: =IF(LEN(Table119[[#This Row],[N°]])=2,"titre",IF(Table119[[#This Row],[Sujet]]="","non","non")) -> non | I149: =IF(LEN(Table119[[#This Row],[N°]])=2,"",IF(Table119[[#This Row],[Sujet]]="","","?")) -> 
B150: 04.16 | E150: =IF(Table119[[#This Row],[Sujet]]="","","intérieur") ->  | F150: 04 - Gros œuvre | G150: =IF(LEN(Table119[[#This Row],[N°]])=2,"titre",IF(Table119[[#This Row],[Sujet]]="","non","non")) -> non | H150: =IF(LEN(Table119[[#This Row],[N°]])=2,"titre",IF(Table119[[#This Row],[Sujet]]="","non","non")) -> non | I150: =IF(LEN(Table119[[#This Row],[N°]])=2,"",IF(Table119[[#This Row],[Sujet]]="","","?")) -> 
B151: 04.17 | E151: =IF(Table119[[#This Row],[Sujet]]="","","intérieur") ->  | F151: 04 - Gros œuvre | G151: =IF(LEN(Table119[[#This Row],[N°]])=2,"titre",IF(Table119[[#This Row],[Sujet]]="","non","non")) -> non | H151: =IF(LEN(Table119[[#This Row],[N°]])=2,"titre",IF(Table119[[#This Row],[Sujet]]="","non","non")) -> non | I151: =IF(LEN(Table119[[#This Row],[N°]])=2,"",IF(Table119[[#This Row],[Sujet]]="","","?")) -> 
B152: 04.18 | E152: =IF(Table119[[#This Row],[Sujet]]="","","intérieur") ->  | F152: 04 - Gros œuvre | G152: =IF(LEN(Table119[[#This Row],[N°]])=2,"titre",IF(Table119[[#This Row],[Sujet]]="","non","non")) -> non | H152: =IF(LEN(Table119[[#This Row],[N°]])=2,"titre",IF(Table119[[#This Row],[Sujet]]="","non","non")) -> non | I152: =IF(LEN(Table119[[#This Row],[N°]])=2,"",IF(Table119[[#This Row],[Sujet]]="","","?")) -> 
B153: 04.19 | E153: =IF(Table119[[#This Row],[Sujet]]="","","intérieur") ->  | F153: 04 - Gros œuvre | G153: =IF(LEN(Table119[[#This Row],[N°]])=2,"titre",IF(Table119[[#This Row],[Sujet]]="","non","non")) -> non | H153: =IF(LEN(Table119[[#This Row],[N°]])=2,"titre",IF(Table119[[#This Row],[Sujet]]="","non","non")) -> non | I153: =IF(LEN(Table119[[#This Row],[N°]])=2,"",IF(Table119[[#This Row],[Sujet]]="","","?")) -> 
B154: 04.20 | E154: =IF(Table119[[#This Row],[Sujet]]="","","intérieur") ->  | F154: 04 - Gros œuvre | G154: =IF(LEN(Table119[[#This Row],[N°]])=2,"titre",IF(Table119[[#This Row],[Sujet]]="","non","non")) -> non | H154: =IF(LEN(Table119[[#This Row],[N°]])=2,"titre",IF(Table119[[#This Row],[Sujet]]="","non","non")) -> non | I154: =IF(LEN(Table119[[#This Row],[N°]])=2,"",IF(Table119[[#This Row],[Sujet]]="","","?")) -> 
E155: =IF(Table119[[#This Row],[Sujet]]="","","intérieur") ->  | F155: 04 - Gros œuvre | G155: =IF(LEN(Table119[[#This Row],[N°]])=2,"titre",IF(Table119[[#This Row],[Sujet]]="","non","non")) -> non | H155: =IF(LEN(Table119[[#This Row],[N°]])=2,"titre",IF(Table119[[#This Row],[Sujet]]="","non","non")) -> non | I155: =IF(LEN(Table119[[#This Row],[N°]])=2,"",IF(Table119[[#This Row],[Sujet]]="","","?")) -> 
B156: 05 | C156: TOITURE - CHARPENTE & COUVERTURE | E156: titres | F156: 05 - Toiture | G156: =IF(LEN(Table119[[#This Row],[N°]])=2,"titre",IF(Table119[[#This Row],[Sujet]]="","non","non")) -> titre | H156: =IF(LEN(Table119[[#This Row],[N°]])=2,"titre",IF(Table119[[#This Row],[Sujet]]="","non","non")) -> titre | I156: =IF(LEN(Table119[[#This Row],[N°]])=2,"",IF(Table119[[#This Row],[Sujet]]="","","?")) -> 
B157: 05.01 | C157: Nombre et type de toitures + revêtement ? → plate/inclinée + mesurage + orientation/exposition → | E157: extérieur | F157: =$F$156 -> 05 - Toiture | G157: =IF(LEN(Table119[[#This Row],[N°]])=2,"titre",IF(Table119[[#This Row],[Sujet]]="","non","non")) -> non | H157: oui | I157: =IF(LEN(Table119[[#This Row],[N°]])=2,"",IF(Table119[[#This Row],[Sujet]]="","","?")) -> ?
B158: 05.02 | C158: Besoin de démousser les toitures ? | D158: dimensions / mesurage | E158: extérieur | F158: =$F$156 -> 05 - Toiture | G158: =IF(LEN(Table119[[#This Row],[N°]])=2,"titre",IF(Table119[[#This Row],[Sujet]]="","non","non")) -> non | H158: oui | I158: =IF(LEN(Table119[[#This Row],[N°]])=2,"",IF(Table119[[#This Row],[Sujet]]="","","?")) -> ?
B159: 05.03 | C159: Charpente stable ? | E159: combles | F159: 05 - Toiture | G159: =IF(LEN(Table119[[#This Row],[N°]])=2,"titre",IF(Table119[[#This Row],[Sujet]]="","non","non")) -> non | H159: oui | I159: =IF(LEN(Table119[[#This Row],[N°]])=2,"",IF(Table119[[#This Row],[Sujet]]="","","?")) -> ?
B160: 05.04 | C160: Attaque de champignons ou insectes xylophages (ou doute de problème → charpentes et autres bois "durs") ? | D160: 📏 | E160: combles | F160: 05 - Toiture | G160: =IF(LEN(Table119[[#This Row],[N°]])=2,"titre",IF(Table119[[#This Row],[Sujet]]="","non","non")) -> non | H160: oui | I160: =IF(LEN(Table119[[#This Row],[N°]])=2,"",IF(Table119[[#This Row],[Sujet]]="","","?")) -> ?
B161: 05.05 | C161: Dimensions des chevrons → dimensions : Largeur / Profondeur → | D161: dimensions / mesurage | E161: combles | F161: 05 - Toiture | G161: =IF(LEN(Table119[[#This Row],[N°]])=2,"titre",IF(Table119[[#This Row],[Sujet]]="","non","non")) -> non | H161: oui | I161: =IF(LEN(Table119[[#This Row],[N°]])=2,"",IF(Table119[[#This Row],[Sujet]]="","","?")) -> ?
B162: 05.06 | C162: Dimensions des pannes → dimensions : Largeur / Profondeur / section / portée → | D162: dimensions / mesurage 📏 | E162: combles | F162: 05 - Toiture | G162: =IF(LEN(Table119[[#This Row],[N°]])=2,"titre",IF(Table119[[#This Row],[Sujet]]="","non","non")) -> non | H162: oui | I162: =IF(LEN(Table119[[#This Row],[N°]])=2,"",IF(Table119[[#This Row],[Sujet]]="","","?")) -> ?
B163: 05.07 | C163: Sous-toiture étanche ? → matière + état → | D163: 🔦 | E163: combles | F163: 05 - Toiture | G163: =IF(LEN(Table119[[#This Row],[N°]])=2,"titre",IF(Table119[[#This Row],[Sujet]]="","non","non")) -> non | H163: oui | I163: =IF(LEN(Table119[[#This Row],[N°]])=2,"",IF(Table119[[#This Row],[Sujet]]="","","?")) -> ?
B164: 05.08 | C164: Corps de cheminée extérieur en bon état et étanche ? | E164: combles | F164: 05 - Toiture | G164: =IF(LEN(Table119[[#This Row],[N°]])=2,"titre",IF(Table119[[#This Row],[Sujet]]="","non","non")) -> non | H164: oui | I164: =IF(LEN(Table119[[#This Row],[N°]])=2,"",IF(Table119[[#This Row],[Sujet]]="","","?")) -> ?
B165: 05.09 | C165: Amiante (ou doute d'amiante) → revêtement de couverture ? Sous-toiture ? → | D165: dimensions / mesurage 📏 | E165: combles | F165: 05 - Toiture | G165: =IF(LEN(Table119[[#This Row],[N°]])=2,"titre",IF(Table119[[#This Row],[Sujet]]="","non","non")) -> non | H165: oui | I165: =IF(LEN(Table119[[#This Row],[N°]])=2,"",IF(Table119[[#This Row],[Sujet]]="","","?")) -> ?
B166: 05.10 | C166: Equipements de toiture ? (sortie ventilation / chaudière / tuile à douille / …) | E166: combles | F166: 05 - Toiture | G166: =IF(LEN(Table119[[#This Row],[N°]])=2,"titre",IF(Table119[[#This Row],[Sujet]]="","non","non")) -> non | H166: oui | I166: =IF(LEN(Table119[[#This Row],[N°]])=2,"",IF(Table119[[#This Row],[Sujet]]="","","?")) -> ?
B167: 05.11 | C167: Présence de noues / solins / … ? → état + mesurage → | D167: dimensions / mesurage | E167: extérieur | F167: 05 - Toiture | G167: =IF(LEN(Table119[[#This Row],[N°]])=2,"titre",IF(Table119[[#This Row],[Sujet]]="","non","non")) -> non | H167: oui | I167: =IF(LEN(Table119[[#This Row],[N°]])=2,"",IF(Table119[[#This Row],[Sujet]]="","","?")) -> ?
B168: 05.12 | C168: Présence de lucarnes / chien-assis ? → état + dimensions → | D168: dimensions / mesurage | E168: combles | F168: 05 - Toiture | G168: oui | H168: oui | I168: =IF(LEN(Table119[[#This Row],[N°]])=2,"",IF(Table119[[#This Row],[Sujet]]="","","?")) -> ?
B169: 05.13 | C169: Gouttières ? → état + dimensions + matériau + encombrement ? → | D169: dimensions / mesurage Ꙭ | E169: extérieur | F169: 05 - Toiture | G169: oui | H169: =IF(LEN(Table119[[#This Row],[N°]])=2,"titre",IF(Table119[[#This Row],[Sujet]]="","non","non")) -> non | I169: =IF(LEN(Table119[[#This Row],[N°]])=2,"",IF(Table119[[#This Row],[Sujet]]="","","?")) -> ?
B170: 05.14 | C170: Descentes pluviales ? → état + dimensions + matériau + diamètre → | D170: dimensions / mesurage Ꙭ | E170: extérieur | F170: 05 - Toiture | G170: oui | H170: =IF(LEN(Table119[[#This Row],[N°]])=2,"titre",IF(Table119[[#This Row],[Sujet]]="","non","non")) -> non | I170: =IF(LEN(Table119[[#This Row],[N°]])=2,"",IF(Table119[[#This Row],[Sujet]]="","","?")) -> ?
B171: 05.15 | C171: Rives ? → état + dimensions + matériau → | D171: dimensions / mesurage Ꙭ | E171: extérieur | F171: 05 - Toiture | G171: oui | H171: =IF(LEN(Table119[[#This Row],[N°]])=2,"titre",IF(Table119[[#This Row],[Sujet]]="","non","non")) -> non | I171: =IF(LEN(Table119[[#This Row],[N°]])=2,"",IF(Table119[[#This Row],[Sujet]]="","","?")) -> ?
B172: 05.16 | C172: Débords de toitures ? → état + dimensions + matériau + sous-face ? → | D172: dimensions / mesurage Ꙭ | E172: extérieur | F172: 05 - Toiture | G172: oui | H172: =IF(LEN(Table119[[#This Row],[N°]])=2,"titre",IF(Table119[[#This Row],[Sujet]]="","non","non")) -> non | I172: =IF(LEN(Table119[[#This Row],[N°]])=2,"",IF(Table119[[#This Row],[Sujet]]="","","?")) -> ?
B173: 05.17 | C173: Panneaux photovoltaïques ? → nombre + position + puissance → | D173: Ꙭ | E173: extérieur | F173: 05 - Toiture | G173: =IF(LEN(Table119[[#This Row],[N°]])=2,"titre",IF(Table119[[#This Row],[Sujet]]="","non","non")) -> non | H173: oui | I173: =IF(LEN(Table119[[#This Row],[N°]])=2,"",IF(Table119[[#This Row],[Sujet]]="","","?")) -> ?
B174: 05.18 | C174: Corps de cheminée extérieur en bon état ? (présence de chapeau de cheminée) | E174: extérieur | F174: 05 - Toiture | G174: =IF(LEN(Table119[[#This Row],[N°]])=2,"titre",IF(Table119[[#This Row],[Sujet]]="","non","non")) -> non | H174: oui | I174: =IF(LEN(Table119[[#This Row],[N°]])=2,"",IF(Table119[[#This Row],[Sujet]]="","","?")) -> ?
B175: 05.19 | C175: Mesurer les combles manuellement (si les combles sont trop encombrées) | D175: dimensions / mesurage 📏 | E175: combles | F175: 05 - Toiture | G175: =IF(LEN(Table119[[#This Row],[N°]])=2,"titre",IF(Table119[[#This Row],[Sujet]]="","non","non")) -> non | H175: oui | I175: =IF(LEN(Table119[[#This Row],[N°]])=2,"",IF(Table119[[#This Row],[Sujet]]="","","?")) -> ?
B176: 05.20 | C176: Problèmes constatés dans la toiture par le CR | E176: questions | F176: 05 - Toiture | G176: =IF(LEN(Table119[[#This Row],[N°]])=2,"titre",IF(Table119[[#This Row],[Sujet]]="","non","non")) -> non | H176: =IF(LEN(Table119[[#This Row],[N°]])=2,"titre",IF(Table119[[#This Row],[Sujet]]="","non","non")) -> non | I176: =IF(LEN(Table119[[#This Row],[N°]])=2,"",IF(Table119[[#This Row],[Sujet]]="","","?")) -> ?
B177: 05.21 | C177: Avez-vous l'intention d'aménager les combles utlérieurement? | E177: questions | F177: 05 - Toiture | G177: =IF(LEN(Table119[[#This Row],[N°]])=2,"titre",IF(Table119[[#This Row],[Sujet]]="","non","non")) -> non | H177: =IF(LEN(Table119[[#This Row],[N°]])=2,"titre",IF(Table119[[#This Row],[Sujet]]="","non","non")) -> non | I177: =IF(LEN(Table119[[#This Row],[N°]])=2,"",IF(Table119[[#This Row],[Sujet]]="","","?")) -> ?
B178: 05.22 | C178: Volonté de modification / renforcement de la charpente? | E178: questions | F178: 05 - Toiture | G178: =IF(LEN(Table119[[#This Row],[N°]])=2,"titre",IF(Table119[[#This Row],[Sujet]]="","non","non")) -> non | H178: =IF(LEN(Table119[[#This Row],[N°]])=2,"titre",IF(Table119[[#This Row],[Sujet]]="","non","non")) -> non | I178: =IF(LEN(Table119[[#This Row],[N°]])=2,"",IF(Table119[[#This Row],[Sujet]]="","","?")) -> ?
B179: 05.23 | C179: Volonté de remplacement des dispositifs de collecte des eaux pluviales | E179: questions | F179: 05 - Toiture | G179: =IF(LEN(Table119[[#This Row],[N°]])=2,"titre",IF(Table119[[#This Row],[Sujet]]="","non","non")) -> non | H179: =IF(LEN(Table119[[#This Row],[N°]])=2,"titre",IF(Table119[[#This Row],[Sujet]]="","non","non")) -> non | I179: =IF(LEN(Table119[[#This Row],[N°]])=2,"",IF(Table119[[#This Row],[Sujet]]="","","?")) -> ?
B180: 05.24 | E180: =IF(Table119[[#This Row],[Sujet]]="","","intérieur") ->  | F180: 05 - Toiture | G180: =IF(LEN(Table119[[#This Row],[N°]])=2,"titre",IF(Table119[[#This Row],[Sujet]]="","non","non")) -> non | H180: =IF(LEN(Table119[[#This Row],[N°]])=2,"titre",IF(Table119[[#This Row],[Sujet]]="","non","non")) -> non | I180: =IF(LEN(Table119[[#This Row],[N°]])=2,"",IF(Table119[[#This Row],[Sujet]]="","","?")) -> 
B181: 05.25 | E181: =IF(Table119[[#This Row],[Sujet]]="","","intérieur") ->  | F181: 05 - Toiture | G181: =IF(LEN(Table119[[#This Row],[N°]])=2,"titre",IF(Table119[[#This Row],[Sujet]]="","non","non")) -> non | H181: =IF(LEN(Table119[[#This Row],[N°]])=2,"titre",IF(Table119[[#This Row],[Sujet]]="","non","non")) -> non | I181: =IF(LEN(Table119[[#This Row],[N°]])=2,"",IF(Table119[[#This Row],[Sujet]]="","","?")) -> 
E182: =IF(Table119[[#This Row],[Sujet]]="","","intérieur") ->  | F182: 05 - Toiture | G182: =IF(LEN(Table119[[#This Row],[N°]])=2,"titre",IF(Table119[[#This Row],[Sujet]]="","non","non")) -> non | H182: =IF(LEN(Table119[[#This Row],[N°]])=2,"titre",IF(Table119[[#This Row],[Sujet]]="","non","non")) -> non | I182: =IF(LEN(Table119[[#This Row],[N°]])=2,"",IF(Table119[[#This Row],[Sujet]]="","","?")) -> 
B183: 06 | C183: ISOLATION - ETANCHEITE | E183: titres | F183: 06 - Isolation & étanchéité | G183: =IF(LEN(Table119[[#This Row],[N°]])=2,"titre",IF(Table119[[#This Row],[Sujet]]="","non","non")) -> titre | H183: =IF(LEN(Table119[[#This Row],[N°]])=2,"titre",IF(Table119[[#This Row],[Sujet]]="","non","non")) -> titre | I183: =IF(LEN(Table119[[#This Row],[N°]])=2,"",IF(Table119[[#This Row],[Sujet]]="","","?")) -> 
B184: 06.01 | C184: Présence d'isolant mural (intérieur ou extérieur)? → épaisseur + type + position + état → | D184: dimensions / mesurage | E184: questions | F184: =$F$183 -> 06 - Isolation & étanchéité | G184: =IF(LEN(Table119[[#This Row],[N°]])=2,"titre",IF(Table119[[#This Row],[Sujet]]="","non","non")) -> non | H184: oui | I184: =IF(LEN(Table119[[#This Row],[N°]])=2,"",IF(Table119[[#This Row],[Sujet]]="","","?")) -> ?
B185: 06.02 | C185: Présence d'isolant toiture ? → épaisseur + type + position + état + pare-vapeur → | D185: dimensions / mesurage | E185: combles | F185: =$F$183 -> 06 - Isolation & étanchéité | G185: =IF(LEN(Table119[[#This Row],[N°]])=2,"titre",IF(Table119[[#This Row],[Sujet]]="","non","non")) -> non | H185: oui | I185: =IF(LEN(Table119[[#This Row],[N°]])=2,"",IF(Table119[[#This Row],[Sujet]]="","","?")) -> ?
B186: 06.03 | C186: Présence d'isolant sol (intérieur ou extérieur)? → épaisseur + type + position + état → | D186: dimensions / mesurage | E186: questions | F186: 06 - Isolation & étanchéité | G186: =IF(LEN(Table119[[#This Row],[N°]])=2,"titre",IF(Table119[[#This Row],[Sujet]]="","non","non")) -> non | H186: oui | I186: =IF(LEN(Table119[[#This Row],[N°]])=2,"",IF(Table119[[#This Row],[Sujet]]="","","?")) -> ?
B187: 06.04 | C187: Présence d'isolant sur tuyaux d'alimentation en eau chaude (sanitaire et chauffage) ? → type + état → | D187: Ꙭ | E187: caves | F187: 06 - Isolation & étanchéité | G187: =IF(LEN(Table119[[#This Row],[N°]])=2,"titre",IF(Table119[[#This Row],[Sujet]]="","non","non")) -> non | H187: oui | I187: =IF(LEN(Table119[[#This Row],[N°]])=2,"",IF(Table119[[#This Row],[Sujet]]="","","?")) -> ?
B188: 06.05 | C188: Vérifier étanchéité façades ? (porosité, infiltrations, …) → constat visuel → | D188: dimensions / mesurage | E188: extérieur | F188: 06 - Isolation & étanchéité | G188: =IF(LEN(Table119[[#This Row],[N°]])=2,"titre",IF(Table119[[#This Row],[Sujet]]="","non","non")) -> non | H188: oui | I188: =IF(LEN(Table119[[#This Row],[N°]])=2,"",IF(Table119[[#This Row],[Sujet]]="","","?")) -> ?
B189: 06.06 | C189: Etanchéité toiture ? | E189: combles | F189: 06 - Isolation & étanchéité | G189: =IF(LEN(Table119[[#This Row],[N°]])=2,"titre",IF(Table119[[#This Row],[Sujet]]="","non","non")) -> non | H189: oui | I189: =IF(LEN(Table119[[#This Row],[N°]])=2,"",IF(Table119[[#This Row],[Sujet]]="","","?")) -> ?
B190: 06.07 | C190: Etanchéité des contours de menuiseries extérieures ? → constat visuel → | D190: dimensions / mesurage | E190: =IF(Table119[[#This Row],[Sujet]]="","","intérieur") -> intérieur | F190: 06 - Isolation & étanchéité | G190: =IF(LEN(Table119[[#This Row],[N°]])=2,"titre",IF(Table119[[#This Row],[Sujet]]="","non","non")) -> non | H190: oui | I190: =IF(LEN(Table119[[#This Row],[N°]])=2,"",IF(Table119[[#This Row],[Sujet]]="","","?")) -> ?
B191: 06.08 | C191: Isolation des contours de menuiseries extérieures ? (sondage auditif) | D191: dimensions / mesurage | E191: =IF(Table119[[#This Row],[Sujet]]="","","intérieur") -> intérieur | F191: 06 - Isolation & étanchéité | G191: =IF(LEN(Table119[[#This Row],[N°]])=2,"titre",IF(Table119[[#This Row],[Sujet]]="","non","non")) -> non | H191: oui | I191: =IF(LEN(Table119[[#This Row],[N°]])=2,"",IF(Table119[[#This Row],[Sujet]]="","","?")) -> ?
B192: 06.09 | C192: Humidité dans les murs ? (Par infiltration, ascensionnelle, par condensation (quid ventilation de ces espaces ?)) | D192: dimensions / mesurage 📏 (voir 00.28) | E192: =IF(Table119[[#This Row],[Sujet]]="","","intérieur") -> intérieur | F192: 06 - Isolation & étanchéité | G192: =IF(LEN(Table119[[#This Row],[N°]])=2,"titre",IF(Table119[[#This Row],[Sujet]]="","non","non")) -> non | H192: oui | I192: =IF(LEN(Table119[[#This Row],[N°]])=2,"",IF(Table119[[#This Row],[Sujet]]="","","?")) -> ?
B193: 06.10 | C193: Possibilité d'isoler la dalle de sol par l'extérieur ? | E193: caves | F193: 06 - Isolation & étanchéité | G193: =IF(LEN(Table119[[#This Row],[N°]])=2,"titre",IF(Table119[[#This Row],[Sujet]]="","non","non")) -> non | H193: oui | I193: =IF(LEN(Table119[[#This Row],[N°]])=2,"",IF(Table119[[#This Row],[Sujet]]="","","?")) -> ?
B194: 06.11 | C194: Présence de spots encastrés dans le plancher des combles ? → nombre → (si isolation plancher des combles : caissons) | E194: combles | F194: 06 - Isolation & étanchéité | G194: oui | H194: oui | I194: =IF(LEN(Table119[[#This Row],[N°]])=2,"",IF(Table119[[#This Row],[Sujet]]="","","?")) -> ?
B195: 06.12 | C195: Volonté d'isolation thermique des sols ou des murs? (intérieur/extérieur?) | E195: questions | F195: 06 - Isolation & étanchéité | G195: =IF(LEN(Table119[[#This Row],[N°]])=2,"titre",IF(Table119[[#This Row],[Sujet]]="","non","non")) -> non | H195: =IF(LEN(Table119[[#This Row],[N°]])=2,"titre",IF(Table119[[#This Row],[Sujet]]="","non","non")) -> non | I195: =IF(LEN(Table119[[#This Row],[N°]])=2,"",IF(Table119[[#This Row],[Sujet]]="","","?")) -> ?
B196: 06.13 | C196: Volonté de travaux d'assèchement des murs ou d'élimination des problèmes de condensation ? | E196: questions | F196: 06 - Isolation & étanchéité | G196: =IF(LEN(Table119[[#This Row],[N°]])=2,"titre",IF(Table119[[#This Row],[Sujet]]="","non","non")) -> non | H196: =IF(LEN(Table119[[#This Row],[N°]])=2,"titre",IF(Table119[[#This Row],[Sujet]]="","non","non")) -> non | I196: =IF(LEN(Table119[[#This Row],[N°]])=2,"",IF(Table119[[#This Row],[Sujet]]="","","?")) -> ?
B197: 06.14 | E197: =IF(Table119[[#This Row],[Sujet]]="","","intérieur") ->  | F197: 06 - Isolation & étanchéité | G197: =IF(LEN(Table119[[#This Row],[N°]])=2,"titre",IF(Table119[[#This Row],[Sujet]]="","non","non")) -> non | H197: =IF(LEN(Table119[[#This Row],[N°]])=2,"titre",IF(Table119[[#This Row],[Sujet]]="","non","non")) -> non | I197: =IF(LEN(Table119[[#This Row],[N°]])=2,"",IF(Table119[[#This Row],[Sujet]]="","","?")) -> 
B198: 06.15 | E198: =IF(Table119[[#This Row],[Sujet]]="","","intérieur") ->  | F198: 06 - Isolation & étanchéité | G198: =IF(LEN(Table119[[#This Row],[N°]])=2,"titre",IF(Table119[[#This Row],[Sujet]]="","non","non")) -> non | H198: =IF(LEN(Table119[[#This Row],[N°]])=2,"titre",IF(Table119[[#This Row],[Sujet]]="","non","non")) -> non | I198: =IF(LEN(Table119[[#This Row],[N°]])=2,"",IF(Table119[[#This Row],[Sujet]]="","","?")) -> 
B199: 06.16 | E199: =IF(Table119[[#This Row],[Sujet]]="","","intérieur") ->  | F199: 06 - Isolation & étanchéité | G199: =IF(LEN(Table119[[#This Row],[N°]])=2,"titre",IF(Table119[[#This Row],[Sujet]]="","non","non")) -> non | H199: =IF(LEN(Table119[[#This Row],[N°]])=2,"titre",IF(Table119[[#This Row],[Sujet]]="","non","non")) -> non | I199: =IF(LEN(Table119[[#This Row],[N°]])=2,"",IF(Table119[[#This Row],[Sujet]]="","","?")) -> 
B200: 06.17 | E200: =IF(Table119[[#This Row],[Sujet]]="","","intérieur") ->  | F200: 06 - Isolation & étanchéité | G200: =IF(LEN(Table119[[#This Row],[N°]])=2,"titre",IF(Table119[[#This Row],[Sujet]]="","non","non")) -> non | H200: =IF(LEN(Table119[[#This Row],[N°]])=2,"titre",IF(Table119[[#This Row],[Sujet]]="","non","non")) -> non | I200: =IF(LEN(Table119[[#This Row],[N°]])=2,"",IF(Table119[[#This Row],[Sujet]]="","","?")) -> 
B201: 06.18 | E201: =IF(Table119[[#This Row],[Sujet]]="","","intérieur") ->  | F201: 06 - Isolation & étanchéité | G201: =IF(LEN(Table119[[#This Row],[N°]])=2,"titre",IF(Table119[[#This Row],[Sujet]]="","non","non")) -> non | H201: =IF(LEN(Table119[[#This Row],[N°]])=2,"titre",IF(Table119[[#This Row],[Sujet]]="","non","non")) -> non | I201: =IF(LEN(Table119[[#This Row],[N°]])=2,"",IF(Table119[[#This Row],[Sujet]]="","","?")) -> 
B202: 06.19 | E202: =IF(Table119[[#This Row],[Sujet]]="","","intérieur") ->  | F202: 06 - Isolation & étanchéité | G202: =IF(LEN(Table119[[#This Row],[N°]])=2,"titre",IF(Table119[[#This Row],[Sujet]]="","non","non")) -> non | H202: =IF(LEN(Table119[[#This Row],[N°]])=2,"titre",IF(Table119[[#This Row],[Sujet]]="","non","non")) -> non | I202: =IF(LEN(Table119[[#This Row],[N°]])=2,"",IF(Table119[[#This Row],[Sujet]]="","","?")) -> 
... 336 more rows

Sheet Graphiques & Synthèse (hidden)
B2: # | C2: Description | D2: Prix de vente TTC | E2: Prix de vente HTVA
B3: 00 | C3: =VLOOKUP('Graphiques & Synthèse'!B3,Offer[],2) -> INSTALLATION & GENERALITES DE CHANTIER | D3: =IFERROR(E3*(1+Paramétrage!$D$37),NA()) ->  | E3: =IFERROR(IF(VLOOKUP('Graphiques & Synthèse'!B3,Offer[],11)=0,NA(),VLOOKUP('Graphiques & Synthèse'!B3,Offer[],11)),NA()) -> 
B4: 01 | C4: =VLOOKUP('Graphiques & Synthèse'!B4,Offer[],2) -> DEMOLITION | D4: =IFERROR(E4*(1+Paramétrage!$D$37),NA()) ->  | E4: =IFERROR(IF(VLOOKUP('Graphiques & Synthèse'!B4,Offer[],11)=0,NA(),VLOOKUP('Graphiques & Synthèse'!B4,Offer[],11)),NA()) -> 
B5: 02 | C5: =VLOOKUP('Graphiques & Synthèse'!B5,Offer[],2) -> EGOUTTAGE | D5: =IFERROR(E5*(1+Paramétrage!$D$37),NA()) ->  | E5: =IFERROR(IF(VLOOKUP('Graphiques & Synthèse'!B5,Offer[],11)=0,NA(),VLOOKUP('Graphiques & Synthèse'!B5,Offer[],11)),NA()) -> 
B6: 03 | C6: =VLOOKUP('Graphiques & Synthèse'!B6,Offer[],2) -> TERRASSEMENT | D6: =IFERROR(E6*(1+Paramétrage!$D$37),NA()) ->  | E6: =IFERROR(IF(VLOOKUP('Graphiques & Synthèse'!B6,Offer[],11)=0,NA(),VLOOKUP('Graphiques & Synthèse'!B6,Offer[],11)),NA()) -> 
B7: 04 | C7: =VLOOKUP('Graphiques & Synthèse'!B7,Offer[],2) -> GROS ŒUVRE - STRUCTURE - FONDATIONS | D7: =IFERROR(E7*(1+Paramétrage!$D$37),NA()) ->  | E7: =IFERROR(IF(VLOOKUP('Graphiques & Synthèse'!B7,Offer[],11)=0,NA(),VLOOKUP('Graphiques & Synthèse'!B7,Offer[],11)),NA()) -> 
B8: 05 | C8: =VLOOKUP('Graphiques & Synthèse'!B8,Offer[],2) -> TOITURE - CHARPENTE & COUVERTURE | D8: =IFERROR(E8*(1+Paramétrage!$D$37),NA()) ->  | E8: =IFERROR(IF(VLOOKUP('Graphiques & Synthèse'!B8,Offer[],11)=0,NA(),VLOOKUP('Graphiques & Synthèse'!B8,Offer[],11)),NA()) -> 
B9: 06 | C9: =VLOOKUP('Graphiques & Synthèse'!B9,Offer[],2) -> ISOLATION - ETANCHEITE | D9: =IFERROR(E9*(1+Paramétrage!$D$37),NA()) ->  | E9: =IFERROR(IF(VLOOKUP('Graphiques & Synthèse'!B9,Offer[],11)=0,NA(),VLOOKUP('Graphiques & Synthèse'!B9,Offer[],11)),NA()) -> 
B10: 07 | C10: =VLOOKUP('Graphiques & Synthèse'!B10,Offer[],2) -> FACADES | D10: =IFERROR(E10*(1+Paramétrage!$D$37),NA()) ->  | E10: =IFERROR(IF(VLOOKUP('Graphiques & Synthèse'!B10,Offer[],11)=0,NA(),VLOOKUP('Graphiques & Synthèse'!B10,Offer[],11)),NA()) -> 
B11: 08 | C11: =VLOOKUP('Graphiques & Synthèse'!B11,Offer[],2) -> MENUISERIES EXTERIEURES | D11: =IFERROR(E11*(1+Paramétrage!$D$37),NA()) ->  | E11: =IFERROR(IF(VLOOKUP('Graphiques & Synthèse'!B11,Offer[],11)=0,NA(),VLOOKUP('Graphiques & Synthèse'!B11,Offer[],11)),NA()) -> 
B12: 09 | C12: =VLOOKUP('Graphiques & Synthèse'!B12,Offer[],2) -> CHAUFFAGE - CLIMATISATION | D12: =IFERROR(E12*(1+Paramétrage!$D$37),NA()) ->  | E12: =IFERROR(IF(VLOOKUP('Graphiques & Synthèse'!B12,Offer[],11)=0,NA(),VLOOKUP('Graphiques & Synthèse'!B12,Offer[],11)),NA()) -> 
B13: 10 | C13: =VLOOKUP('Graphiques & Synthèse'!B13,Offer[],2) -> ELECTRICITE | D13: =IFERROR(E13*(1+Paramétrage!$D$37),NA()) ->  | E13: =IFERROR(IF(VLOOKUP('Graphiques & Synthèse'!B13,Offer[],11)=0,NA(),VLOOKUP('Graphiques & Synthèse'!B13,Offer[],11)),NA()) -> 
B14: 11 | C14: =VLOOKUP('Graphiques & Synthèse'!B14,Offer[],2) -> SANITAIRE | D14: =IFERROR(E14*(1+Paramétrage!$D$37),NA()) ->  | E14: =IFERROR(IF(VLOOKUP('Graphiques & Synthèse'!B14,Offer[],11)=0,NA(),VLOOKUP('Graphiques & Synthèse'!B14,Offer[],11)),NA()) -> 
B15: 12 | C15: =VLOOKUP('Graphiques & Synthèse'!B15,Offer[],2) -> VENTILATION | D15: =IFERROR(E15*(1+Paramétrage!$D$37),NA()) ->  | E15: =IFERROR(IF(VLOOKUP('Graphiques & Synthèse'!B15,Offer[],11)=0,NA(),VLOOKUP('Graphiques & Synthèse'!B15,Offer[],11)),NA()) -> 
B16: 13 | C16: =VLOOKUP('Graphiques & Synthèse'!B16,Offer[],2) -> ASCENSEUR | D16: =IFERROR(E16*(1+Paramétrage!$D$37),NA()) ->  | E16: =IFERROR(IF(VLOOKUP('Graphiques & Synthèse'!B16,Offer[],11)=0,NA(),VLOOKUP('Graphiques & Synthèse'!B16,Offer[],11)),NA()) -> 
B17: 14 | C17: =VLOOKUP('Graphiques & Synthèse'!B17,Offer[],2) -> ENERGIES RENOUVELABLES | D17: =IFERROR(E17*(1+Paramétrage!$D$37),NA()) ->  | E17: =IFERROR(IF(VLOOKUP('Graphiques & Synthèse'!B17,Offer[],11)=0,NA(),VLOOKUP('Graphiques & Synthèse'!B17,Offer[],11)),NA()) -> 
B18: 15 | C18: =VLOOKUP('Graphiques & Synthèse'!B18,Offer[],2) -> FINITIONS MURS, CLOISONS & PLAFONDS - INTERIEUR | D18: =IFERROR(E18*(1+Paramétrage!$D$37),NA()) ->  | E18: =IFERROR(IF(VLOOKUP('Graphiques & Synthèse'!B18,Offer[],11)=0,NA(),VLOOKUP('Graphiques & Synthèse'!B18,Offer[],11)),NA()) -> 
B19: 16 | C19: =VLOOKUP('Graphiques & Synthèse'!B19,Offer[],2) -> FINITIONS SOLS & CHAPES - INTERIEUR | D19: =IFERROR(E19*(1+Paramétrage!$D$37),NA()) ->  | E19: =IFERROR(IF(VLOOKUP('Graphiques & Synthèse'!B19,Offer[],11)=0,NA(),VLOOKUP('Graphiques & Synthèse'!B19,Offer[],11)),NA()) -> 
B20: 17 | C20: =VLOOKUP('Graphiques & Synthèse'!B20,Offer[],2) -> CUISINE | D20: =IFERROR(E20*(1+Paramétrage!$D$37),NA()) ->  | E20: =IFERROR(IF(VLOOKUP('Graphiques & Synthèse'!B20,Offer[],11)=0,NA(),VLOOKUP('Graphiques & Synthèse'!B20,Offer[],11)),NA()) -> 
B21: 18 | C21: =VLOOKUP('Graphiques & Synthèse'!B21,Offer[],2) -> MENUISERIES INTERIEURES | D21: =IFERROR(E21*(1+Paramétrage!$D$37),NA()) ->  | E21: =IFERROR(IF(VLOOKUP('Graphiques & Synthèse'!B21,Offer[],11)=0,NA(),VLOOKUP('Graphiques & Synthèse'!B21,Offer[],11)),NA()) -> 
B22: 19 | C22: =VLOOKUP('Graphiques & Synthèse'!B22,Offer[],2) -> FERRONNERIES | D22: =IFERROR(E22*(1+Paramétrage!$D$37),NA()) ->  | E22: =IFERROR(IF(VLOOKUP('Graphiques & Synthèse'!B22,Offer[],11)=0,NA(),VLOOKUP('Graphiques & Synthèse'!B22,Offer[],11)),NA()) -> 
B23: 20 | C23: =VLOOKUP('Graphiques & Synthèse'!B23,Offer[],2) -> PEINTURES & MASTIC | D23: =IFERROR(E23*(1+Paramétrage!$D$37),NA()) ->  | E23: =IFERROR(IF(VLOOKUP('Graphiques & Synthèse'!B23,Offer[],11)=0,NA(),VLOOKUP('Graphiques & Synthèse'!B23,Offer[],11)),NA()) -> 
B24: 21 | C24: =VLOOKUP('Graphiques & Synthèse'!B24,Offer[],2) -> EQUIPEMENTS INTERIEURS / EXTERIEURS | D24: =IFERROR(E24*(1+Paramétrage!$D$37),NA()) ->  | E24: =IFERROR(IF(VLOOKUP('Graphiques & Synthèse'!B24,Offer[],11)=0,NA(),VLOOKUP('Graphiques & Synthèse'!B24,Offer[],11)),NA()) -> 
B25: 22 | C25: =VLOOKUP('Graphiques & Synthèse'!B25,Offer[],2) -> ABORDS | D25: =IFERROR(E25*(1+Paramétrage!$D$37),NA()) ->  | E25: =IFERROR(IF(VLOOKUP('Graphiques & Synthèse'!B25,Offer[],11)=0,NA(),VLOOKUP('Graphiques & Synthèse'!B25,Offer[],11)),NA()) -> 
B26: 23 | C26: =VLOOKUP('Graphiques & Synthèse'!B26,Offer[],2) -> PISCINE | D26: =IFERROR(E26*(1+Paramétrage!$D$37),NA()) ->  | E26: =IFERROR(IF(VLOOKUP('Graphiques & Synthèse'!B26,Offer[],11)=0,NA(),VLOOKUP('Graphiques & Synthèse'!B26,Offer[],11)),NA()) -> 
B27: 24 | C27: =VLOOKUP('Graphiques & Synthèse'!B27,Offer[],2) -> … | D27: =IFERROR(E27*(1+Paramétrage!$D$37),NA()) ->  | E27: =IFERROR(IF(VLOOKUP('Graphiques & Synthèse'!B27,Offer[],11)=0,NA(),VLOOKUP('Graphiques & Synthèse'!B27,Offer[],11)),NA()) -> 
E28: =IF(Offer[[#Totals],[Prix de vente HTVA sans variante/option]]=0,NA(),Offer[[#Totals],[Prix de vente HTVA sans variante/option]]) -> 
E29: HTVA

Sheet Métré ST (hidden)
B2: Mesurage | C2: (ne remplir que ce qui sera utile selon la technique choisie)
B4: Isolation des rampants :
C5: ↓ Profondeur chevrons existants ↓
C6: 0
C8: ↓ Surface isolation toiture ↓
C9: 0
B13: Critères à vérifier pour la SWCS: | D13: Ꙭ = check visuel / ‖↔‖ = mesurer / = point OK
C15: Stabilité | D15: Ꙭ Pas de défaut au niveau des fondations, de fissures profondes, de risque de chute d'éléments, de mérule,….
C16: Humidité | D16: Ꙭ Pas de gros problèmes d'infiltration, d'humidité ascensionnelle,…
D17: Si problème de condensation fenêtre → SWCS considère que l'occupant peut ouvrir la fenêtre, donc OK
D18: Si grosses tâches de moisissures → pas OK pour SWCS
C19: Champignons / insectes xylophages
C20: Ventilation | D20: Si mécanique: tester si elle est opérationnelle
D21: Ꙭ Si naturelle → vérifier s'il y a une ouverture dans chaque local
C22: Eclairage naturel | D22: Ꙭ Vérifier qu'il y a une baie de taille raisonnable dans chaque pièce de vie
C23: Dimensions minimales du logement | D23: Ꙭ Pas de surpeuplement
C24: Risques de chutes | D24: Ꙭ Plancher droit
D25: Ꙭ Escalier non exigu et non dangereux
D26: ‖↔‖ hauteurs d'allèges ≥ 80 cm aux étages (ou présence garde corps ou d'un système de serrure/verrou avec clé)
D27: ‖↔‖ hauteur de garde-corps ≥ 80 cm
C28: Conformité électrique | D28: attestation ou engagement de se mettre en conformité
C29: Installation électrique | D29: Ꙭ tableau électrique et de coupure accessible en permanence
D30: Ꙭ éclairage électrique dans tous les locaux
D31: Ꙭ prises dans tous les locaux (sauf WC)
C32: Conformité gaz | D32: attestation ou engagement de se mettre en conformité
C33: Installation gaz | D33: Ꙭ dispositif de coupure accessible en permanence
D34: Ꙭ dispositif d'évacuation des gaz brûlés en bon état, donnant accès à l'air libre
C35: Pouvoir placer un chauffage fixe | D35: Ꙭ une prise, et c'est OK ;-)
C36: Sanitaires | D36: Ꙭ au moins un point d'eau potable et un WC, cloisonné jusqu'au plafond
D37: Ꙭ au moins une baignoire/douche
D38: Ꙭ au moins un évier et un lavabo fonctionnels (avec siphon évacuation)
C39: Santé | D39: Ꙭ si suspicion amiante, plomb, radon… Inviter le CR à faire un test (services provinciaux), mais pas un critère d'exclusion
C40: Détecteurs de fumée | D40: Pas d'exigence, mais conseiller l'installation si besoin
D41: La règle : au moins un détecteur par niveau, un 2ème si la surface est > à 80 m²
B43: Recommandations | D43: modifier la liste des constatations à l'auditeur et envoyer au CT en fin de traitement du dossier
B45: Quelques exemples
C46: Humidité - légères traces moisissures | D46: Présence de traces de moisissures dans la partie inférieure de vos châssis. Nous vous recommandons de nettoyer à l'aide d'un produit adapté, puis de surveiller la progression de ces moisissures.
D47: Une meilleure ventilation de votre local peut souvent aider à enrayer le phénomène.
C49: Santé - suspection d'amiante | D49: Nous suspectons la présence d'amiante dans les éléments suivants: …
D50: En l'état, cela ne pose pas de problème, mais si vous envisagez un jour de faire des travaux sur ces éléments, un traitement particuler sera à envisager.

Sheet Calcul des prix
AL2: Comparatif des offres entrepreneurs
BP3: Reno + | BS3: Résultats
B4: Numéro | C4: Description | D4: Commentaire | E4: Marché | F4: Quantité ↓ | G4: Unité | H4: Prix unitaire de vente par unité de poste | I4: Total prix de vente (HTVA) | J4: En option ? | K4: niveau | L4: Prix de vente HTVA sans variante/option | M4: Trier | N4: Code ressource | O4: Type de ressource | P4: Coût (direct) par unité de ressource | Q4: unité de la ressource | R4: quantité d'unité de ressource par unité de poste | S4: Arrondir selon multiple | T4: Quantité totale de ressources nécessaires pour le poste | U4: Coût direct par unité de poste | V4: Coût direct | W4: Coût indirect par unité de ressource | X4: Coût indirect par unité de poste | Y4: Coût indirect | Z4: Marge par unité de ressource | AA4: Marge par unité de poste | AB4: Marge | AC4: Risque par unité de ressource | AD4: Risque par unité de poste | AE4: Risque | AF4: Prix unitaire de vente par unité de ressource | AG4: TVA 6% applicable ? | AH4: TVA | AI4: Primes associées | AJ4: Train 1 | AK4: Secteur | AL4: Prix unitaire entrepr. 1 | AM4: Prix total devis entrepr. 1 OU R+ sans risque | AN4: Différence unitaire (€) entrepr. 1 sans risque | AO4: Différence totale (€) entrepr. 1 | AP4: Différence unitaire (€) entrepr. 1 prix de vente | AQ4: Différence (%) entrepr. 1 | AR4: Prix unitaire entrepr. 2 | AS4: Prix total devis entrepr. 2 OU R+ sans risque | AT4: Différence unitaire (€) entrepr. 2 sans risque | AU4: Différence totale (€) entrepr. 2 | AV4: Différence unitaire (€) entrepr. 2 prix de vente | AW4: Différence (%) entrepr. 2 | AX4: Prix unitaire entrepr. 3 | AY4: Prix total devis entrepr. 3 OU R+ sans risque | AZ4: Différence unitaire (€) entrepr. 3 sans risque | BA4: Différence totale (€) entrepr. 3 | BB4: Différence unitaire (€) entrepr. 3 prix de vente | BC4: Différence (%) entrepr. 3 | BD4: Prix unitaire entrepr. 4 | BE4: Prix total devis entrepr. 4 OU R+ sans risque | BF4: Différence unitaire (€) entrepr. 4 sans risque | BG4: Différence totale (€) entrepr. 4 | BH4: Différence unitaire (€) entrepr. 4 prix de vente | BI4: Différence (%) entrepr. 4 | BJ4: Prix unitaire entrepr. 5 | BK4: Prix total devis entrepr. 5 OU R+ sans risque | BL4: Différence unitaire (€) entrepr. 5 sans risque | BM4: Différence totale (€) entrepr. 5 | BN4: Différence unitaire (€) entrepr. 5 prix de vente | BO4: Différence (%) entrepr. 5 | BP4: Rappel calcul prix unitaire de vente HTVA SANS risque | BQ4: Rappel calcul prix total de vente HTVA SANS risque | BR4: Rappel calcul prix unitaire de vente HTVA | BS4: Moyenne des prix unitaires des entreprises | BT4: Différence unitaire moyenne des entreprises (€) | BU4: Différence totale moyenne des entreprises (€) | BV4: Différence totale moyenne des entreprises (%) | BW4: TVA entrepreneur
B5: 00 | C5: INSTALLATION & GENERALITES DE CHANTIER | F5: =IF(Offer[[#This Row],[niveau]]="ressource",IF(Offer[[#This Row],[Description]]="","",F4),IF(Offer[[#This Row],[niveau]]="poste",0,"")) ->  | H5: =IF(Offer[[#This Row],[Description]]="","",IF(OR(Offer[[#This Row],[niveau]]="ressource",Offer[[#This Row],[niveau]]="poste"),ROUND(Offer[[#This Row],[Coût direct par unité de poste]]+Offer[[#This Row],[Coût indirect par unité de poste]]+Offer[[#This Row],[Marge par unité de poste]]+Offer[[#This Row],[Risque par unité de poste]],2),"")) ->  | I5: =SUMIFS(I6:I257,$J$6:$J$257,"non",$K$6:$K$257,"poste") -> 0 | J5: =IF(Offer[[#This Row],[niveau]]="poste","non","") ->  | K5: =IF(LEN(Offer[[#This Row],[Numéro ]])=2,"T1",IF(LEN(Offer[[#This Row],[Numéro ]])=4,"T2",IF(LEN(Offer[[#This Row],[Numéro ]])=6,"T3",IF(Offer[[#This Row],[Numéro ]]="","ressource","poste")))) -> T1 | L5: =SUMIFS(L6:L257,$J$6:$J$257,"non",$K$6:$K$257,"poste") -> 0 | M5: =IF(SUM(I6:I257)>0,1,0) -> 0 | O5: =IF(Offer[[#This Row],[niveau]]="ressource",IF(Offer[[#This Row],[Description]]="","", IF(ISNUMBER(FIND("heure",Offer[[#This Row],[unité de la ressource]])),Settings!$B$6, IF(ISNUMBER(FIND("déchet",Offer[[#This Row],[Description]])),Settings!$B$8, IF(ISNUMBER(FIND("déchet",Offer[[#This Row],[Commentaire]])),Settings!$B$8, IF(ISNUMBER(FIND("km",Offer[[#This Row],[unité de la ressource]])),Settings!$B$10, IF(ISNUMBER(FIND("matériau",Offer[[#This Row],[Description]])),Settings!$B$7, IF(ISNUMBER(FIND("livraison",Offer[[#This Row],[Description]])),Settings!$B$7, IF(ISNUMBER(FIND("FF",Offer[[#This Row],[unité de la ressource]])),Settings!$B$9, Settings!$B$7)))))))),"") ->  | S5: =IF(Offer[[#This Row],[niveau]]="ressource",IF(Offer[[#This Row],[Description]]="","",IF(Offer[[#This Row],[Type de ressource]]=Settings!$B$6,IF(Offer[[#This Row],[quantité d''unité de ressource par unité de poste]]>1,15*Minute,IF(Offer[[#This Row],[quantité d''unité de ressource par unité de poste]]>15*Minute,5*Minute,1*Minute)),IF(Offer[[#This Row],[quantité d''unité de ressource par unité de poste]]>1000,100,IF(Offer[[#This Row],[quantité d''unité de ressource par unité de poste]]>100,10,IF(Offer[[#This Row],[quantité d''unité de ressource par unité de poste]]>10,1,IF(Offer[[#This Row],[quantité d''unité de ressource par unité de poste]]>1,0.1,IF(Offer[[#This Row],[quantité d''unité de ressource par unité de poste]]>0.1,0.01,0.001))))))),"") ->  | T5: =IF(Offer[[#This Row],[niveau]]="ressource",IF(Offer[[#This Row],[Description]]="","",MROUND(Offer[[#This Row],[quantité d''unité de ressource par unité de poste]]*Offer[[#This Row],[Quantité ↓]],Offer[[#This Row],[Arrondir selon multiple]])),"") ->  | V5: =SUMIFS(V6:V257,$J$6:$J$257,"non",$K$6:$K$257,"poste") -> 0 | W5: =IF(Offer[[#This Row],[niveau]]="ressource",IF(Offer[[#This Row],[Type de ressource]]=Settings!$B$6,Offer[[#This Row],[Coût (direct) par unité de ressource]]*Settings!$D$6,IF(Offer[[#This Row],[Type de ressource]]=Settings!$B$7,Offer[[#This Row],[Coût (direct) par unité de ressource]]*Settings!$D$7,IF(Offer[[#This Row],[Type de ressource]]=Settings!$B$8,Offer[[#This Row],[Coût (direct) par unité de ressource]]*Settings!$D$8,IF(Offer[[#This Row],[Type de ressource]]=Settings!$B$9,Offer[[#This Row],[Coût (direct) par unité de ressource]]*Settings!$D$9,IF(Offer[[#This Row],[Type de ressource]]=Settings!$B$10,Offer[[#This Row],[Coût (direct) par unité de ressource]]*Settings!$D$10,""))))),"") ->  | Y5: =SUMIFS(Y6:Y257,$J$6:$J$257,"non",$K$6:$K$257,"poste") -> 0 | Z5: =IF(Offer[[#This Row],[niveau]]="ressource",IF(Offer[[#This Row],[Type de ressource]]=Settings!$B$6,Offer[[#This Row],[Coût (direct) par unité de ressource]]*Settings!$E$6,IF(Offer[[#This Row],[Type de ressource]]=Settings!$B$7,Offer[[#This Row],[Coût (direct) par unité de ressource]]*Settings!$E$7,IF(Offer[[#This Row],[Type de ressource]]=Settings!$B$8,Offer[[#This Row],[Coût (direct) par unité de ressource]]*Settings!$E$8,IF(Offer[[#This Row],[Type de ressource]]=Settings!$B$9,Offer[[#This Row],[Coût (direct) par unité de ressource]]*Settings!$E$9,IF(Offer[[#This Row],[Type de ressource]]=Settings!$B$10,Offer[[#This Row],[Coût (direct) par unité de ressource]]*Settings!$E$10,""))))),"") ->  | AA5: =IF(Offer[[#This Row],[niveau]]="ressource",IF(Offer[[#This Row],[Marge par unité de ressource]]="","",Offer[[#This Row],[Marge par unité de ressource]]*Offer[[#This Row],[quantité d''unité de ressource par unité de poste]]),IF(Offer[[#This Row],[niveau]]="poste","poste","")) ->  | AB5: =SUMIFS(AB6:AB257,$J$6:$J$257,"non",$K$6:$K$257,"poste") -> 0 | AC5: =IF(Offer[[#This Row],[niveau]]="ressource",IF(Offer[[#This Row],[Type de ressource]]=Settings!$B$6,Offer[[#This Row],[Coût (direct) par unité de ressource]]*Settings!$H$6,IF(Offer[[#This Row],[Type de ressource]]=Settings!$B$7,Offer[[#This Row],[Coût (direct) par unité de ressource]]*Settings!$H$7,IF(Offer[[#This Row],[Type de ressource]]=Settings!$B$8,Offer[[#This Row],[Coût (direct) par unité de ressource]]*Settings!$H$8,IF(Offer[[#This Row],[Type de ressource]]=Settings!$B$9,Offer[[#This Row],[Coût (direct) par unité de ressource]]*Settings!$H$9,IF(Offer[[#This Row],[Type de ressource]]=Settings!$B$10,Offer[[#This Row],[Coût (direct) par unité de ressource]]*Settings!$H$10,""))))),"") ->  | AD5: =IF(Offer[[#This Row],[niveau]]="ressource",IF(Offer[[#This Row],[Coût direct par unité de poste]]="","",Offer[[#This Row],[Coût direct par unité de poste]]*Paramétrage!$D$35),"") ->  | AE5: =SUMIFS(AE6:AE257,$J$6:$J$257,"non",$K$6:$K$257,"poste") -> 0 | AF5: =IF(Offer[[#This Row],[niveau]]="ressource",IF(Offer[[#This Row],[Description]]="","",Offer[[#This Row],[Risque par unité de ressource]]+Offer[[#This Row],[Marge par unité de ressource]]+Offer[[#This Row],[Coût indirect par unité de ressource]]+Offer[[#This Row],[Coût (direct) par unité de ressource]]),"") ->  | AG5: =IF(Offer[[#This Row],[niveau]]="poste",Paramétrage!$D$37,"") ->  | AH5: =IF(Offer[[#This Row],[niveau]]="poste",Offer[[#This Row],[TVA 6% applicable ?]]*Offer[[#This Row],[Prix de vente HTVA sans variante/option]],"") ->  | AJ5: oui | AK5: =IF(Offer[[#This Row],[niveau]]="ressource","","00 - Installation & généralités de chantier") -> 00 - Installation & généralités de chantier | AL5: =IF(Offer[[#This Row],[niveau]]="poste",0,"") ->  | AM5: =SUMIFS(AM6:AM257,$J$6:$J$257,"non",$K$6:$K$257,"poste") -> 0 | AN5: =IF(Offer[[#This Row],[niveau]]="poste",IF(Offer[[#This Row],[Prix unitaire entrepr. 1]]=0,"/",Offer[[#This Row],[Prix unitaire entrepr. 1]]-Offer[[#This Row],[Rappel calcul prix unitaire de vente HTVA SANS risque]]),"") ->  | AO5: =IF(Offer[[#This Row],[niveau]]="poste",IF(Offer[[#This Row],[Prix unitaire entrepr. 1]]=0,"/",IF(Offer[[#This Row],[Quantité ↓]]=0,"/",(Offer[[#This Row],[Prix total devis entrepr. 1 OU R+ sans risque]])-(Offer[[#This Row],[Rappel calcul prix unitaire de vente HTVA SANS risque]]*Offer[[#This Row],[Quantité ↓]]))),"") ->  | AP5: =IF(Offer[[#This Row],[niveau]]="poste",IF(Offer[[#This Row],[Prix unitaire entrepr. 1]]=0,"/",Offer[[#This Row],[Prix unitaire entrepr. 1]]-Offer[[#This Row],[Rappel calcul prix unitaire de vente HTVA]]),"") ->  | AQ5: =IF(Offer[[#This Row],[niveau]]="poste",IF(Offer[[#This Row],[Prix unitaire entrepr. 1]]=0,"/",1-(Offer[[#This Row],[Rappel calcul prix unitaire de vente HTVA SANS risque]]/Offer[[#This Row],[Prix unitaire entrepr. 1]])),"") ->  | AR5: =IF(Offer[[#This Row],[niveau]]="poste",0,"") ->  | AS5: =SUMIFS(AS6:AS257,$J$6:$J$257,"non",$K$6:$K$257,"poste") -> 0 | AT5: =IF(Offer[[#This Row],[niveau]]="poste",IF(Offer[[#This Row],[Prix unitaire entrepr. 2]]=0,"/",Offer[[#This Row],[Prix unitaire entrepr. 2]]-Offer[[#This Row],[Rappel calcul prix unitaire de vente HTVA SANS risque]]),"") ->  | AU5: =IF(Offer[[#This Row],[niveau]]="poste",IF(Offer[[#This Row],[Prix unitaire entrepr. 2]]=0,"/",IF(Offer[[#This Row],[Quantité ↓]]=0,"/",(Offer[[#This Row],[Prix total devis entrepr. 2 OU R+ sans risque]])-(Offer[[#This Row],[Rappel calcul prix unitaire de vente HTVA SANS risque]]*Offer[[#This Row],[Quantité ↓]]))),"") ->  | AV5: =IF(Offer[[#This Row],[niveau]]="poste",IF(Offer[[#This Row],[Prix unitaire entrepr. 2]]=0,"/",Offer[[#This Row],[Prix unitaire entrepr. 2]]-Offer[[#This Row],[Rappel calcul prix unitaire de vente HTVA]]),"") ->  | AW5: =IF(Offer[[#This Row],[niveau]]="poste",IF(Offer[[#This Row],[Prix unitaire entrepr. 2]]=0,"/",1-(Offer[[#This Row],[Rappel calcul prix unitaire de vente HTVA SANS risque]]/Offer[[#This Row],[Prix unitaire entrepr. 2]])),"") ->  | AX5: =IF(Offer[[#This Row],[niveau]]="poste",0,"") ->  | AY5: =SUMIFS(AY6:AY257,$J$6:$J$257,"non",$K$6:$K$257,"poste") -> 0 | AZ5: =IF(Offer[[#This Row],[niveau]]="poste",IF(Offer[[#This Row],[Prix unitaire entrepr. 3]]=0,"/",Offer[[#This Row],[Prix unitaire entrepr. 3]]-Offer[[#This Row],[Rappel calcul prix unitaire de vente HTVA SANS risque]]),"") ->  | BA5: =IF(Offer[[#This Row],[niveau]]="poste",IF(Offer[[#This Row],[Prix unitaire entrepr. 3]]=0,"/",IF(Offer[[#This Row],[Quantité ↓]]=0,"/",(Offer[[#This Row],[Prix total devis entrepr. 3 OU R+ sans risque]])-(Offer[[#This Row],[Rappel calcul prix unitaire de vente HTVA SANS risque]]*Offer[[#This Row],[Quantité ↓]]))),"") ->  | BB5: =IF(Offer[[#This Row],[niveau]]="poste",IF(Offer[[#This Row],[Prix unitaire entrepr. 3]]=0,"/",Offer[[#This Row],[Prix unitaire entrepr. 3]]-Offer[[#This Row],[Rappel calcul prix unitaire de vente HTVA]]),"") ->  | BC5: =IF(Offer[[#This Row],[niveau]]="poste",IF(Offer[[#This Row],[Prix unitaire entrepr. 3]]=0,"/",1-(Offer[[#This Row],[Rappel calcul prix unitaire de vente HTVA SANS risque]]/Offer[[#This Row],[Prix unitaire entrepr. 3]])),"") ->  | BD5: =IF(Offer[[#This Row],[niveau]]="poste",0,"") ->  | BE5: =SUMIFS(BE6:BE257,$J$6:$J$257,"non",$K$6:$K$257,"poste") -> 0 | BF5: =IF(Offer[[#This Row],[niveau]]="poste",IF(Offer[[#This Row],[Prix unitaire entrepr. 4]]=0,"/",Offer[[#This Row],[Prix unitaire entrepr. 4]]-Offer[[#This Row],[Rappel calcul prix unitaire de vente HTVA SANS risque]]),"") ->  | BG5: =IF(Offer[[#This Row],[niveau]]="poste",IF(Offer[[#This Row],[Prix unitaire entrepr. 4]]=0,"/",IF(Offer[[#This Row],[Quantité ↓]]=0,"/",(Offer[[#This Row],[Prix total devis entrepr. 4 OU R+ sans risque]])-(Offer[[#This Row],[Rappel calcul prix unitaire de vente HTVA SANS risque]]*Offer[[#This Row],[Quantité ↓]]))),"") ->  | BH5: =IF(Offer[[#This Row],[niveau]]="poste",IF(Offer[[#This Row],[Prix unitaire entrepr. 4]]=0,"/",Offer[[#This Row],[Prix unitaire entrepr. 4]]-Offer[[#This Row],[Rappel calcul prix unitaire de vente HTVA]]),"") ->  | BI5: =IF(Offer[[#This Row],[niveau]]="poste",IF(Offer[[#This Row],[Prix unitaire entrepr. 4]]=0,"/",1-(Offer[[#This Row],[Rappel calcul prix unitaire de vente HTVA SANS risque]]/Offer[[#This Row],[Prix unitaire entrepr. 4]])),"") ->  | BJ5: =IF(Offer[[#This Row],[niveau]]="poste",0,"") ->  | BK5: =SUMIFS(BK6:BK257,$J$6:$J$257,"non",$K$6:$K$257,"poste") -> 0 | BL5: =IF(Offer[[#This Row],[niveau]]="poste",IF(Offer[[#This Row],[Prix unitaire entrepr. 5]]=0,"/",Offer[[#This Row],[Prix unitaire entrepr. 5]]-Offer[[#This Row],[Rappel calcul prix unitaire de vente HTVA SANS risque]]),"") ->  | BM5: =IF(Offer[[#This Row],[niveau]]="poste",IF(Offer[[#This Row],[Prix unitaire entrepr. 5]]=0,"/",IF(Offer[[#This Row],[Quantité ↓]]=0,"/",(Offer[[#This Row],[Prix total devis entrepr. 5 OU R+ sans risque]])-(Offer[[#This Row],[Rappel calcul prix unitaire de vente HTVA SANS risque]]*Offer[[#This Row],[Quantité ↓]]))),"") ->  | BN5: =IF(Offer[[#This Row],[niveau]]="poste",IF(Offer[[#This Row],[Prix unitaire entrepr. 5]]=0,"/",Offer[[#This Row],[Prix unitaire entrepr. 5]]-Offer[[#This Row],[Rappel calcul prix unitaire de vente HTVA]]),"") ->  | BO5: =IF(Offer[[#This Row],[niveau]]="poste",IF(Offer[[#This Row],[Prix unitaire entrepr. 5]]=0,"/",1-(Offer[[#This Row],[Rappel calcul prix unitaire de vente HTVA SANS risque]]/Offer[[#This Row],[Prix unitaire entrepr. 5]])),"") ->  | BP5: =IF(Offer[[#This Row],[niveau]]="poste",Offer[[#This Row],[Prix unitaire de vente par unité de poste]]-Offer[[#This Row],[Risque par unité de poste]],"") ->  | BQ5: =IF(Offer[[#This Row],[niveau]]="poste",Offer[[#This Row],[Quantité ↓]]*Offer[[#This Row],[Rappel calcul prix unitaire de vente HTVA SANS risque]],IF(Offer[[#This Row],[niveau]]="ressource","",Offer[[#This Row],[Total prix de vente (HTVA)]]-Offer[[#This Row],[Risque]])) -> 0 | BR5: =IF(Offer[[#This Row],[niveau]]="poste",Offer[[#This Row],[Prix unitaire de vente par unité de poste]],"") ->  | BS5: =IF(Offer[[#This Row],[niveau]]="poste",IF((Offer[[#This Row],[Prix unitaire entrepr. 1]]+Offer[[#This Row],[Prix unitaire entrepr. 2]]+Offer[[#This Row],[Prix unitaire entrepr. 3]]+Offer[[#This Row],[Prix unitaire entrepr. 4]]+Offer[[#This Row],[Prix unitaire entrepr. 5]])=0,"",(Offer[[#This Row],[Prix unitaire entrepr. 1]]+Offer[[#This Row],[Prix unitaire entrepr. 2]]+Offer[[#This Row],[Prix unitaire entrepr. 3]]+Offer[[#This Row],[Prix unitaire entrepr. 4]]+Offer[[#This Row],[Prix unitaire entrepr. 5]])/(IF(Offer[[#This Row],[Prix unitaire entrepr. 1]]>0,1,0)+IF(Offer[[#This Row],[Prix unitaire entrepr. 2]]>0,1,0)+IF(Offer[[#This Row],[Prix unitaire entrepr. 3]]>0,1,0)+IF(Offer[[#This Row],[Prix unitaire entrepr. 4]]>0,1,0)+IF(Offer[[#This Row],[Prix unitaire entrepr. 5]]>0,1,0))),"") ->  | BT5: =IF(Offer[[#This Row],[niveau]]="poste",IF(Offer[[#This Row],[Moyenne des prix unitaires des entreprises]]="","/",Offer[[#This Row],[Moyenne des prix unitaires des entreprises]]-Offer[[#This Row],[Rappel calcul prix unitaire de vente HTVA SANS risque]]),"") ->  | BU5: =IF(Offer[[#This Row],[niveau]]="poste",IF(Offer[[#This Row],[Moyenne des prix unitaires des entreprises]]="","/",IF(Offer[[#This Row],[Quantité ↓]]=0,"/",(Offer[[#This Row],[Moyenne des prix unitaires des entreprises]]*Offer[[#This Row],[Quantité ↓]])-(Offer[[#This Row],[Rappel calcul prix unitaire de vente HTVA SANS risque]]*Offer[[#This Row],[Quantité ↓]]))),"") ->  | BV5: =IF(Offer[[#This Row],[niveau]]="poste",IF(Offer[[#This Row],[Moyenne des prix unitaires des entreprises]]="","/",1-(Offer[[#This Row],[Rappel calcul prix unitaire de vente HTVA SANS risque]]/Offer[[#This Row],[Moyenne des prix unitaires des entreprises]])),"") ->  | BW5: =IF(Offer[[#This Row],[niveau]]="poste",IF(#REF!='Calcul des prix'!$AL$3,Offer[[#This Row],[Prix total devis entrepr. 1 OU R+ sans risque]]*Offer[[#This Row],[TVA 6% applicable ?]],IF(#REF!='Calcul des prix'!$AR$3,Offer[[#This Row],[Prix total devis entrepr. 1 OU R+ sans risque]]*Offer[[#This Row],[TVA 6% applicable ?]],IF(#REF!='Calcul des prix'!$AX$3,Offer[[#This Row],[Prix total devis entrepr. 1 OU R+ sans risque]]*Offer[[#This Row],[TVA 6% applicable ?]],IF(#REF!='Calcul des prix'!$BD$3,Offer[[#This Row],[Prix total devis entrepr. 1 OU R+ sans risque]]*Offer[[#This Row],[TVA 6% applicable ?]],IF(#REF!='Calcul des prix'!$BJ$3,Offer[[#This Row],[Prix total devis entrepr. 1 OU R+ sans risque]]*Offer[[#This Row],[TVA 6% applicable ?]],""))))),"") -> 
B6: 00.1 | C6: Installation de chantier | F6: =IF(Offer[[#This Row],[niveau]]="ressource",IF(Offer[[#This Row],[Description]]="","",F5),IF(Offer[[#This Row],[niveau]]="poste",0,"")) ->  | H6: =IF(Offer[[#This Row],[Description]]="","",IF(OR(Offer[[#This Row],[niveau]]="ressource",Offer[[#This Row],[niveau]]="poste"),ROUND(Offer[[#This Row],[Coût direct par unité de poste]]+Offer[[#This Row],[Coût indirect par unité de poste]]+Offer[[#This Row],[Marge par unité de poste]]+Offer[[#This Row],[Risque par unité de poste]],2),"")) ->  | I6: =SUMIFS(I7:I135,$J$7:$J$135,"non",$K$7:$K$135,"poste") -> 0 | J6: =IF(Offer[[#This Row],[niveau]]="poste","non","") ->  | K6: =IF(LEN(Offer[[#This Row],[Numéro ]])=2,"T1",IF(LEN(Offer[[#This Row],[Numéro ]])=4,"T2",IF(LEN(Offer[[#This Row],[Numéro ]])=6,"T3",IF(Offer[[#This Row],[Numéro ]]="","ressource","poste")))) -> T2 | L6: =SUMIFS(L7:L135,$J$7:$J$135,"non",$K$7:$K$135,"poste") -> 0 | M6: =IF(SUM(I7:I135)>0,1,0) -> 0 | O6: =IF(Offer[[#This Row],[niveau]]="ressource",IF(Offer[[#This Row],[Description]]="","", IF(ISNUMBER(FIND("heure",Offer[[#This Row],[unité de la ressource]])),Settings!$B$6, IF(ISNUMBER(FIND("déchet",Offer[[#This Row],[Description]])),Settings!$B$8, IF(ISNUMBER(FIND("déchet",Offer[[#This Row],[Commentaire]])),Settings!$B$8, IF(ISNUMBER(FIND("km",Offer[[#This Row],[unité de la ressource]])),Settings!$B$10, IF(ISNUMBER(FIND("matériau",Offer[[#This Row],[Description]])),Settings!$B$7, IF(ISNUMBER(FIND("livraison",Offer[[#This Row],[Description]])),Settings!$B$7, IF(ISNUMBER(FIND("FF",Offer[[#This Row],[unité de la ressource]])),Settings!$B$9, Settings!$B$7)))))))),"") ->  | S6: =IF(Offer[[#This Row],[niveau]]="ressource",IF(Offer[[#This Row],[Description]]="","",IF(Offer[[#This Row],[Type de ressource]]=Settings!$B$6,IF(Offer[[#This Row],[quantité d''unité de ressource par unité de poste]]>1,15*Minute,IF(Offer[[#This Row],[quantité d''unité de ressource par unité de poste]]>15*Minute,5*Minute,1*Minute)),IF(Offer[[#This Row],[quantité d''unité de ressource par unité de poste]]>1000,100,IF(Offer[[#This Row],[quantité d''unité de ressource par unité de poste]]>100,10,IF(Offer[[#This Row],[quantité d''unité de ressource par unité de poste]]>10,1,IF(Offer[[#This Row],[quantité d''unité de ressource par unité de poste]]>1,0.1,IF(Offer[[#This Row],[quantité d''unité de ressource par unité de poste]]>0.1,0.01,0.001))))))),"") ->  | T6: =IF(Offer[[#This Row],[niveau]]="ressource",IF(Offer[[#This Row],[Description]]="","",MROUND(Offer[[#This Row],[quantité d''unité de ressource par unité de poste]]*Offer[[#This Row],[Quantité ↓]],Offer[[#This Row],[Arrondir selon multiple]])),"") ->  | V6: =SUMIFS(V7:V135,$J$7:$J$135,"non",$K$7:$K$135,"poste") -> 0 | W6: =IF(Offer[[#This Row],[niveau]]="ressource",IF(Offer[[#This Row],[Type de ressource]]=Settings!$B$6,Offer[[#This Row],[Coût (direct) par unité de ressource]]*Settings!$D$6,IF(Offer[[#This Row],[Type de ressource]]=Settings!$B$7,Offer[[#This Row],[Coût (direct) par unité de ressource]]*Settings!$D$7,IF(Offer[[#This Row],[Type de ressource]]=Settings!$B$8,Offer[[#This Row],[Coût (direct) par unité de ressource]]*Settings!$D$8,IF(Offer[[#This Row],[Type de ressource]]=Settings!$B$9,Offer[[#This Row],[Coût (direct) par unité de ressource]]*Settings!$D$9,IF(Offer[[#This Row],[Type de ressource]]=Settings!$B$10,Offer[[#This Row],[Coût (direct) par unité de ressource]]*Settings!$D$10,""))))),"") ->  | Y6: =SUMIFS(Y7:Y135,$J$7:$J$135,"non",$K$7:$K$135,"poste") -> 0 | Z6: =IF(Offer[[#This Row],[niveau]]="ressource",IF(Offer[[#This Row],[Type de ressource]]=Settings!$B$6,Offer[[#This Row],[Coût (direct) par unité de ressource]]*Settings!$E$6,IF(Offer[[#This Row],[Type de ressource]]=Settings!$B$7,Offer[[#This Row],[Coût (direct) par unité de ressource]]*Settings!$E$7,IF(Offer[[#This Row],[Type de ressource]]=Settings!$B$8,Offer[[#This Row],[Coût (direct) par unité de ressource]]*Settings!$E$8,IF(Offer[[#This Row],[Type de ressource]]=Settings!$B$9,Offer[[#This Row],[Coût (direct) par unité de ressource]]*Settings!$E$9,IF(Offer[[#This Row],[Type de ressource]]=Settings!$B$10,Offer[[#This Row],[Coût (direct) par unité de ressource]]*Settings!$E$10,""))))),"") ->  | AA6: =IF(Offer[[#This Row],[niveau]]="ressource",IF(Offer[[#This Row],[Marge par unité de ressource]]="","",Offer[[#This Row],[Marge par unité de ressource]]*Offer[[#This Row],[quantité d''unité de ressource par unité de poste]]),IF(Offer[[#This Row],[niveau]]="poste","poste","")) ->  | AB6: =SUMIFS(AB7:AB135,$J$7:$J$135,"non",$K$7:$K$135,"poste") -> 0 | AC6: =IF(Offer[[#This Row],[niveau]]="ressource",IF(Offer[[#This Row],[Type de ressource]]=Settings!$B$6,Offer[[#This Row],[Coût (direct) par unité de ressource]]*Settings!$H$6,IF(Offer[[#This Row],[Type de ressource]]=Settings!$B$7,Offer[[#This Row],[Coût (direct) par unité de ressource]]*Settings!$H$7,IF(Offer[[#This Row],[Type de ressource]]=Settings!$B$8,Offer[[#This Row],[Coût (direct) par unité de ressource]]*Settings!$H$8,IF(Offer[[#This Row],[Type de ressource]]=Settings!$B$9,Offer[[#This Row],[Coût (direct) par unité de ressource]]*Settings!$H$9,IF(Offer[[#This Row],[Type de ressource]]=Settings!$B$10,Offer[[#This Row],[Coût (direct) par unité de ressource]]*Settings!$H$10,""))))),"") ->  | AD6: =IF(Offer[[#This Row],[niveau]]="ressource",IF(Offer[[#This Row],[Coût direct par unité de poste]]="","",Offer[[#This Row],[Coût direct par unité de poste]]*Paramétrage!$D$35),"") ->  | AE6: =SUMIFS(AE7:AE135,$J$7:$J$135,"non",$K$7:$K$135,"poste") -> 0 | AF6: =IF(Offer[[#This Row],[niveau]]="ressource",IF(Offer[[#This Row],[Description]]="","",Offer[[#This Row],[Risque par unité de ressource]]+Offer[[#This Row],[Marge par unité de ressource]]+Offer[[#This Row],[Coût indirect par unité de ressource]]+Offer[[#This Row],[Coût (direct) par unité de ressource]]),"") ->  | AG6: =IF(Offer[[#This Row],[niveau]]="poste",Paramétrage!$D$37,"") ->  | AH6: =IF(Offer[[#This Row],[niveau]]="poste",Offer[[#This Row],[TVA 6% applicable ?]]*Offer[[#This Row],[Prix de vente HTVA sans variante/option]],"") ->  | AJ6: oui | AK6: =IF(Offer[[#This Row],[niveau]]="ressource","","00 - Installation & généralités de chantier") -> 00 - Installation & généralités de chantier | AL6: =IF(Offer[[#This Row],[niveau]]="poste",0,"") ->  | AM6: =SUMIFS(AM7:AM135,$J$7:$J$135,"non",$K$7:$K$135,"poste") -> 0 | AN6: =IF(Offer[[#This Row],[niveau]]="poste",IF(Offer[[#This Row],[Prix unitaire entrepr. 1]]=0,"/",Offer[[#This Row],[Prix unitaire entrepr. 1]]-Offer[[#This Row],[Rappel calcul prix unitaire de vente HTVA SANS risque]]),"") ->  | AO6: =IF(Offer[[#This Row],[niveau]]="poste",IF(Offer[[#This Row],[Prix unitaire entrepr. 1]]=0,"/",IF(Offer[[#This Row],[Quantité ↓]]=0,"/",(Offer[[#This Row],[Prix total devis entrepr. 1 OU R+ sans risque]])-(Offer[[#This Row],[Rappel calcul prix unitaire de vente HTVA SANS risque]]*Offer[[#This Row],[Quantité ↓]]))),"") ->  | AP6: =IF(Offer[[#This Row],[niveau]]="poste",IF(Offer[[#This Row],[Prix unitaire entrepr. 1]]=0,"/",Offer[[#This Row],[Prix unitaire entrepr. 1]]-Offer[[#This Row],[Rappel calcul prix unitaire de vente HTVA]]),"") ->  | AQ6: =IF(Offer[[#This Row],[niveau]]="poste",IF(Offer[[#This Row],[Prix unitaire entrepr. 1]]=0,"/",1-(Offer[[#This Row],[Rappel calcul prix unitaire de vente HTVA SANS risque]]/Offer[[#This Row],[Prix unitaire entrepr. 1]])),"") ->  | AR6: =IF(Offer[[#This Row],[niveau]]="poste",0,"") ->  | AS6: =SUMIFS(AS7:AS135,$J$7:$J$135,"non",$K$7:$K$135,"poste") -> 0 | AT6: =IF(Offer[[#This Row],[niveau]]="poste",IF(Offer[[#This Row],[Prix unitaire entrepr. 2]]=0,"/",Offer[[#This Row],[Prix unitaire entrepr. 2]]-Offer[[#This Row],[Rappel calcul prix unitaire de vente HTVA SANS risque]]),"") ->  | AU6: =IF(Offer[[#This Row],[niveau]]="poste",IF(Offer[[#This Row],[Prix unitaire entrepr. 2]]=0,"/",IF(Offer[[#This Row],[Quantité ↓]]=0,"/",(Offer[[#This Row],[Prix total devis entrepr. 2 OU R+ sans risque]])-(Offer[[#This Row],[Rappel calcul prix unitaire de vente HTVA SANS risque]]*Offer[[#This Row],[Quantité ↓]]))),"") ->  | AV6: =IF(Offer[[#This Row],[niveau]]="poste",IF(Offer[[#This Row],[Prix unitaire entrepr. 2]]=0,"/",Offer[[#This Row],[Prix unitaire entrepr. 2]]-Offer[[#This Row],[Rappel calcul prix unitaire de vente HTVA]]),"") ->  | AW6: =IF(Offer[[#This Row],[niveau]]="poste",IF(Offer[[#This Row],[Prix unitaire entrepr. 2]]=0,"/",1-(Offer[[#This Row],[Rappel calcul prix unitaire de vente HTVA SANS risque]]/Offer[[#This Row],[Prix unitaire entrepr. 2]])),"") ->  | AX6: =IF(Offer[[#This Row],[niveau]]="poste",0,"") ->  | AY6: =SUMIFS(AY7:AY135,$J$7:$J$135,"non",$K$7:$K$135,"poste") -> 0 | AZ6: =IF(Offer[[#This Row],[niveau]]="poste",IF(Offer[[#This Row],[Prix unitaire entrepr. 3]]=0,"/",Offer[[#This Row],[Prix unitaire entrepr. 3]]-Offer[[#This Row],[Rappel calcul prix unitaire de vente HTVA SANS risque]]),"") ->  | BA6: =IF(Offer[[#This Row],[niveau]]="poste",IF(Offer[[#This Row],[Prix unitaire entrepr. 3]]=0,"/",IF(Offer[[#This Row],[Quantité ↓]]=0,"/",(Offer[[#This Row],[Prix total devis entrepr. 3 OU R+ sans risque]])-(Offer[[#This Row],[Rappel calcul prix unitaire de vente HTVA SANS risque]]*Offer[[#This Row],[Quantité ↓]]))),"") ->  | BB6: =IF(Offer[[#This Row],[niveau]]="poste",IF(Offer[[#This Row],[Prix unitaire entrepr. 3]]=0,"/",Offer[[#This Row],[Prix unitaire entrepr. 3]]-Offer[[#This Row],[Rappel calcul prix unitaire de vente HTVA]]),"") ->  | BC6: =IF(Offer[[#This Row],[niveau]]="poste",IF(Offer[[#This Row],[Prix unitaire entrepr. 3]]=0,"/",1-(Offer[[#This Row],[Rappel calcul prix unitaire de vente HTVA SANS risque]]/Offer[[#This Row],[Prix unitaire entrepr. 3]])),"") ->  | BD6: =IF(Offer[[#This Row],[niveau]]="poste",0,"") ->  | BE6: =SUMIFS(BE7:BE135,$J$7:$J$135,"non",$K$7:$K$135,"poste") -> 0 | BF6: =IF(Offer[[#This Row],[niveau]]="poste",IF(Offer[[#This Row],[Prix unitaire entrepr. 4]]=0,"/",Offer[[#This Row],[Prix unitaire entrepr. 4]]-Offer[[#This Row],[Rappel calcul prix unitaire de vente HTVA SANS risque]]),"") ->  | BG6: =IF(Offer[[#This Row],[niveau]]="poste",IF(Offer[[#This Row],[Prix unitaire entrepr. 4]]=0,"/",IF(Offer[[#This Row],[Quantité ↓]]=0,"/",(Offer[[#This Row],[Prix total devis entrepr. 4 OU R+ sans risque]])-(Offer[[#This Row],[Rappel calcul prix unitaire de vente HTVA SANS risque]]*Offer[[#This Row],[Quantité ↓]]))),"") ->  | BH6: =IF(Offer[[#This Row],[niveau]]="poste",IF(Offer[[#This Row],[Prix unitaire entrepr. 4]]=0,"/",Offer[[#This Row],[Prix unitaire entrepr. 4]]-Offer[[#This Row],[Rappel calcul prix unitaire de vente HTVA]]),"") ->  | BI6: =IF(Offer[[#This Row],[niveau]]="poste",IF(Offer[[#This Row],[Prix unitaire entrepr. 4]]=0,"/",1-(Offer[[#This Row],[Rappel calcul prix unitaire de vente HTVA SANS risque]]/Offer[[#This Row],[Prix unitaire entrepr. 4]])),"") ->  | BJ6: =IF(Offer[[#This Row],[niveau]]="poste",0,"") ->  | BK6: =SUMIFS(BK7:BK135,$J$7:$J$135,"non",$K$7:$K$135,"poste") -> 0 | BL6: =IF(Offer[[#This Row],[niveau]]="poste",IF(Offer[[#This Row],[Prix unitaire entrepr. 5]]=0,"/",Offer[[#This Row],[Prix unitaire entrepr. 5]]-Offer[[#This Row],[Rappel calcul prix unitaire de vente HTVA SANS risque]]),"") ->  | BM6: =IF(Offer[[#This Row],[niveau]]="poste",IF(Offer[[#This Row],[Prix unitaire entrepr. 5]]=0,"/",IF(Offer[[#This Row],[Quantité ↓]]=0,"/",(Offer[[#This Row],[Prix total devis entrepr. 5 OU R+ sans risque]])-(Offer[[#This Row],[Rappel calcul prix unitaire de vente HTVA SANS risque]]*Offer[[#This Row],[Quantité ↓]]))),"") ->  | BN6: =IF(Offer[[#This Row],[niveau]]="poste",IF(Offer[[#This Row],[Prix unitaire entrepr. 5]]=0,"/",Offer[[#This Row],[Prix unitaire entrepr. 5]]-Offer[[#This Row],[Rappel calcul prix unitaire de vente HTVA]]),"") ->  | BO6: =IF(Offer[[#This Row],[niveau]]="poste",IF(Offer[[#This Row],[Prix unitaire entrepr. 5]]=0,"/",1-(Offer[[#This Row],[Rappel calcul prix unitaire de vente HTVA SANS risque]]/Offer[[#This Row],[Prix unitaire entrepr. 5]])),"") ->  | BP6: =IF(Offer[[#This Row],[niveau]]="poste",Offer[[#This Row],[Prix unitaire de vente par unité de poste]]-Offer[[#This Row],[Risque par unité de poste]],"") ->  | BQ6: =IF(Offer[[#This Row],[niveau]]="poste",Offer[[#This Row],[Quantité ↓]]*Offer[[#This Row],[Rappel calcul prix unitaire de vente HTVA SANS risque]],IF(Offer[[#This Row],[niveau]]="ressource","",Offer[[#This Row],[Total prix de vente (HTVA)]]-Offer[[#This Row],[Risque]])) -> 0 | BR6: =IF(Offer[[#This Row],[niveau]]="poste",Offer[[#This Row],[Prix unitaire de vente par unité de poste]],"") ->  | BS6: =IF(Offer[[#This Row],[niveau]]="poste",IF((Offer[[#This Row],[Prix unitaire entrepr. 1]]+Offer[[#This Row],[Prix unitaire entrepr. 2]]+Offer[[#This Row],[Prix unitaire entrepr. 3]]+Offer[[#This Row],[Prix unitaire entrepr. 4]]+Offer[[#This Row],[Prix unitaire entrepr. 5]])=0,"",(Offer[[#This Row],[Prix unitaire entrepr. 1]]+Offer[[#This Row],[Prix unitaire entrepr. 2]]+Offer[[#This Row],[Prix unitaire entrepr. 3]]+Offer[[#This Row],[Prix unitaire entrepr. 4]]+Offer[[#This Row],[Prix unitaire entrepr. 5]])/(IF(Offer[[#This Row],[Prix unitaire entrepr. 1]]>0,1,0)+IF(Offer[[#This Row],[Prix unitaire entrepr. 2]]>0,1,0)+IF(Offer[[#This Row],[Prix unitaire entrepr. 3]]>0,1,0)+IF(Offer[[#This Row],[Prix unitaire entrepr. 4]]>0,1,0)+IF(Offer[[#This Row],[Prix unitaire entrepr. 5]]>0,1,0))),"") ->  | BT6: =IF(Offer[[#This Row],[niveau]]="poste",IF(Offer[[#This Row],[Moyenne des prix unitaires des entreprises]]="","/",Offer[[#This Row],[Moyenne des prix unitaires des entreprises]]-Offer[[#This Row],[Rappel calcul prix unitaire de vente HTVA SANS risque]]),"") ->  | BU6: =IF(Offer[[#This Row],[niveau]]="poste",IF(Offer[[#This Row],[Moyenne des prix unitaires des entreprises]]="","/",IF(Offer[[#This Row],[Quantité ↓]]=0,"/",(Offer[[#This Row],[Moyenne des prix unitaires des entreprises]]*Offer[[#This Row],[Quantité ↓]])-(Offer[[#This Row],[Rappel calcul prix unitaire de vente HTVA SANS risque]]*Offer[[#This Row],[Quantité ↓]]))),"") ->  | BV6: =IF(Offer[[#This Row],[niveau]]="poste",IF(Offer[[#This Row],[Moyenne des prix unitaires des entreprises]]="","/",1-(Offer[[#This Row],[Rappel calcul prix unitaire de vente HTVA SANS risque]]/Offer[[#This Row],[Moyenne des prix unitaires des entreprises]])),"") ->  | BW6: =IF(Offer[[#This Row],[niveau]]="poste",IF(#REF!='Calcul des prix'!$AL$3,Offer[[#This Row],[Prix total devis entrepr. 1 OU R+ sans risque]]*Offer[[#This Row],[TVA 6% applicable ?]],IF(#REF!='Calcul des prix'!$AR$3,Offer[[#This Row],[Prix total devis entrepr. 1 OU R+ sans risque]]*Offer[[#This Row],[TVA 6% applicable ?]],IF(#REF!='Calcul des prix'!$AX$3,Offer[[#This Row],[Prix total devis entrepr. 1 OU R+ sans risque]]*Offer[[#This Row],[TVA 6% applicable ?]],IF(#REF!='Calcul des prix'!$BD$3,Offer[[#This Row],[Prix total devis entrepr. 1 OU R+ sans risque]]*Offer[[#This Row],[TVA 6% applicable ?]],IF(#REF!='Calcul des prix'!$BJ$3,Offer[[#This Row],[Prix total devis entrepr. 1 OU R+ sans risque]]*Offer[[#This Row],[TVA 6% applicable ?]],""))))),"") -> 
B7: 00.1.00 | C7: Frais de déplacements et d'installation | E7: QP | F7: =IF(Offer[[#This Row],[niveau]]="ressource",IF(Offer[[#This Row],[Description]]="","",F6),IF(Offer[[#This Row],[niveau]]="poste",0,"")) -> 0 | G7: FF | H7: =IF(Offer[[#This Row],[Description]]="","",IF(OR(Offer[[#This Row],[niveau]]="ressource",Offer[[#This Row],[niveau]]="poste"),ROUND(Offer[[#This Row],[Coût direct par unité de poste]]+Offer[[#This Row],[Coût indirect par unité de poste]]+Offer[[#This Row],[Marge par unité de poste]]+Offer[[#This Row],[Risque par unité de poste]],2),"")) -> 207.75 | I7: =IF(Offer[[#This Row],[niveau]]="poste",ROUND(Offer[[#This Row],[Quantité ↓]]*Offer[[#This Row],[Prix unitaire de vente par unité de poste]],2),IF(Offer[[#This Row],[niveau]]="ressource",IF(F7="","",IF(Offer[[#This Row],[Prix unitaire de vente par unité de ressource]]="","",ROUND(Offer[[#This Row],[Quantité ↓]]*Offer[[#This Row],[Prix unitaire de vente par unité de ressource]],2))))) -> 0 | J7: =IF(Offer[[#This Row],[niveau]]="poste","non","") -> non | K7: =IF(LEN(Offer[[#This Row],[Numéro ]])=2,"T1",IF(LEN(Offer[[#This Row],[Numéro ]])=4,"T2",IF(LEN(Offer[[#This Row],[Numéro ]])=6,"T3",IF(Offer[[#This Row],[Numéro ]]="","ressource","poste")))) -> poste | L7: =IF(Offer[[#This Row],[niveau]]="poste",IF(Offer[[#This Row],[En option ?]]="non",Offer[[#This Row],[Total prix de vente (HTVA)]],0),0) -> 0 | M7: =IF(Offer[[#This Row],[niveau]]="ressource",0,IF(Offer[[#This Row],[Total prix de vente (HTVA)]]<>0,1,0)) -> 0 | O7: =IF(Offer[[#This Row],[niveau]]="ressource",IF(Offer[[#This Row],[Description]]="","", IF(ISNUMBER(FIND("heure",Offer[[#This Row],[unité de la ressource]])),Settings!$B$6, IF(ISNUMBER(FIND("déchet",Offer[[#This Row],[Description]])),Settings!$B$8, IF(ISNUMBER(FIND("déchet",Offer[[#This Row],[Commentaire]])),Settings!$B$8, IF(ISNUMBER(FIND("km",Offer[[#This Row],[unité de la ressource]])),Settings!$B$10, IF(ISNUMBER(FIND("matériau",Offer[[#This Row],[Description]])),Settings!$B$7, IF(ISNUMBER(FIND("livraison",Offer[[#This Row],[Description]])),Settings!$B$7, IF(ISNUMBER(FIND("FF",Offer[[#This Row],[unité de la ressource]])),Settings!$B$9, Settings!$B$7)))))))),"") ->  | S7: =IF(Offer[[#This Row],[niveau]]="ressource",IF(Offer[[#This Row],[Description]]="","",IF(Offer[[#This Row],[Type de ressource]]=Settings!$B$6,IF(Offer[[#This Row],[quantité d''unité de ressource par unité de poste]]>1,15*Minute,IF(Offer[[#This Row],[quantité d''unité de ressource par unité de poste]]>15*Minute,5*Minute,1*Minute)),IF(Offer[[#This Row],[quantité d''unité de ressource par unité de poste]]>1000,100,IF(Offer[[#This Row],[quantité d''unité de ressource par unité de poste]]>100,10,IF(Offer[[#This Row],[quantité d''unité de ressource par unité de poste]]>10,1,IF(Offer[[#This Row],[quantité d''unité de ressource par unité de poste]]>1,0.1,IF(Offer[[#This Row],[quantité d''unité de ressource par unité de poste]]>0.1,0.01,0.001))))))),"") ->  | T7: =IF(Offer[[#This Row],[niveau]]="ressource",IF(Offer[[#This Row],[Description]]="","",MROUND(Offer[[#This Row],[quantité d''unité de ressource par unité de poste]]*Offer[[#This Row],[Quantité ↓]],Offer[[#This Row],[Arrondir selon multiple]])),"") ->  | U7: =SUM(U8:U10) -> 120 | V7: =IF(Offer[[#This Row],[Coût direct par unité de poste]]="","",IF(Offer[[#This Row],[Coût (direct) par unité de ressource]]="",Offer[[#This Row],[Coût direct par unité de poste]]*Offer[[#This Row],[Quantité ↓]],0)) -> 0 | W7: =IF(Offer[[#This Row],[niveau]]="ressource",IF(Offer[[#This Row],[Type de ressource]]=Settings!$B$6,Offer[[#This Row],[Coût (direct) par unité de ressource]]*Settings!$D$6,IF(Offer[[#This Row],[Type de ressource]]=Settings!$B$7,Offer[[#This Row],[Coût (direct) par unité de ressource]]*Settings!$D$7,IF(Offer[[#This Row],[Type de ressource]]=Settings!$B$8,Offer[[#This Row],[Coût (direct) par unité de ressource]]*Settings!$D$8,IF(Offer[[#This Row],[Type de ressource]]=Settings!$B$9,Offer[[#This Row],[Coût (direct) par unité de ressource]]*Settings!$D$9,IF(Offer[[#This Row],[Type de ressource]]=Settings!$B$10,Offer[[#This Row],[Coût (direct) par unité de ressource]]*Settings!$D$10,""))))),"") ->  | X7: =SUM(X8:X10) -> 12 | Y7: =IF(Offer[[#This Row],[Coût indirect par unité de poste]]="","",IF(Offer[[#This Row],[Coût (direct) par unité de ressource]]="",Offer[[#This Row],[Coût indirect par unité de poste]]*Offer[[#This Row],[Quantité ↓]],0)) -> 0 | Z7: =IF(Offer[[#This Row],[niveau]]="ressource",IF(Offer[[#This Row],[Type de ressource]]=Settings!$B$6,Offer[[#This Row],[Coût (direct) par unité de ressource]]*Settings!$E$6,IF(Offer[[#This Row],[Type de ressource]]=Settings!$B$7,Offer[[#This Row],[Coût (direct) par unité de ressource]]*Settings!$E$7,IF(Offer[[#This Row],[Type de ressource]]=Settings!$B$8,Offer[[#This Row],[Coût (direct) par unité de ressource]]*Settings!$E$8,IF(Offer[[#This Row],[Type de ressource]]=Settings!$B$9,Offer[[#This Row],[Coût (direct) par unité de ressource]]*Settings!$E$9,IF(Offer[[#This Row],[Type de ressource]]=Settings!$B$10,Offer[[#This Row],[Coût (direct) par unité de ressource]]*Settings!$E$10,""))))),"") ->  | AA7: =SUM(AA8:AA10) -> 57.75 | AB7: =IF(Offer[[#This Row],[Marge par unité de poste]]="","",IF(Offer[[#This Row],[Coût (direct) par unité de ressource]]="",Offer[[#This Row],[Marge par unité de poste]]*Offer[[#This Row],[Quantité ↓]],Offer[[#This Row],[Marge par unité de poste]])) -> 0 | AC7: =IF(Offer[[#This Row],[niveau]]="ressource",IF(Offer[[#This Row],[Type de ressource]]=Settings!$B$6,Offer[[#This Row],[Coût (direct) par unité de ressource]]*Settings!$H$6,IF(Offer[[#This Row],[Type de ressource]]=Settings!$B$7,Offer[[#This Row],[Coût (direct) par unité de ressource]]*Settings!$H$7,IF(Offer[[#This Row],[Type de ressource]]=Settings!$B$8,Offer[[#This Row],[Coût (direct) par unité de ressource]]*Settings!$H$8,IF(Offer[[#This Row],[Type de ressource]]=Settings!$B$9,Offer[[#This Row],[Coût (direct) par unité de ressource]]*Settings!$H$9,IF(Offer[[#This Row],[Type de ressource]]=Settings!$B$10,Offer[[#This Row],[Coût (direct) par unité de ressource]]*Settings!$H$10,""))))),"") ->  | AD7: =SUM(AD8:AD10) -> 18 | AE7: =IF(Offer[[#This Row],[niveau]]="ressource","",Paramétrage!$D$35*Offer[[#This Row],[Coût direct]]) -> 0 | AF7: =IF(Offer[[#This Row],[niveau]]="ressource",IF(Offer[[#This Row],[Description]]="","",Offer[[#This Row],[Risque par unité de ressource]]+Offer[[#This Row],[Marge par unité de ressource]]+Offer[[#This Row],[Coût indirect par unité de ressource]]+Offer[[#This Row],[Coût (direct) par unité de ressource]]),"") ->  | AG7: =IF(Offer[[#This Row],[niveau]]="poste",Paramétrage!$D$37,"") -> 0.06 | AH7: =IF(Offer[[#This Row],[niveau]]="poste",Offer[[#This Row],[TVA 6% applicable ?]]*Offer[[#This Row],[Prix de vente HTVA sans variante/option]],"") -> 0 | AI7: =IF(($I$1895)>0,Primes!$D$24,IF(($I$1481+$I$1599+$I$1599+$I$1755+$I$1828)>0,Primes!$D$25,"")) ->  | AJ7: oui | AK7: =IF(Offer[[#This Row],[niveau]]="ressource","","00 - Installation & généralités de chantier") -> 00 - Installation & généralités de chantier | AL7: =IF(Offer[[#This Row],[niveau]]="poste",0,"") -> 0 | AM7: =IF(Offer[[#This Row],[niveau]]="poste",Offer[[#This Row],[Quantité ↓]]*IF(AL7=0,Offer[[#This Row],[Prix unitaire de vente par unité de poste]]-Offer[[#This Row],[Risque par unité de poste]],AL7),"") -> 0 | AN7: =IF(Offer[[#This Row],[niveau]]="poste",IF(Offer[[#This Row],[Prix unitaire entrepr. 1]]=0,"/",Offer[[#This Row],[Prix unitaire entrepr. 1]]-Offer[[#This Row],[Rappel calcul prix unitaire de vente HTVA SANS risque]]),"") -> / | AO7: =IF(Offer[[#This Row],[niveau]]="poste",IF(Offer[[#This Row],[Prix unitaire entrepr. 1]]=0,"/",IF(Offer[[#This Row],[Quantité ↓]]=0,"/",(Offer[[#This Row],[Prix total devis entrepr. 1 OU R+ sans risque]])-(Offer[[#This Row],[Rappel calcul prix unitaire de vente HTVA SANS risque]]*Offer[[#This Row],[Quantité ↓]]))),"") -> / | AP7: =IF(Offer[[#This Row],[niveau]]="poste",IF(Offer[[#This Row],[Prix unitaire entrepr. 1]]=0,"/",Offer[[#This Row],[Prix unitaire entrepr. 1]]-Offer[[#This Row],[Rappel calcul prix unitaire de vente HTVA]]),"") -> / | AQ7: =IF(Offer[[#This Row],[niveau]]="poste",IF(Offer[[#This Row],[Prix unitaire entrepr. 1]]=0,"/",1-(Offer[[#This Row],[Rappel calcul prix unitaire de vente HTVA SANS risque]]/Offer[[#This Row],[Prix unitaire entrepr. 1]])),"") -> / | AR7: =IF(Offer[[#This Row],[niveau]]="poste",0,"") -> 0 | AS7: =IF(Offer[[#This Row],[niveau]]="poste",Offer[[#This Row],[Quantité ↓]]*IF(AR7=0,Offer[[#This Row],[Prix unitaire de vente par unité de poste]]-Offer[[#This Row],[Risque par unité de poste]],AR7),"") -> 0 | AT7: =IF(Offer[[#This Row],[niveau]]="poste",IF(Offer[[#This Row],[Prix unitaire entrepr. 2]]=0,"/",Offer[[#This Row],[Prix unitaire entrepr. 2]]-Offer[[#This Row],[Rappel calcul prix unitaire de vente HTVA SANS risque]]),"") -> / | AU7: =IF(Offer[[#This Row],[niveau]]="poste",IF(Offer[[#This Row],[Prix unitaire entrepr. 2]]=0,"/",IF(Offer[[#This Row],[Quantité ↓]]=0,"/",(Offer[[#This Row],[Prix total devis entrepr. 2 OU R+ sans risque]])-(Offer[[#This Row],[Rappel calcul prix unitaire de vente HTVA SANS risque]]*Offer[[#This Row],[Quantité ↓]]))),"") -> / | AV7: =IF(Offer[[#This Row],[niveau]]="poste",IF(Offer[[#This Row],[Prix unitaire entrepr. 2]]=0,"/",Offer[[#This Row],[Prix unitaire entrepr. 2]]-Offer[[#This Row],[Rappel calcul prix unitaire de vente HTVA]]),"") -> / | AW7: =IF(Offer[[#This Row],[niveau]]="poste",IF(Offer[[#This Row],[Prix unitaire entrepr. 2]]=0,"/",1-(Offer[[#This Row],[Rappel calcul prix unitaire de vente HTVA SANS risque]]/Offer[[#This Row],[Prix unitaire entrepr. 2]])),"") -> / | AX7: =IF(Offer[[#This Row],[niveau]]="poste",0,"") -> 0 | AY7: =IF(Offer[[#This Row],[niveau]]="poste",Offer[[#This Row],[Quantité ↓]]*IF(AX7=0,Offer[[#This Row],[Prix unitaire de vente par unité de poste]]-Offer[[#This Row],[Risque par unité de poste]],AX7),"") -> 0 | AZ7: =IF(Offer[[#This Row],[niveau]]="poste",IF(Offer[[#This Row],[Prix unitaire entrepr. 3]]=0,"/",Offer[[#This Row],[Prix unitaire entrepr. 3]]-Offer[[#This Row],[Rappel calcul prix unitaire de vente HTVA SANS risque]]),"") -> / | BA7: =IF(Offer[[#This Row],[niveau]]="poste",IF(Offer[[#This Row],[Prix unitaire entrepr. 3]]=0,"/",IF(Offer[[#This Row],[Quantité ↓]]=0,"/",(Offer[[#This Row],[Prix total devis entrepr. 3 OU R+ sans risque]])-(Offer[[#This Row],[Rappel calcul prix unitaire de vente HTVA SANS risque]]*Offer[[#This Row],[Quantité ↓]]))),"") -> / | BB7: =IF(Offer[[#This Row],[niveau]]="poste",IF(Offer[[#This Row],[Prix unitaire entrepr. 3]]=0,"/",Offer[[#This Row],[Prix unitaire entrepr. 3]]-Offer[[#This Row],[Rappel calcul prix unitaire de vente HTVA]]),"") -> / | BC7: =IF(Offer[[#This Row],[niveau]]="poste",IF(Offer[[#This Row],[Prix unitaire entrepr. 3]]=0,"/",1-(Offer[[#This Row],[Rappel calcul prix unitaire de vente HTVA SANS risque]]/Offer[[#This Row],[Prix unitaire entrepr. 3]])),"") -> / | BD7: =IF(Offer[[#This Row],[niveau]]="poste",0,"") -> 0 | BE7: =IF(Offer[[#This Row],[niveau]]="poste",Offer[[#This Row],[Quantité ↓]]*IF(BD7=0,Offer[[#This Row],[Prix unitaire de vente par unité de poste]]-Offer[[#This Row],[Risque par unité de poste]],BD7),"") -> 0 | BF7: =IF(Offer[[#This Row],[niveau]]="poste",IF(Offer[[#This Row],[Prix unitaire entrepr. 4]]=0,"/",Offer[[#This Row],[Prix unitaire entrepr. 4]]-Offer[[#This Row],[Rappel calcul prix unitaire de vente HTVA SANS risque]]),"") -> / | BG7: =IF(Offer[[#This Row],[niveau]]="poste",IF(Offer[[#This Row],[Prix unitaire entrepr. 4]]=0,"/",IF(Offer[[#This Row],[Quantité ↓]]=0,"/",(Offer[[#This Row],[Prix total devis entrepr. 4 OU R+ sans risque]])-(Offer[[#This Row],[Rappel calcul prix unitaire de vente HTVA SANS risque]]*Offer[[#This Row],[Quantité ↓]]))),"") -> / | BH7: =IF(Offer[[#This Row],[niveau]]="poste",IF(Offer[[#This Row],[Prix unitaire entrepr. 4]]=0,"/",Offer[[#This Row],[Prix unitaire entrepr. 4]]-Offer[[#This Row],[Rappel calcul prix unitaire de vente HTVA]]),"") -> / | BI7: =IF(Offer[[#This Row],[niveau]]="poste",IF(Offer[[#This Row],[Prix unitaire entrepr. 4]]=0,"/",1-(Offer[[#This Row],[Rappel calcul prix unitaire de vente HTVA SANS risque]]/Offer[[#This Row],[Prix unitaire entrepr. 4]])),"") -> / | BJ7: =IF(Offer[[#This Row],[niveau]]="poste",0,"") -> 0 | BK7: =IF(Offer[[#This Row],[niveau]]="poste",Offer[[#This Row],[Quantité ↓]]*IF(BJ7=0,Offer[[#This Row],[Prix unitaire de vente par unité de poste]]-Offer[[#This Row],[Risque par unité de poste]],BJ7),"") -> 0 | BL7: =IF(Offer[[#This Row],[niveau]]="poste",IF(Offer[[#This Row],[Prix unitaire entrepr. 5]]=0,"/",Offer[[#This Row],[Prix unitaire entrepr. 5]]-Offer[[#This Row],[Rappel calcul prix unitaire de vente HTVA SANS risque]]),"") -> / | BM7: =IF(Offer[[#This Row],[niveau]]="poste",IF(Offer[[#This Row],[Prix unitaire entrepr. 5]]=0,"/",IF(Offer[[#This Row],[Quantité ↓]]=0,"/",(Offer[[#This Row],[Prix total devis entrepr. 5 OU R+ sans risque]])-(Offer[[#This Row],[Rappel calcul prix unitaire de vente HTVA SANS risque]]*Offer[[#This Row],[Quantité ↓]]))),"") -> / | BN7: =IF(Offer[[#This Row],[niveau]]="poste",IF(Offer[[#This Row],[Prix unitaire entrepr. 5]]=0,"/",Offer[[#This Row],[Prix unitaire entrepr. 5]]-Offer[[#This Row],[Rappel calcul prix unitaire de vente HTVA]]),"") -> / | BO7: =IF(Offer[[#This Row],[niveau]]="poste",IF(Offer[[#This Row],[Prix unitaire entrepr. 5]]=0,"/",1-(Offer[[#This Row],[Rappel calcul prix unitaire de vente HTVA SANS risque]]/Offer[[#This Row],[Prix unitaire entrepr. 5]])),"") -> / | BP7: =IF(Offer[[#This Row],[niveau]]="poste",Offer[[#This Row],[Prix unitaire de vente par unité de poste]]-Offer[[#This Row],[Risque par unité de poste]],"") -> 189.75 | BQ7: =IF(Offer[[#This Row],[niveau]]="poste",Offer[[#This Row],[Quantité ↓]]*Offer[[#This Row],[Rappel calcul prix unitaire de vente HTVA SANS risque]],IF(Offer[[#This Row],[niveau]]="ressource","",Offer[[#This Row],[Total prix de vente (HTVA)]]-Offer[[#This Row],[Risque]])) -> 0 | BR7: =IF(Offer[[#This Row],[niveau]]="poste",Offer[[#This Row],[Prix unitaire de vente par unité de poste]],"") -> 207.75 | BS7: =IF(Offer[[#This Row],[niveau]]="poste",IF((Offer[[#This Row],[Prix unitaire entrepr. 1]]+Offer[[#This Row],[Prix unitaire entrepr. 2]]+Offer[[#This Row],[Prix unitaire entrepr. 3]]+Offer[[#This Row],[Prix unitaire entrepr. 4]]+Offer[[#This Row],[Prix unitaire entrepr. 5]])=0,"",(Offer[[#This Row],[Prix unitaire entrepr. 1]]+Offer[[#This Row],[Prix unitaire entrepr. 2]]+Offer[[#This Row],[Prix unitaire entrepr. 3]]+Offer[[#This Row],[Prix unitaire entrepr. 4]]+Offer[[#This Row],[Prix unitaire entrepr. 5]])/(IF(Offer[[#This Row],[Prix unitaire entrepr. 1]]>0,1,0)+IF(Offer[[#This Row],[Prix unitaire entrepr. 2]]>0,1,0)+IF(Offer[[#This Row],[Prix unitaire entrepr. 3]]>0,1,0)+IF(Offer[[#This Row],[Prix unitaire entrepr. 4]]>0,1,0)+IF(Offer[[#This Row],[Prix unitaire entrepr. 5]]>0,1,0))),"") ->  | BT7: =IF(Offer[[#This Row],[niveau]]="poste",IF(Offer[[#This Row],[Moyenne des prix unitaires des entreprises]]="","/",Offer[[#This Row],[Moyenne des prix unitaires des entreprises]]-Offer[[#This Row],[Rappel calcul prix unitaire de vente HTVA SANS risque]]),"") -> / | BU7: =IF(Offer[[#This Row],[niveau]]="poste",IF(Offer[[#This Row],[Moyenne des prix unitaires des entreprises]]="","/",IF(Offer[[#This Row],[Quantité ↓]]=0,"/",(Offer[[#This Row],[Moyenne des prix unitaires des entreprises]]*Offer[[#This Row],[Quantité ↓]])-(Offer[[#This Row],[Rappel calcul prix unitaire de vente HTVA SANS risque]]*Offer[[#This Row],[Quantité ↓]]))),"") -> / | BV7: =IF(Offer[[#This Row],[niveau]]="poste",IF(Offer[[#This Row],[Moyenne des prix unitaires des entreprises]]="","/",1-(Offer[[#This Row],[Rappel calcul prix unitaire de vente HTVA SANS risque]]/Offer[[#This Row],[Moyenne des prix unitaires des entreprises]])),"") -> / | BW7: =IF(Offer[[#This Row],[niveau]]="poste",IF(#REF!='Calcul des prix'!$AL$3,Offer[[#This Row],[Prix total devis entrepr. 1 OU R+ sans risque]]*Offer[[#This Row],[TVA 6% applicable ?]],IF(#REF!='Calcul des prix'!$AR$3,Offer[[#This Row],[Prix total devis entrepr. 1 OU R+ sans risque]]*Offer[[#This Row],[TVA 6% applicable ?]],IF(#REF!='Calcul des prix'!$AX$3,Offer[[#This Row],[Prix total devis entrepr. 1 OU R+ sans risque]]*Offer[[#This Row],[TVA 6% applicable ?]],IF(#REF!='Calcul des prix'!$BD$3,Offer[[#This Row],[Prix total devis entrepr. 1 OU R+ sans risque]]*Offer[[#This Row],[TVA 6% applicable ?]],IF(#REF!='Calcul des prix'!$BJ$3,Offer[[#This Row],[Prix total devis entrepr. 1 OU R+ sans risque]]*Offer[[#This Row],[TVA 6% applicable ?]],""))))),"") -> 
C8: Déplacements | F8: =IF(Offer[[#This Row],[niveau]]="ressource",IF(Offer[[#This Row],[Description]]="","",F7),IF(Offer[[#This Row],[niveau]]="poste",0,"")) -> 0 | G8: =IF(Offer[[#This Row],[niveau]]="ressource",IF(Offer[[#This Row],[Description]]="","",G7),"") -> FF | H8: =IF(Offer[[#This Row],[Description]]="","",IF(OR(Offer[[#This Row],[niveau]]="ressource",Offer[[#This Row],[niveau]]="poste"),ROUND(Offer[[#This Row],[Coût direct par unité de poste]]+Offer[[#This Row],[Coût indirect par unité de poste]]+Offer[[#This Row],[Marge par unité de poste]]+Offer[[#This Row],[Risque par unité de poste]],2),"")) -> 207.75 | I8: =IF(Offer[[#This Row],[niveau]]="poste",ROUND(Offer[[#This Row],[Quantité ↓]]*Offer[[#This Row],[Prix unitaire de vente par unité de poste]],2),IF(Offer[[#This Row],[niveau]]="ressource",IF(Offer[[#This Row],[Description]]="","",ROUND(Offer[[#This Row],[Quantité ↓]]*Offer[[#This Row],[Prix unitaire de vente par unité de poste]],2)))) -> 0 | J8: =IF(Offer[[#This Row],[niveau]]="poste","non","") ->  | K8: =IF(LEN(Offer[[#This Row],[Numéro ]])=2,"T1",IF(LEN(Offer[[#This Row],[Numéro ]])=4,"T2",IF(LEN(Offer[[#This Row],[Numéro ]])=6,"T3",IF(Offer[[#This Row],[Numéro ]]="","ressource","poste")))) -> ressource | L8: =IF(Offer[[#This Row],[niveau]]="poste",IF(Offer[[#This Row],[En option ?]]="non",Offer[[#This Row],[Total prix de vente (HTVA)]],0),0) -> 0 | M8: =IF(Offer[[#This Row],[niveau]]="ressource",0,IF(Offer[[#This Row],[Total prix de vente (HTVA)]]<>0,1,0)) -> 0 | O8: =IF(Offer[[#This Row],[niveau]]="ressource",IF(Offer[[#This Row],[Description]]="","", IF(ISNUMBER(FIND("heure",Offer[[#This Row],[unité de la ressource]])),Settings!$B$6, IF(ISNUMBER(FIND("déchet",Offer[[#This Row],[Description]])),Settings!$B$8, IF(ISNUMBER(FIND("déchet",Offer[[#This Row],[Commentaire]])),Settings!$B$8, IF(ISNUMBER(FIND("km",Offer[[#This Row],[unité de la ressource]])),Settings!$B$10, IF(ISNUMBER(FIND("matériau",Offer[[#This Row],[Description]])),Settings!$B$7, IF(ISNUMBER(FIND("livraison",Offer[[#This Row],[Description]])),Settings!$B$7, IF(ISNUMBER(FIND("FF",Offer[[#This Row],[unité de la ressource]])),Settings!$B$9, Settings!$B$7)))))))),"") -> Camionnettes | P8: =IF(Offer[[#This Row],[unité de la ressource]]="km",Settings!$C$10,IF(Offer[[#This Row],[unité de la ressource]]="heure(s)",Settings!$C$6,"")) -> 0.4 | Q8: km | R8: =5*2*30 -> 300 | S8: =IF(Offer[[#This Row],[niveau]]="ressource",IF(Offer[[#This Row],[Description]]="","",IF(Offer[[#This Row],[Type de ressource]]=Settings!$B$6,IF(Offer[[#This Row],[quantité d''unité de ressource par unité de poste]]>1,15*Minute,IF(Offer[[#This Row],[quantité d''unité de ressource par unité de poste]]>15*Minute,5*Minute,1*Minute)),IF(Offer[[#This Row],[quantité d''unité de ressource par unité de poste]]>1000,100,IF(Offer[[#This Row],[quantité d''unité de ressource par unité de poste]]>100,10,IF(Offer[[#This Row],[quantité d''unité de ressource par unité de poste]]>10,1,IF(Offer[[#This Row],[quantité d''unité de ressource par unité de poste]]>1,0.1,IF(Offer[[#This Row],[quantité d''unité de ressource par unité de poste]]>0.1,0.01,0.001))))))),"") -> 10 | T8: =IF(Offer[[#This Row],[niveau]]="ressource",IF(Offer[[#This Row],[Description]]="","",MROUND(Offer[[#This Row],[quantité d''unité de ressource par unité de poste]]*Offer[[#This Row],[Quantité ↓]],Offer[[#This Row],[Arrondir selon multiple]])),"") -> 0 | U8: =IF(Offer[[#This Row],[niveau]]="ressource",IF(Offer[[#This Row],[quantité d''unité de ressource par unité de poste]]="","",IF(Offer[[#This Row],[Quantité ↓]]>0,ROUND(Offer[[#This Row],[Quantité totale de ressources nécessaires pour le poste]]*Offer[[#This Row],[Coût (direct) par unité de ressource]]/Offer[[#This Row],[Quantité ↓]],2),ROUND(Offer[[#This Row],[quantité d''unité de ressource par unité de poste]]*Offer[[#This Row],[Coût (direct) par unité de ressource]],2))),"") -> 120 | V8: =IF(Offer[[#This Row],[Description]]="","",IF(Offer[[#This Row],[niveau]]="ressource",Offer[[#This Row],[Coût direct par unité de poste]]*Offer[[#This Row],[Quantité ↓]]*Offer[[#This Row],[quantité d''unité de ressource par unité de poste]],IF(Offer[[#This Row],[niveau]]="poste","poste",""))) -> 0 | W8: =IF(Offer[[#This Row],[niveau]]="ressource",IF(Offer[[#This Row],[Type de ressource]]=Settings!$B$6,Offer[[#This Row],[Coût (direct) par unité de ressource]]*Settings!$D$6,IF(Offer[[#This Row],[Type de ressource]]=Settings!$B$7,Offer[[#This Row],[Coût (direct) par unité de ressource]]*Settings!$D$7,IF(Offer[[#This Row],[Type de ressource]]=Settings!$B$8,Offer[[#This Row],[Coût (direct) par unité de ressource]]*Settings!$D$8,IF(Offer[[#This Row],[Type de ressource]]=Settings!$B$9,Offer[[#This Row],[Coût (direct) par unité de ressource]]*Settings!$D$9,IF(Offer[[#This Row],[Type de ressource]]=Settings!$B$10,Offer[[#This Row],[Coût (direct) par unité de ressource]]*Settings!$D$10,""))))),"") -> 0.04 | X8: =IF(Offer[[#This Row],[niveau]]="ressource",IF(Offer[[#This Row],[Coût indirect par unité de ressource]]="","",Offer[[#This Row],[Coût indirect par unité de ressource]]*Offer[[#This Row],[quantité d''unité de ressource par unité de poste]]),IF(Offer[[#This Row],[niveau]]="poste","poste","")) -> 12 | Y8: =IF(Offer[[#This Row],[Coût indirect par unité de poste]]="","",IF(Offer[[#This Row],[Coût direct par unité de poste]]="",Offer[[#This Row],[Coût indirect par unité de poste]]*Offer[[#This Row],[Quantité ↓]],0)) -> 0 | Z8: =IF(Offer[[#This Row],[niveau]]="ressource",IF(Offer[[#This Row],[Type de ressource]]=Settings!$B$6,Offer[[#This Row],[Coût (direct) par unité de ressource]]*Settings!$E$6,IF(Offer[[#This Row],[Type de ressource]]=Settings!$B$7,Offer[[#This Row],[Coût (direct) par unité de ressource]]*Settings!$E$7,IF(Offer[[#This Row],[Type de ressource]]=Settings!$B$8,Offer[[#This Row],[Coût (direct) par unité de ressource]]*Settings!$E$8,IF(Offer[[#This Row],[Type de ressource]]=Settings!$B$9,Offer[[#This Row],[Coût (direct) par unité de ressource]]*Settings!$E$9,IF(Offer[[#This Row],[Type de ressource]]=Settings!$B$10,Offer[[#This Row],[Coût (direct) par unité de ressource]]*Settings!$E$10,""))))),"") -> 0.1925 | AA8: =IF(Offer[[#This Row],[niveau]]="ressource",IF(Offer[[#This Row],[Marge par unité de ressource]]="","",Offer[[#This Row],[Marge par unité de ressource]]*Offer[[#This Row],[quantité d''unité de ressource par unité de poste]]),IF(Offer[[#This Row],[niveau]]="poste","poste","")) -> 57.75 | AB8: =IF(Offer[[#This Row],[Marge par unité de poste]]="","",IF(Offer[[#This Row],[Coût direct par unité de poste]]="",Offer[[#This Row],[Marge par unité de poste]]*Offer[[#This Row],[Quantité ↓]],0)) -> 0 | AC8: =IF(Offer[[#This Row],[niveau]]="ressource",IF(Offer[[#This Row],[Type de ressource]]=Settings!$B$6,Offer[[#This Row],[Coût (direct) par unité de ressource]]*Settings!$H$6,IF(Offer[[#This Row],[Type de ressource]]=Settings!$B$7,Offer[[#This Row],[Coût (direct) par unité de ressource]]*Settings!$H$7,IF(Offer[[#This Row],[Type de ressource]]=Settings!$B$8,Offer[[#This Row],[Coût (direct) par unité de ressource]]*Settings!$H$8,IF(Offer[[#This Row],[Type de ressource]]=Settings!$B$9,Offer[[#This Row],[Coût (direct) par unité de ressource]]*Settings!$H$9,IF(Offer[[#This Row],[Type de ressource]]=Settings!$B$10,Offer[[#This Row],[Coût (direct) par unité de ressource]]*Settings!$H$10,""))))),"") -> 0.06 | AD8: =IF(Offer[[#This Row],[niveau]]="ressource",IF(Offer[[#This Row],[Coût direct par unité de poste]]="","",Offer[[#This Row],[Coût direct par unité de poste]]*Paramétrage!$D$35),"") -> 18 | AE8: =IF(Offer[[#This Row],[Risque par unité de poste]]="","",IF(Offer[[#This Row],[Coût (direct) par unité de ressource]]="",Offer[[#This Row],[Risque par unité de poste]]*Offer[[#This Row],[Quantité ↓]],0)) -> 0 | AF8: =IF(Offer[[#This Row],[niveau]]="ressource",IF(Offer[[#This Row],[Description]]="","",Offer[[#This Row],[Risque par unité de ressource]]+Offer[[#This Row],[Marge par unité de ressource]]+Offer[[#This Row],[Coût indirect par unité de ressource]]+Offer[[#This Row],[Coût (direct) par unité de ressource]]),"") -> 0.6925 | AG8: =IF(Offer[[#This Row],[niveau]]="poste",Paramétrage!$D$37,"") ->  | AH8: =IF(Offer[[#This Row],[niveau]]="poste",Offer[[#This Row],[TVA 6% applicable ?]]*Offer[[#This Row],[Prix de vente HTVA sans variante/option]],"") ->  | AJ8: =IF(Offer[[#This Row],[niveau]]="ressource","","non") ->  | AK8: =IF(Offer[[#This Row],[niveau]]="ressource","","00 - Installation & généralités de chantier") ->  | AL8: =IF(Offer[[#This Row],[niveau]]="poste",0,"") ->  | AM8: =IF(Offer[[#This Row],[niveau]]="poste",Offer[[#This Row],[Quantité ↓]]*IF(AL8=0,Offer[[#This Row],[Prix unitaire de vente par unité de poste]]-Offer[[#This Row],[Risque par unité de poste]],AL8),"") ->  | AN8: =IF(Offer[[#This Row],[niveau]]="poste",IF(Offer[[#This Row],[Prix unitaire entrepr. 1]]=0,"/",Offer[[#This Row],[Prix unitaire entrepr. 1]]-Offer[[#This Row],[Rappel calcul prix unitaire de vente HTVA SANS risque]]),"") ->  | AO8: =IF(Offer[[#This Row],[niveau]]="poste",IF(Offer[[#This Row],[Prix unitaire entrepr. 1]]=0,"/",IF(Offer[[#This Row],[Quantité ↓]]=0,"/",(Offer[[#This Row],[Prix total devis entrepr. 1 OU R+ sans risque]])-(Offer[[#This Row],[Rappel calcul prix unitaire de vente HTVA SANS risque]]*Offer[[#This Row],[Quantité ↓]]))),"") ->  | AP8: =IF(Offer[[#This Row],[niveau]]="poste",IF(Offer[[#This Row],[Prix unitaire entrepr. 1]]=0,"/",Offer[[#This Row],[Prix unitaire entrepr. 1]]-Offer[[#This Row],[Rappel calcul prix unitaire de vente HTVA]]),"") ->  | AQ8: =IF(Offer[[#This Row],[niveau]]="poste",IF(Offer[[#This Row],[Prix unitaire entrepr. 1]]=0,"/",1-(Offer[[#This Row],[Rappel calcul prix unitaire de vente HTVA SANS risque]]/Offer[[#This Row],[Prix unitaire entrepr. 1]])),"") ->  | AR8: =IF(Offer[[#This Row],[niveau]]="poste",0,"") ->  | AS8: =IF(Offer[[#This Row],[niveau]]="poste",Offer[[#This Row],[Quantité ↓]]*IF(AR8=0,Offer[[#This Row],[Prix unitaire de vente par unité de poste]]-Offer[[#This Row],[Risque par unité de poste]],AR8),"") ->  | AT8: =IF(Offer[[#This Row],[niveau]]="poste",IF(Offer[[#This Row],[Prix unitaire entrepr. 2]]=0,"/",Offer[[#This Row],[Prix unitaire entrepr. 2]]-Offer[[#This Row],[Rappel calcul prix unitaire de vente HTVA SANS risque]]),"") ->  | AU8: =IF(Offer[[#This Row],[niveau]]="poste",IF(Offer[[#This Row],[Prix unitaire entrepr. 2]]=0,"/",IF(Offer[[#This Row],[Quantité ↓]]=0,"/",(Offer[[#This Row],[Prix total devis entrepr. 2 OU R+ sans risque]])-(Offer[[#This Row],[Rappel calcul prix unitaire de vente HTVA SANS risque]]*Offer[[#This Row],[Quantité ↓]]))),"") ->  | AV8: =IF(Offer[[#This Row],[niveau]]="poste",IF(Offer[[#This Row],[Prix unitaire entrepr. 2]]=0,"/",Offer[[#This Row],[Prix unitaire entrepr. 2]]-Offer[[#This Row],[Rappel calcul prix unitaire de vente HTVA]]),"") ->  | AW8: =IF(Offer[[#This Row],[niveau]]="poste",IF(Offer[[#This Row],[Prix unitaire entrepr. 2]]=0,"/",1-(Offer[[#This Row],[Rappel calcul prix unitaire de vente HTVA SANS risque]]/Offer[[#This Row],[Prix unitaire entrepr. 2]])),"") ->  | AX8: =IF(Offer[[#This Row],[niveau]]="poste",0,"") ->  | AY8: =IF(Offer[[#This Row],[niveau]]="poste",Offer[[#This Row],[Quantité ↓]]*IF(AX8=0,Offer[[#This Row],[Prix unitaire de vente par unité de poste]]-Offer[[#This Row],[Risque par unité de poste]],AX8),"") ->  | AZ8: =IF(Offer[[#This Row],[niveau]]="poste",IF(Offer[[#This Row],[Prix unitaire entrepr. 3]]=0,"/",Offer[[#This Row],[Prix unitaire entrepr. 3]]-Offer[[#This Row],[Rappel calcul prix unitaire de vente HTVA SANS risque]]),"") ->  | BA8: =IF(Offer[[#This Row],[niveau]]="poste",IF(Offer[[#This Row],[Prix unitaire entrepr. 3]]=0,"/",IF(Offer[[#This Row],[Quantité ↓]]=0,"/",(Offer[[#This Row],[Prix total devis entrepr. 3 OU R+ sans risque]])-(Offer[[#This Row],[Rappel calcul prix unitaire de vente HTVA SANS risque]]*Offer[[#This Row],[Quantité ↓]]))),"") ->  | BB8: =IF(Offer[[#This Row],[niveau]]="poste",IF(Offer[[#This Row],[Prix unitaire entrepr. 3]]=0,"/",Offer[[#This Row],[Prix unitaire entrepr. 3]]-Offer[[#This Row],[Rappel calcul prix unitaire de vente HTVA]]),"") ->  | BC8: =IF(Offer[[#This Row],[niveau]]="poste",IF(Offer[[#This Row],[Prix unitaire entrepr. 3]]=0,"/",1-(Offer[[#This Row],[Rappel calcul prix unitaire de vente HTVA SANS risque]]/Offer[[#This Row],[Prix unitaire entrepr. 3]])),"") ->  | BD8: =IF(Offer[[#This Row],[niveau]]="poste",0,"") ->  | BE8: =IF(Offer[[#This Row],[niveau]]="poste",Offer[[#This Row],[Quantité ↓]]*IF(BD8=0,Offer[[#This Row],[Prix unitaire de vente par unité de poste]]-Offer[[#This Row],[Risque par unité de poste]],BD8),"") ->  | BF8: =IF(Offer[[#This Row],[niveau]]="poste",IF(Offer[[#This Row],[Prix unitaire entrepr. 4]]=0,"/",Offer[[#This Row],[Prix unitaire entrepr. 4]]-Offer[[#This Row],[Rappel calcul prix unitaire de vente HTVA SANS risque]]),"") ->  | BG8: =IF(Offer[[#This Row],[niveau]]="poste",IF(Offer[[#This Row],[Prix unitaire entrepr. 4]]=0,"/",IF(Offer[[#This Row],[Quantité ↓]]=0,"/",(Offer[[#This Row],[Prix total devis entrepr. 4 OU R+ sans risque]])-(Offer[[#This Row],[Rappel calcul prix unitaire de vente HTVA SANS risque]]*Offer[[#This Row],[Quantité ↓]]))),"") ->  | BH8: =IF(Offer[[#This Row],[niveau]]="poste",IF(Offer[[#This Row],[Prix unitaire entrepr. 4]]=0,"/",Offer[[#This Row],[Prix unitaire entrepr. 4]]-Offer[[#This Row],[Rappel calcul prix unitaire de vente HTVA]]),"") ->  | BI8: =IF(Offer[[#This Row],[niveau]]="poste",IF(Offer[[#This Row],[Prix unitaire entrepr. 4]]=0,"/",1-(Offer[[#This Row],[Rappel calcul prix unitaire de vente HTVA SANS risque]]/Offer[[#This Row],[Prix unitaire entrepr. 4]])),"") ->  | BJ8: =IF(Offer[[#This Row],[niveau]]="poste",0,"") ->  | BK8: =IF(Offer[[#This Row],[niveau]]="poste",Offer[[#This Row],[Quantité ↓]]*IF(BJ8=0,Offer[[#This Row],[Prix unitaire de vente par unité de poste]]-Offer[[#This Row],[Risque par unité de poste]],BJ8),"") ->  | BL8: =IF(Offer[[#This Row],[niveau]]="poste",IF(Offer[[#This Row],[Prix unitaire entrepr. 5]]=0,"/",Offer[[#This Row],[Prix unitaire entrepr. 5]]-Offer[[#This Row],[Rappel calcul prix unitaire de vente HTVA SANS risque]]),"") ->  | BM8: =IF(Offer[[#This Row],[niveau]]="poste",IF(Offer[[#This Row],[Prix unitaire entrepr. 5]]=0,"/",IF(Offer[[#This Row],[Quantité ↓]]=0,"/",(Offer[[#This Row],[Prix total devis entrepr. 5 OU R+ sans risque]])-(Offer[[#This Row],[Rappel calcul prix unitaire de vente HTVA SANS risque]]*Offer[[#This Row],[Quantité ↓]]))),"") ->  | BN8: =IF(Offer[[#This Row],[niveau]]="poste",IF(Offer[[#This Row],[Prix unitaire entrepr. 5]]=0,"/",Offer[[#This Row],[Prix unitaire entrepr. 5]]-Offer[[#This Row],[Rappel calcul prix unitaire de vente HTVA]]),"") ->  | BO8: =IF(Offer[[#This Row],[niveau]]="poste",IF(Offer[[#This Row],[Prix unitaire entrepr. 5]]=0,"/",1-(Offer[[#This Row],[Rappel calcul prix unitaire de vente HTVA SANS risque]]/Offer[[#This Row],[Prix unitaire entrepr. 5]])),"") ->  | BP8: =IF(Offer[[#This Row],[niveau]]="poste",Offer[[#This Row],[Prix unitaire de vente par unité de poste]]-Offer[[#This Row],[Risque par unité de poste]],"") ->  | BQ8: =IF(Offer[[#This Row],[niveau]]="poste",Offer[[#This Row],[Quantité ↓]]*Offer[[#This Row],[Rappel calcul prix unitaire de vente HTVA SANS risque]],IF(Offer[[#This Row],[niveau]]="ressource","",Offer[[#This Row],[Total prix de vente (HTVA)]]-Offer[[#This Row],[Risque]])) ->  | BR8: =IF(Offer[[#This Row],[niveau]]="poste",Offer[[#This Row],[Prix unitaire de vente par unité de poste]],"") ->  | BS8: =IF(Offer[[#This Row],[niveau]]="poste",IF((Offer[[#This Row],[Prix unitaire entrepr. 1]]+Offer[[#This Row],[Prix unitaire entrepr. 2]]+Offer[[#This Row],[Prix unitaire entrepr. 3]]+Offer[[#This Row],[Prix unitaire entrepr. 4]]+Offer[[#This Row],[Prix unitaire entrepr. 5]])=0,"",(Offer[[#This Row],[Prix unitaire entrepr. 1]]+Offer[[#This Row],[Prix unitaire entrepr. 2]]+Offer[[#This Row],[Prix unitaire entrepr. 3]]+Offer[[#This Row],[Prix unitaire entrepr. 4]]+Offer[[#This Row],[Prix unitaire entrepr. 5]])/(IF(Offer[[#This Row],[Prix unitaire entrepr. 1]]>0,1,0)+IF(Offer[[#This Row],[Prix unitaire entrepr. 2]]>0,1,0)+IF(Offer[[#This Row],[Prix unitaire entrepr. 3]]>0,1,0)+IF(Offer[[#This Row],[Prix unitaire entrepr. 4]]>0,1,0)+IF(Offer[[#This Row],[Prix unitaire entrepr. 5]]>0,1,0))),"") ->  | BT8: =IF(Offer[[#This Row],[niveau]]="poste",IF(Offer[[#This Row],[Moyenne des prix unitaires des entreprises]]="","/",Offer[[#This Row],[Moyenne des prix unitaires des entreprises]]-Offer[[#This Row],[Rappel calcul prix unitaire de vente HTVA SANS risque]]),"") ->  | BU8: =IF(Offer[[#This Row],[niveau]]="poste",IF(Offer[[#This Row],[Moyenne des prix unitaires des entreprises]]="","/",IF(Offer[[#This Row],[Quantité ↓]]=0,"/",(Offer[[#This Row],[Moyenne des prix unitaires des entreprises]]*Offer[[#This Row],[Quantité ↓]])-(Offer[[#This Row],[Rappel calcul prix unitaire de vente HTVA SANS risque]]*Offer[[#This Row],[Quantité ↓]]))),"") ->  | BV8: =IF(Offer[[#This Row],[niveau]]="poste",IF(Offer[[#This Row],[Moyenne des prix unitaires des entreprises]]="","/",1-(Offer[[#This Row],[Rappel calcul prix unitaire de vente HTVA SANS risque]]/Offer[[#This Row],[Moyenne des prix unitaires des entreprises]])),"") ->  | BW8: =IF(Offer[[#This Row],[niveau]]="poste",IF(#REF!='Calcul des prix'!$AL$3,Offer[[#This Row],[Prix total devis entrepr. 1 OU R+ sans risque]]*Offer[[#This Row],[TVA 6% applicable ?]],IF(#REF!='Calcul des prix'!$AR$3,Offer[[#This Row],[Prix total devis entrepr. 1 OU R+ sans risque]]*Offer[[#This Row],[TVA 6% applicable ?]],IF(#REF!='Calcul des prix'!$AX$3,Offer[[#This Row],[Prix total devis entrepr. 1 OU R+ sans risque]]*Offer[[#This Row],[TVA 6% applicable ?]],IF(#REF!='Calcul des prix'!$BD$3,Offer[[#This Row],[Prix total devis entrepr. 1 OU R+ sans risque]]*Offer[[#This Row],[TVA 6% applicable ?]],IF(#REF!='Calcul des prix'!$BJ$3,Offer[[#This Row],[Prix total devis entrepr. 1 OU R+ sans risque]]*Offer[[#This Row],[TVA 6% applicable ?]],""))))),"") -> 
C9: hommes dans camionnette | D9: compris dans salaires hommes | F9: =IF(Offer[[#This Row],[niveau]]="ressource",IF(Offer[[#This Row],[Description]]="","",F8),IF(Offer[[#This Row],[niveau]]="poste",0,"")) -> 0 | G9: =IF(Offer[[#This Row],[niveau]]="ressource",IF(Offer[[#This Row],[Description]]="","",G8),"") -> FF | H9: =IF(Offer[[#This Row],[Description]]="","",IF(OR(Offer[[#This Row],[niveau]]="ressource",Offer[[#This Row],[niveau]]="poste"),ROUND(Offer[[#This Row],[Coût direct par unité de poste]]+Offer[[#This Row],[Coût indirect par unité de poste]]+Offer[[#This Row],[Marge par unité de poste]]+Offer[[#This Row],[Risque par unité de poste]],2),"")) -> 0 | I9: =IF(Offer[[#This Row],[niveau]]="poste",ROUND(Offer[[#This Row],[Quantité ↓]]*Offer[[#This Row],[Prix unitaire de vente par unité de poste]],2),IF(Offer[[#This Row],[niveau]]="ressource",IF(Offer[[#This Row],[Description]]="","",ROUND(Offer[[#This Row],[Quantité ↓]]*Offer[[#This Row],[Prix unitaire de vente par unité de poste]],2)))) -> 0 | J9: =IF(Offer[[#This Row],[niveau]]="poste","non","") ->  | K9: =IF(LEN(Offer[[#This Row],[Numéro ]])=2,"T1",IF(LEN(Offer[[#This Row],[Numéro ]])=4,"T2",IF(LEN(Offer[[#This Row],[Numéro ]])=6,"T3",IF(Offer[[#This Row],[Numéro ]]="","ressource","poste")))) -> ressource | L9: =IF(Offer[[#This Row],[niveau]]="poste",IF(Offer[[#This Row],[En option ?]]="non",Offer[[#This Row],[Total prix de vente (HTVA)]],0),0) -> 0 | M9: =IF(Offer[[#This Row],[niveau]]="ressource",0,IF(Offer[[#This Row],[Total prix de vente (HTVA)]]<>0,1,0)) -> 0 | O9: =IF(Offer[[#This Row],[niveau]]="ressource",IF(Offer[[#This Row],[Description]]="","", IF(ISNUMBER(FIND("heure",Offer[[#This Row],[unité de la ressource]])),Settings!$B$6, IF(ISNUMBER(FIND("déchet",Offer[[#This Row],[Description]])),Settings!$B$8, IF(ISNUMBER(FIND("déchet",Offer[[#This Row],[Commentaire]])),Settings!$B$8, IF(ISNUMBER(FIND("km",Offer[[#This Row],[unité de la ressource]])),Settings!$B$10, IF(ISNUMBER(FIND("matériau",Offer[[#This Row],[Description]])),Settings!$B$7, IF(ISNUMBER(FIND("livraison",Offer[[#This Row],[Description]])),Settings!$B$7, IF(ISNUMBER(FIND("FF",Offer[[#This Row],[unité de la ressource]])),Settings!$B$9, Settings!$B$7)))))))),"") -> Main d'œuvre | P9: =IF(Offer[[#This Row],[unité de la ressource]]="km",Settings!$C$10,IF(Offer[[#This Row],[unité de la ressource]]="heure(s)",Settings!$C$6,"")) -> 35 | Q9: heure(s) | R9: =5*0*Minute*2 -> 0 | S9: =IF(Offer[[#This Row],[niveau]]="ressource",IF(Offer[[#This Row],[Description]]="","",IF(Offer[[#This Row],[Type de ressource]]=Settings!$B$6,IF(Offer[[#This Row],[quantité d''unité de ressource par unité de poste]]>1,15*Minute,IF(Offer[[#This Row],[quantité d''unité de ressource par unité de poste]]>15*Minute,5*Minute,1*Minute)),IF(Offer[[#This Row],[quantité d''unité de ressource par unité de poste]]>1000,100,IF(Offer[[#This Row],[quantité d''unité de ressource par unité de poste]]>100,10,IF(Offer[[#This Row],[quantité d''unité de ressource par unité de poste]]>10,1,IF(Offer[[#This Row],[quantité d''unité de ressource par unité de poste]]>1,0.1,IF(Offer[[#This Row],[quantité d''unité de ressource par unité de poste]]>0.1,0.01,0.001))))))),"") -> 0.01666666667 | T9: =IF(Offer[[#This Row],[niveau]]="ressource",IF(Offer[[#This Row],[Description]]="","",MROUND(Offer[[#This Row],[quantité d''unité de ressource par unité de poste]]*Offer[[#This Row],[Quantité ↓]],Offer[[#This Row],[Arrondir selon multiple]])),"") -> 0 | U9: =IF(Offer[[#This Row],[niveau]]="ressource",IF(Offer[[#This Row],[quantité d''unité de ressource par unité de poste]]="","",IF(Offer[[#This Row],[Quantité ↓]]>0,ROUND(Offer[[#This Row],[Quantité totale de ressources nécessaires pour le poste]]*Offer[[#This Row],[Coût (direct) par unité de ressource]]/Offer[[#This Row],[Quantité ↓]],2),ROUND(Offer[[#This Row],[quantité d''unité de ressource par unité de poste]]*Offer[[#This Row],[Coût (direct) par unité de ressource]],2))),"") -> 0 | V9: =IF(Offer[[#This Row],[Description]]="","",IF(Offer[[#This Row],[niveau]]="ressource",Offer[[#This Row],[Coût direct par unité de poste]]*Offer[[#This Row],[Quantité ↓]]*Offer[[#This Row],[quantité d''unité de ressource par unité de poste]],IF(Offer[[#This Row],[niveau]]="poste","poste",""))) -> 0 | W9: =IF(Offer[[#This Row],[niveau]]="ressource",IF(Offer[[#This Row],[Type de ressource]]=Settings!$B$6,Offer[[#This Row],[Coût (direct) par unité de ressource]]*Settings!$D$6,IF(Offer[[#This Row],[Type de ressource]]=Settings!$B$7,Offer[[#This Row],[Coût (direct) par unité de ressource]]*Settings!$D$7,IF(Offer[[#This Row],[Type de ressource]]=Settings!$B$8,Offer[[#This Row],[Coût (direct) par unité de ressource]]*Settings!$D$8,IF(Offer[[#This Row],[Type de ressource]]=Settings!$B$9,Offer[[#This Row],[Coût (direct) par unité de ressource]]*Settings!$D$9,IF(Offer[[#This Row],[Type de ressource]]=Settings!$B$10,Offer[[#This Row],[Coût (direct) par unité de ressource]]*Settings!$D$10,""))))),"") -> 10.5 | X9: =IF(Offer[[#This Row],[niveau]]="ressource",IF(Offer[[#This Row],[Coût indirect par unité de ressource]]="","",Offer[[#This Row],[Coût indirect par unité de ressource]]*Offer[[#This Row],[quantité d''unité de ressource par unité de poste]]),IF(Offer[[#This Row],[niveau]]="poste","poste","")) -> 0 | Y9: =IF(Offer[[#This Row],[Coût indirect par unité de poste]]="","",IF(Offer[[#This Row],[Coût direct par unité de poste]]="",Offer[[#This Row],[Coût indirect par unité de poste]]*Offer[[#This Row],[Quantité ↓]],0)) -> 0 | Z9: =IF(Offer[[#This Row],[niveau]]="ressource",IF(Offer[[#This Row],[Type de ressource]]=Settings!$B$6,Offer[[#This Row],[Coût (direct) par unité de ressource]]*Settings!$E$6,IF(Offer[[#This Row],[Type de ressource]]=Settings!$B$7,Offer[[#This Row],[Coût (direct) par unité de ressource]]*Settings!$E$7,IF(Offer[[#This Row],[Type de ressource]]=Settings!$B$8,Offer[[#This Row],[Coût (direct) par unité de ressource]]*Settings!$E$8,IF(Offer[[#This Row],[Type de ressource]]=Settings!$B$9,Offer[[#This Row],[Coût (direct) par unité de ressource]]*Settings!$E$9,IF(Offer[[#This Row],[Type de ressource]]=Settings!$B$10,Offer[[#This Row],[Coût (direct) par unité de ressource]]*Settings!$E$10,""))))),"") -> 7 | AA9: =IF(Offer[[#This Row],[niveau]]="ressource",IF(Offer[[#This Row],[Marge par unité de ressource]]="","",Offer[[#This Row],[Marge par unité de ressource]]*Offer[[#This Row],[quantité d''unité de ressource par unité de poste]]),IF(Offer[[#This Row],[niveau]]="poste","poste","")) -> 0 | AB9: =IF(Offer[[#This Row],[Marge par unité de poste]]="","",IF(Offer[[#This Row],[Coût direct par unité de poste]]="",Offer[[#This Row],[Marge par unité de poste]]*Offer[[#This Row],[Quantité ↓]],0)) -> 0 | AC9: =IF(Offer[[#This Row],[niveau]]="ressource",IF(Offer[[#This Row],[Type de ressource]]=Settings!$B$6,Offer[[#This Row],[Coût (direct) par unité de ressource]]*Settings!$H$6,IF(Offer[[#This Row],[Type de ressource]]=Settings!$B$7,Offer[[#This Row],[Coût (direct) par unité de ressource]]*Settings!$H$7,IF(Offer[[#This Row],[Type de ressource]]=Settings!$B$8,Offer[[#This Row],[Coût (direct) par unité de ressource]]*Settings!$H$8,IF(Offer[[#This Row],[Type de ressource]]=Settings!$B$9,Offer[[#This Row],[Coût (direct) par unité de ressource]]*Settings!$H$9,IF(Offer[[#This Row],[Type de ressource]]=Settings!$B$10,Offer[[#This Row],[Coût (direct) par unité de ressource]]*Settings!$H$10,""))))),"") -> 5.25 | AD9: =IF(Offer[[#This Row],[niveau]]="ressource",IF(Offer[[#This Row],[Coût direct par unité de poste]]="","",Offer[[#This Row],[Coût direct par unité de poste]]*Paramétrage!$D$35),"") -> 0 | AE9: =IF(Offer[[#This Row],[Risque par unité de poste]]="","",IF(Offer[[#This Row],[Coût (direct) par unité de ressource]]="",Offer[[#This Row],[Risque par unité de poste]]*Offer[[#This Row],[Quantité ↓]],0)) -> 0 | AF9: =IF(Offer[[#This Row],[niveau]]="ressource",IF(Offer[[#This Row],[Description]]="","",Offer[[#This Row],[Risque par unité de ressource]]+Offer[[#This Row],[Marge par unité de ressource]]+Offer[[#This Row],[Coût indirect par unité de ressource]]+Offer[[#This Row],[Coût (direct) par unité de ressource]]),"") -> 57.75 | AG9: =IF(Offer[[#This Row],[niveau]]="poste",Paramétrage!$D$37,"") ->  | AH9: =IF(Offer[[#This Row],[niveau]]="poste",Offer[[#This Row],[TVA 6% applicable ?]]*Offer[[#This Row],[Prix de vente HTVA sans variante/option]],"") ->  | AJ9: =IF(Offer[[#This Row],[niveau]]="ressource","","non") ->  | AK9: =IF(Offer[[#This Row],[niveau]]="ressource","","00 - Installation & généralités de chantier") ->  | AL9: =IF(Offer[[#This Row],[niveau]]="poste",0,"") ->  | AM9: =IF(Offer[[#This Row],[niveau]]="poste",Offer[[#This Row],[Quantité ↓]]*IF(AL9=0,Offer[[#This Row],[Prix unitaire de vente par unité de poste]]-Offer[[#This Row],[Risque par unité de poste]],AL9),"") ->  | AN9: =IF(Offer[[#This Row],[niveau]]="poste",IF(Offer[[#This Row],[Prix unitaire entrepr. 1]]=0,"/",Offer[[#This Row],[Prix unitaire entrepr. 1]]-Offer[[#This Row],[Rappel calcul prix unitaire de vente HTVA SANS risque]]),"") ->  | AO9: =IF(Offer[[#This Row],[niveau]]="poste",IF(Offer[[#This Row],[Prix unitaire entrepr. 1]]=0,"/",IF(Offer[[#This Row],[Quantité ↓]]=0,"/",(Offer[[#This Row],[Prix total devis entrepr. 1 OU R+ sans risque]])-(Offer[[#This Row],[Rappel calcul prix unitaire de vente HTVA SANS risque]]*Offer[[#This Row],[Quantité ↓]]))),"") ->  | AP9: =IF(Offer[[#This Row],[niveau]]="poste",IF(Offer[[#This Row],[Prix unitaire entrepr. 1]]=0,"/",Offer[[#This Row],[Prix unitaire entrepr. 1]]-Offer[[#This Row],[Rappel calcul prix unitaire de vente HTVA]]),"") ->  | AQ9: =IF(Offer[[#This Row],[niveau]]="poste",IF(Offer[[#This Row],[Prix unitaire entrepr. 1]]=0,"/",1-(Offer[[#This Row],[Rappel calcul prix unitaire de vente HTVA SANS risque]]/Offer[[#This Row],[Prix unitaire entrepr. 1]])),"") ->  | AR9: =IF(Offer[[#This Row],[niveau]]="poste",0,"") ->  | AS9: =IF(Offer[[#This Row],[niveau]]="poste",Offer[[#This Row],[Quantité ↓]]*IF(AR9=0,Offer[[#This Row],[Prix unitaire de vente par unité de poste]]-Offer[[#This Row],[Risque par unité de poste]],AR9),"") ->  | AT9: =IF(Offer[[#This Row],[niveau]]="poste",IF(Offer[[#This Row],[Prix unitaire entrepr. 2]]=0,"/",Offer[[#This Row],[Prix unitaire entrepr. 2]]-Offer[[#This Row],[Rappel calcul prix unitaire de vente HTVA SANS risque]]),"") ->  | AU9: =IF(Offer[[#This Row],[niveau]]="poste",IF(Offer[[#This Row],[Prix unitaire entrepr. 2]]=0,"/",IF(Offer[[#This Row],[Quantité ↓]]=0,"/",(Offer[[#This Row],[Prix total devis entrepr. 2 OU R+ sans risque]])-(Offer[[#This Row],[Rappel calcul prix unitaire de vente HTVA SANS risque]]*Offer[[#This Row],[Quantité ↓]]))),"") ->  | AV9: =IF(Offer[[#This Row],[niveau]]="poste",IF(Offer[[#This Row],[Prix unitaire entrepr. 2]]=0,"/",Offer[[#This Row],[Prix unitaire entrepr. 2]]-Offer[[#This Row],[Rappel calcul prix unitaire de vente HTVA]]),"") ->  | AW9: =IF(Offer[[#This Row],[niveau]]="poste",IF(Offer[[#This Row],[Prix unitaire entrepr. 2]]=0,"/",1-(Offer[[#This Row],[Rappel calcul prix unitaire de vente HTVA SANS risque]]/Offer[[#This Row],[Prix unitaire entrepr. 2]])),"") ->  | AX9: =IF(Offer[[#This Row],[niveau]]="poste",0,"") ->  | AY9: =IF(Offer[[#This Row],[niveau]]="poste",Offer[[#This Row],[Quantité ↓]]*IF(AX9=0,Offer[[#This Row],[Prix unitaire de vente par unité de poste]]-Offer[[#This Row],[Risque par unité de poste]],AX9),"") ->  | AZ9: =IF(Offer[[#This Row],[niveau]]="poste",IF(Offer[[#This Row],[Prix unitaire entrepr. 3]]=0,"/",Offer[[#This Row],[Prix unitaire entrepr. 3]]-Offer[[#This Row],[Rappel calcul prix unitaire de vente HTVA SANS risque]]),"") ->  | BA9: =IF(Offer[[#This Row],[niveau]]="poste",IF(Offer[[#This Row],[Prix unitaire entrepr. 3]]=0,"/",IF(Offer[[#This Row],[Quantité ↓]]=0,"/",(Offer[[#This Row],[Prix total devis entrepr. 3 OU R+ sans risque]])-(Offer[[#This Row],[Rappel calcul prix unitaire de vente HTVA SANS risque]]*Offer[[#This Row],[Quantité ↓]]))),"") ->  | BB9: =IF(Offer[[#This Row],[niveau]]="poste",IF(Offer[[#This Row],[Prix unitaire entrepr. 3]]=0,"/",Offer[[#This Row],[Prix unitaire entrepr. 3]]-Offer[[#This Row],[Rappel calcul prix unitaire de vente HTVA]]),"") ->  | BC9: =IF(Offer[[#This Row],[niveau]]="poste",IF(Offer[[#This Row],[Prix unitaire entrepr. 3]]=0,"/",1-(Offer[[#This Row],[Rappel calcul prix unitaire de vente HTVA SANS risque]]/Offer[[#This Row],[Prix unitaire entrepr. 3]])),"") ->  | BD9: =IF(Offer[[#This Row],[niveau]]="poste",0,"") ->  | BE9: =IF(Offer[[#This Row],[niveau]]="poste",Offer[[#This Row],[Quantité ↓]]*IF(BD9=0,Offer[[#This Row],[Prix unitaire de vente par unité de poste]]-Offer[[#This Row],[Risque par unité de poste]],BD9),"") ->  | BF9: =IF(Offer[[#This Row],[niveau]]="poste",IF(Offer[[#This Row],[Prix unitaire entrepr. 4]]=0,"/",Offer[[#This Row],[Prix unitaire entrepr. 4]]-Offer[[#This Row],[Rappel calcul prix unitaire de vente HTVA SANS risque]]),"") ->  | BG9: =IF(Offer[[#This Row],[niveau]]="poste",IF(Offer[[#This Row],[Prix unitaire entrepr. 4]]=0,"/",IF(Offer[[#This Row],[Quantité ↓]]=0,"/",(Offer[[#This Row],[Prix total devis entrepr. 4 OU R+ sans risque]])-(Offer[[#This Row],[Rappel calcul prix unitaire de vente HTVA SANS risque]]*Offer[[#This Row],[Quantité ↓]]))),"") ->  | BH9: =IF(Offer[[#This Row],[niveau]]="poste",IF(Offer[[#This Row],[Prix unitaire entrepr. 4]]=0,"/",Offer[[#This Row],[Prix unitaire entrepr. 4]]-Offer[[#This Row],[Rappel calcul prix unitaire de vente HTVA]]),"") ->  | BI9: =IF(Offer[[#This Row],[niveau]]="poste",IF(Offer[[#This Row],[Prix unitaire entrepr. 4]]=0,"/",1-(Offer[[#This Row],[Rappel calcul prix unitaire de vente HTVA SANS risque]]/Offer[[#This Row],[Prix unitaire entrepr. 4]])),"") ->  | BJ9: =IF(Offer[[#This Row],[niveau]]="poste",0,"") ->  | BK9: =IF(Offer[[#This Row],[niveau]]="poste",Offer[[#This Row],[Quantité ↓]]*IF(BJ9=0,Offer[[#This Row],[Prix unitaire de vente par unité de poste]]-Offer[[#This Row],[Risque par unité de poste]],BJ9),"") ->  | BL9: =IF(Offer[[#This Row],[niveau]]="poste",IF(Offer[[#This Row],[Prix unitaire entrepr. 5]]=0,"/",Offer[[#This Row],[Prix unitaire entrepr. 5]]-Offer[[#This Row],[Rappel calcul prix unitaire de vente HTVA SANS risque]]),"") ->  | BM9: =IF(Offer[[#This Row],[niveau]]="poste",IF(Offer[[#This Row],[Prix unitaire entrepr. 5]]=0,"/",IF(Offer[[#This Row],[Quantité ↓]]=0,"/",(Offer[[#This Row],[Prix total devis entrepr. 5 OU R+ sans risque]])-(Offer[[#This Row],[Rappel calcul prix unitaire de vente HTVA SANS risque]]*Offer[[#This Row],[Quantité ↓]]))),"") ->  | BN9: =IF(Offer[[#This Row],[niveau]]="poste",IF(Offer[[#This Row],[Prix unitaire entrepr. 5]]=0,"/",Offer[[#This Row],[Prix unitaire entrepr. 5]]-Offer[[#This Row],[Rappel calcul prix unitaire de vente HTVA]]),"") ->  | BO9: =IF(Offer[[#This Row],[niveau]]="poste",IF(Offer[[#This Row],[Prix unitaire entrepr. 5]]=0,"/",1-(Offer[[#This Row],[Rappel calcul prix unitaire de vente HTVA SANS risque]]/Offer[[#This Row],[Prix unitaire entrepr. 5]])),"") ->  | BP9: =IF(Offer[[#This Row],[niveau]]="poste",Offer[[#This Row],[Prix unitaire de vente par unité de poste]]-Offer[[#This Row],[Risque par unité de poste]],"") ->  | BQ9: =IF(Offer[[#This Row],[niveau]]="poste",Offer[[#This Row],[Quantité ↓]]*Offer[[#This Row],[Rappel calcul prix unitaire de vente HTVA SANS risque]],IF(Offer[[#This Row],[niveau]]="ressource","",Offer[[#This Row],[Total prix de vente (HTVA)]]-Offer[[#This Row],[Risque]])) ->  | BR9: =IF(Offer[[#This Row],[niveau]]="poste",Offer[[#This Row],[Prix unitaire de vente par unité de poste]],"") ->  | BS9: =IF(Offer[[#This Row],[niveau]]="poste",IF((Offer[[#This Row],[Prix unitaire entrepr. 1]]+Offer[[#This Row],[Prix unitaire entrepr. 2]]+Offer[[#This Row],[Prix unitaire entrepr. 3]]+Offer[[#This Row],[Prix unitaire entrepr. 4]]+Offer[[#This Row],[Prix unitaire entrepr. 5]])=0,"",(Offer[[#This Row],[Prix unitaire entrepr. 1]]+Offer[[#This Row],[Prix unitaire entrepr. 2]]+Offer[[#This Row],[Prix unitaire entrepr. 3]]+Offer[[#This Row],[Prix unitaire entrepr. 4]]+Offer[[#This Row],[Prix unitaire entrepr. 5]])/(IF(Offer[[#This Row],[Prix unitaire entrepr. 1]]>0,1,0)+IF(Offer[[#This Row],[Prix unitaire entrepr. 2]]>0,1,0)+IF(Offer[[#This Row],[Prix unitaire entrepr. 3]]>0,1,0)+IF(Offer[[#This Row],[Prix unitaire entrepr. 4]]>0,1,0)+IF(Offer[[#This Row],[Prix unitaire entrepr. 5]]>0,1,0))),"") ->  | BT9: =IF(Offer[[#This Row],[niveau]]="poste",IF(Offer[[#This Row],[Moyenne des prix unitaires des entreprises]]="","/",Offer[[#This Row],[Moyenne des prix unitaires des entreprises]]-Offer[[#This Row],[Rappel calcul prix unitaire de vente HTVA SANS risque]]),"") ->  | BU9: =IF(Offer[[#This Row],[niveau]]="poste",IF(Offer[[#This Row],[Moyenne des prix unitaires des entreprises]]="","/",IF(Offer[[#This Row],[Quantité ↓]]=0,"/",(Offer[[#This Row],[Moyenne des prix unitaires des entreprises]]*Offer[[#This Row],[Quantité ↓]])-(Offer[[#This Row],[Rappel calcul prix unitaire de vente HTVA SANS risque]]*Offer[[#This Row],[Quantité ↓]]))),"") ->  | BV9: =IF(Offer[[#This Row],[niveau]]="poste",IF(Offer[[#This Row],[Moyenne des prix unitaires des entreprises]]="","/",1-(Offer[[#This Row],[Rappel calcul prix unitaire de vente HTVA SANS risque]]/Offer[[#This Row],[Moyenne des prix unitaires des entreprises]])),"") ->  | BW9: =IF(Offer[[#This Row],[niveau]]="poste",IF(#REF!='Calcul des prix'!$AL$3,Offer[[#This Row],[Prix total devis entrepr. 1 OU R+ sans risque]]*Offer[[#This Row],[TVA 6% applicable ?]],IF(#REF!='Calcul des prix'!$AR$3,Offer[[#This Row],[Prix total devis entrepr. 1 OU R+ sans risque]]*Offer[[#This Row],[TVA 6% applicable ?]],IF(#REF!='Calcul des prix'!$AX$3,Offer[[#This Row],[Prix total devis entrepr. 1 OU R+ sans risque]]*Offer[[#This Row],[TVA 6% applicable ?]],IF(#REF!='Calcul des prix'!$BD$3,Offer[[#This Row],[Prix total devis entrepr. 1 OU R+ sans risque]]*Offer[[#This Row],[TVA 6% applicable ?]],IF(#REF!='Calcul des prix'!$BJ$3,Offer[[#This Row],[Prix total devis entrepr. 1 OU R+ sans risque]]*Offer[[#This Row],[TVA 6% applicable ?]],""))))),"") -> 
F10: =IF(Offer[[#This Row],[niveau]]="ressource",IF(Offer[[#This Row],[Description]]="","",F9),IF(Offer[[#This Row],[niveau]]="poste",0,"")) ->  | G10: =IF(Offer[[#This Row],[niveau]]="ressource",IF(Offer[[#This Row],[Description]]="","",G9),"") ->  | H10: =IF(Offer[[#This Row],[Description]]="","",IF(OR(Offer[[#This Row],[niveau]]="ressource",Offer[[#This Row],[niveau]]="poste"),ROUND(Offer[[#This Row],[Coût direct par unité de poste]]+Offer[[#This Row],[Coût indirect par unité de poste]]+Offer[[#This Row],[Marge par unité de poste]]+Offer[[#This Row],[Risque par unité de poste]],2),"")) ->  | I10: =IF(Offer[[#This Row],[niveau]]="poste",ROUND(Offer[[#This Row],[Quantité ↓]]*Offer[[#This Row],[Prix unitaire de vente par unité de poste]],2),IF(Offer[[#This Row],[niveau]]="ressource",IF(Offer[[#This Row],[Description]]="","",ROUND(Offer[[#This Row],[Quantité ↓]]*Offer[[#This Row],[Prix unitaire de vente par unité de poste]],2)))) ->  | J10: =IF(Offer[[#This Row],[niveau]]="poste","non","") ->  | K10: =IF(LEN(Offer[[#This Row],[Numéro ]])=2,"T1",IF(LEN(Offer[[#This Row],[Numéro ]])=4,"T2",IF(LEN(Offer[[#This Row],[Numéro ]])=6,"T3",IF(Offer[[#This Row],[Numéro ]]="","ressource","poste")))) -> ressource | L10: =IF(Offer[[#This Row],[niveau]]="poste",IF(Offer[[#This Row],[En option ?]]="non",Offer[[#This Row],[Total prix de vente (HTVA)]],0),0) -> 0 | M10: =IF(Offer[[#This Row],[niveau]]="ressource",0,IF(Offer[[#This Row],[Total prix de vente (HTVA)]]<>0,1,0)) -> 0 | O10: =IF(Offer[[#This Row],[niveau]]="ressource",IF(Offer[[#This Row],[Description]]="","", IF(ISNUMBER(FIND("heure",Offer[[#This Row],[unité de la ressource]])),Settings!$B$6, IF(ISNUMBER(FIND("déchet",Offer[[#This Row],[Description]])),Settings!$B$8, IF(ISNUMBER(FIND("déchet",Offer[[#This Row],[Commentaire]])),Settings!$B$8, IF(ISNUMBER(FIND("km",Offer[[#This Row],[unité de la ressource]])),Settings!$B$10, IF(ISNUMBER(FIND("matériau",Offer[[#This Row],[Description]])),Settings!$B$7, IF(ISNUMBER(FIND("livraison",Offer[[#This Row],[Description]])),Settings!$B$7, IF(ISNUMBER(FIND("FF",Offer[[#This Row],[unité de la ressource]])),Settings!$B$9, Settings!$B$7)))))))),"") ->  | S10: =IF(Offer[[#This Row],[niveau]]="ressource",IF(Offer[[#This Row],[Description]]="","",IF(Offer[[#This Row],[Type de ressource]]=Settings!$B$6,IF(Offer[[#This Row],[quantité d''unité de ressource par unité de poste]]>1,15*Minute,IF(Offer[[#This Row],[quantité d''unité de ressource par unité de poste]]>15*Minute,5*Minute,1*Minute)),IF(Offer[[#This Row],[quantité d''unité de ressource par unité de poste]]>1000,100,IF(Offer[[#This Row],[quantité d''unité de ressource par unité de poste]]>100,10,IF(Offer[[#This Row],[quantité d''unité de ressource par unité de poste]]>10,1,IF(Offer[[#This Row],[quantité d''unité de ressource par unité de poste]]>1,0.1,IF(Offer[[#This Row],[quantité d''unité de ressource par unité de poste]]>0.1,0.01,0.001))))))),"") ->  | T10: =IF(Offer[[#This Row],[niveau]]="ressource",IF(Offer[[#This Row],[Description]]="","",MROUND(Offer[[#This Row],[quantité d''unité de ressource par unité de poste]]*Offer[[#This Row],[Quantité ↓]],Offer[[#This Row],[Arrondir selon multiple]])),"") ->  | U10: =IF(Offer[[#This Row],[niveau]]="ressource",IF(Offer[[#This Row],[quantité d''unité de ressource par unité de poste]]="","",IF(Offer[[#This Row],[Quantité ↓]]>0,ROUND(Offer[[#This Row],[Quantité totale de ressources nécessaires pour le poste]]*Offer[[#This Row],[Coût (direct) par unité de ressource]]/Offer[[#This Row],[Quantité ↓]],2),ROUND(Offer[[#This Row],[quantité d''unité de ressource par unité de poste]]*Offer[[#This Row],[Coût (direct) par unité de ressource]],2))),"") ->  | V10: =IF(Offer[[#This Row],[Description]]="","",IF(Offer[[#This Row],[niveau]]="ressource",Offer[[#This Row],[Coût direct par unité de poste]]*Offer[[#This Row],[Quantité ↓]]*Offer[[#This Row],[quantité d''unité de ressource par unité de poste]],IF(Offer[[#This Row],[niveau]]="poste","poste",""))) ->  | W10: =IF(Offer[[#This Row],[niveau]]="ressource",IF(Offer[[#This Row],[Type de ressource]]=Settings!$B$6,Offer[[#This Row],[Coût (direct) par unité de ressource]]*Settings!$D$6,IF(Offer[[#This Row],[Type de ressource]]=Settings!$B$7,Offer[[#This Row],[Coût (direct) par unité de ressource]]*Settings!$D$7,IF(Offer[[#This Row],[Type de ressource]]=Settings!$B$8,Offer[[#This Row],[Coût (direct) par unité de ressource]]*Settings!$D$8,IF(Offer[[#This Row],[Type de ressource]]=Settings!$B$9,Offer[[#This Row],[Coût (direct) par unité de ressource]]*Settings!$D$9,IF(Offer[[#This Row],[Type de ressource]]=Settings!$B$10,Offer[[#This Row],[Coût (direct) par unité de ressource]]*Settings!$D$10,""))))),"") ->  | X10: =IF(Offer[[#This Row],[niveau]]="ressource",IF(Offer[[#This Row],[Coût indirect par unité de ressource]]="","",Offer[[#This Row],[Coût indirect par unité de ressource]]*Offer[[#This Row],[quantité d''unité de ressource par unité de poste]]),IF(Offer[[#This Row],[niveau]]="poste","poste","")) ->  | Y10: =IF(Offer[[#This Row],[Coût indirect par unité de poste]]="","",IF(Offer[[#This Row],[Coût direct par unité de poste]]="",Offer[[#This Row],[Coût indirect par unité de poste]]*Offer[[#This Row],[Quantité ↓]],0)) ->  | Z10: =IF(Offer[[#This Row],[niveau]]="ressource",IF(Offer[[#This Row],[Type de ressource]]=Settings!$B$6,Offer[[#This Row],[Coût (direct) par unité de ressource]]*Settings!$E$6,IF(Offer[[#This Row],[Type de ressource]]=Settings!$B$7,Offer[[#This Row],[Coût (direct) par unité de ressource]]*Settings!$E$7,IF(Offer[[#This Row],[Type de ressource]]=Settings!$B$8,Offer[[#This Row],[Coût (direct) par unité de ressource]]*Settings!$E$8,IF(Offer[[#This Row],[Type de ressource]]=Settings!$B$9,Offer[[#This Row],[Coût (direct) par unité de ressource]]*Settings!$E$9,IF(Offer[[#This Row],[Type de ressource]]=Settings!$B$10,Offer[[#This Row],[Coût (direct) par unité de ressource]]*Settings!$E$10,""))))),"") ->  | AA10: =IF(Offer[[#This Row],[niveau]]="ressource",IF(Offer[[#This Row],[Marge par unité de ressource]]="","",Offer[[#This Row],[Marge par unité de ressource]]*Offer[[#This Row],[quantité d''unité de ressource par unité de poste]]),IF(Offer[[#This Row],[niveau]]="poste","poste","")) ->  | AB10: =IF(Offer[[#This Row],[Marge par unité de poste]]="","",IF(Offer[[#This Row],[Coût direct par unité de poste]]="",Offer[[#This Row],[Marge par unité de poste]]*Offer[[#This Row],[Quantité ↓]],0)) ->  | AC10: =IF(Offer[[#This Row],[niveau]]="ressource",IF(Offer[[#This Row],[Type de ressource]]=Settings!$B$6,Offer[[#This Row],[Coût (direct) par unité de ressource]]*Settings!$H$6,IF(Offer[[#This Row],[Type de ressource]]=Settings!$B$7,Offer[[#This Row],[Coût (direct) par unité de ressource]]*Settings!$H$7,IF(Offer[[#This Row],[Type de ressource]]=Settings!$B$8,Offer[[#This Row],[Coût (direct) par unité de ressource]]*Settings!$H$8,IF(Offer[[#This Row],[Type de ressource]]=Settings!$B$9,Offer[[#This Row],[Coût (direct) par unité de ressource]]*Settings!$H$9,IF(Offer[[#This Row],[Type de ressource]]=Settings!$B$10,Offer[[#This Row],[Coût (direct) par unité de ressource]]*Settings!$H$10,""))))),"") ->  | AD10: =IF(Offer[[#This Row],[niveau]]="ressource",IF(Offer[[#This Row],[Coût direct par unité de poste]]="","",Offer[[#This Row],[Coût direct par unité de poste]]*Paramétrage!$D$35),"") ->  | AE10: =IF(Offer[[#This Row],[Risque par unité de poste]]="","",IF(Offer[[#This Row],[Coût (direct) par unité de ressource]]="",Offer[[#This Row],[Risque par unité de poste]]*Offer[[#This Row],[Quantité ↓]],0)) ->  | AF10: =IF(Offer[[#This Row],[niveau]]="ressource",IF(Offer[[#This Row],[Description]]="","",Offer[[#This Row],[Risque par unité de ressource]]+Offer[[#This Row],[Marge par unité de ressource]]+Offer[[#This Row],[Coût indirect par unité de ressource]]+Offer[[#This Row],[Coût (direct) par unité de ressource]]),"") ->  | AG10: =IF(Offer[[#This Row],[niveau]]="poste",Paramétrage!$D$37,"") ->  | AH10: =IF(Offer[[#This Row],[niveau]]="poste",Offer[[#This Row],[TVA 6% applicable ?]]*Offer[[#This Row],[Prix de vente HTVA sans variante/option]],"") ->  | AJ10: =IF(Offer[[#This Row],[niveau]]="ressource","","non") ->  | AK10: =IF(Offer[[#This Row],[niveau]]="ressource","","00 - Installation & généralités de chantier") ->  | AL10: =IF(Offer[[#This Row],[niveau]]="poste",0,"") ->  | AM10: =IF(Offer[[#This Row],[niveau]]="poste",Offer[[#This Row],[Quantité ↓]]*IF(AL10=0,Offer[[#This Row],[Prix unitaire de vente par unité de poste]]-Offer[[#This Row],[Risque par unité de poste]],AL10),"") ->  | AN10: =IF(Offer[[#This Row],[niveau]]="poste",IF(Offer[[#This Row],[Prix unitaire entrepr. 1]]=0,"/",Offer[[#This Row],[Prix unitaire entrepr. 1]]-Offer[[#This Row],[Rappel calcul prix unitaire de vente HTVA SANS risque]]),"") ->  | AO10: =IF(Offer[[#This Row],[niveau]]="poste",IF(Offer[[#This Row],[Prix unitaire entrepr. 1]]=0,"/",IF(Offer[[#This Row],[Quantité ↓]]=0,"/",(Offer[[#This Row],[Prix total devis entrepr. 1 OU R+ sans risque]])-(Offer[[#This Row],[Rappel calcul prix unitaire de vente HTVA SANS risque]]*Offer[[#This Row],[Quantité ↓]]))),"") ->  | AP10: =IF(Offer[[#This Row],[niveau]]="poste",IF(Offer[[#This Row],[Prix unitaire entrepr. 1]]=0,"/",Offer[[#This Row],[Prix unitaire entrepr. 1]]-Offer[[#This Row],[Rappel calcul prix unitaire de vente HTVA]]),"") ->  | AQ10: =IF(Offer[[#This Row],[niveau]]="poste",IF(Offer[[#This Row],[Prix unitaire entrepr. 1]]=0,"/",1-(Offer[[#This Row],[Rappel calcul prix unitaire de vente HTVA SANS risque]]/Offer[[#This Row],[Prix unitaire entrepr. 1]])),"") ->  | AR10: =IF(Offer[[#This Row],[niveau]]="poste",0,"") ->  | AS10: =IF(Offer[[#This Row],[niveau]]="poste",Offer[[#This Row],[Quantité ↓]]*IF(AR10=0,Offer[[#This Row],[Prix unitaire de vente par unité de poste]]-Offer[[#This Row],[Risque par unité de poste]],AR10),"") ->  | AT10: =IF(Offer[[#This Row],[niveau]]="poste",IF(Offer[[#This Row],[Prix unitaire entrepr. 2]]=0,"/",Offer[[#This Row],[Prix unitaire entrepr. 2]]-Offer[[#This Row],[Rappel calcul prix unitaire de vente HTVA SANS risque]]),"") ->  | AU10: =IF(Offer[[#This Row],[niveau]]="poste",IF(Offer[[#This Row],[Prix unitaire entrepr. 2]]=0,"/",IF(Offer[[#This Row],[Quantité ↓]]=0,"/",(Offer[[#This Row],[Prix total devis entrepr. 2 OU R+ sans risque]])-(Offer[[#This Row],[Rappel calcul prix unitaire de vente HTVA SANS risque]]*Offer[[#This Row],[Quantité ↓]]))),"") ->  | AV10: =IF(Offer[[#This Row],[niveau]]="poste",IF(Offer[[#This Row],[Prix unitaire entrepr. 2]]=0,"/",Offer[[#This Row],[Prix unitaire entrepr. 2]]-Offer[[#This Row],[Rappel calcul prix unitaire de vente HTVA]]),"") ->  | AW10: =IF(Offer[[#This Row],[niveau]]="poste",IF(Offer[[#This Row],[Prix unitaire entrepr. 2]]=0,"/",1-(Offer[[#This Row],[Rappel calcul prix unitaire de vente HTVA SANS risque]]/Offer[[#This Row],[Prix unitaire entrepr. 2]])),"") ->  | AX10: =IF(Offer[[#This Row],[niveau]]="poste",0,"") ->  | AY10: =IF(Offer[[#This Row],[niveau]]="poste",Offer[[#This Row],[Quantité ↓]]*IF(AX10=0,Offer[[#This Row],[Prix unitaire de vente par unité de poste]]-Offer[[#This Row],[Risque par unité de poste]],AX10),"") ->  | AZ10: =IF(Offer[[#This Row],[niveau]]="poste",IF(Offer[[#This Row],[Prix unitaire entrepr. 3]]=0,"/",Offer[[#This Row],[Prix unitaire entrepr. 3]]-Offer[[#This Row],[Rappel calcul prix unitaire de vente HTVA SANS risque]]),"") ->  | BA10: =IF(Offer[[#This Row],[niveau]]="poste",IF(Offer[[#This Row],[Prix unitaire entrepr. 3]]=0,"/",IF(Offer[[#This Row],[Quantité ↓]]=0,"/",(Offer[[#This Row],[Prix total devis entrepr. 3 OU R+ sans risque]])-(Offer[[#This Row],[Rappel calcul prix unitaire de vente HTVA SANS risque]]*Offer[[#This Row],[Quantité ↓]]))),"") ->  | BB10: =IF(Offer[[#This Row],[niveau]]="poste",IF(Offer[[#This Row],[Prix unitaire entrepr. 3]]=0,"/",Offer[[#This Row],[Prix unitaire entrepr. 3]]-Offer[[#This Row],[Rappel calcul prix unitaire de vente HTVA]]),"") ->  | BC10: =IF(Offer[[#This Row],[niveau]]="poste",IF(Offer[[#This Row],[Prix unitaire entrepr. 3]]=0,"/",1-(Offer[[#This Row],[Rappel calcul prix unitaire de vente HTVA SANS risque]]/Offer[[#This Row],[Prix unitaire entrepr. 3]])),"") ->  | BD10: =IF(Offer[[#This Row],[niveau]]="poste",0,"") ->  | BE10: =IF(Offer[[#This Row],[niveau]]="poste",Offer[[#This Row],[Quantité ↓]]*IF(BD10=0,Offer[[#This Row],[Prix unitaire de vente par unité de poste]]-Offer[[#This Row],[Risque par unité de poste]],BD10),"") ->  | BF10: =IF(Offer[[#This Row],[niveau]]="poste",IF(Offer[[#This Row],[Prix unitaire entrepr. 4]]=0,"/",Offer[[#This Row],[Prix unitaire entrepr. 4]]-Offer[[#This Row],[Rappel calcul prix unitaire de vente HTVA SANS risque]]),"") ->  | BG10: =IF(Offer[[#This Row],[niveau]]="poste",IF(Offer[[#This Row],[Prix unitaire entrepr. 4]]=0,"/",IF(Offer[[#This Row],[Quantité ↓]]=0,"/",(Offer[[#This Row],[Prix total devis entrepr. 4 OU R+ sans risque]])-(Offer[[#This Row],[Rappel calcul prix unitaire de vente HTVA SANS risque]]*Offer[[#This Row],[Quantité ↓]]))),"") ->  | BH10: =IF(Offer[[#This Row],[niveau]]="poste",IF(Offer[[#This Row],[Prix unitaire entrepr. 4]]=0,"/",Offer[[#This Row],[Prix unitaire entrepr. 4]]-Offer[[#This Row],[Rappel calcul prix unitaire de vente HTVA]]),"") ->  | BI10: =IF(Offer[[#This Row],[niveau]]="poste",IF(Offer[[#This Row],[Prix unitaire entrepr. 4]]=0,"/",1-(Offer[[#This Row],[Rappel calcul prix unitaire de vente HTVA SANS risque]]/Offer[[#This Row],[Prix unitaire entrepr. 4]])),"") ->  | BJ10: =IF(Offer[[#This Row],[niveau]]="poste",0,"") ->  | BK10: =IF(Offer[[#This Row],[niveau]]="poste",Offer[[#This Row],[Quantité ↓]]*IF(BJ10=0,Offer[[#This Row],[Prix unitaire de vente par unité de poste]]-Offer[[#This Row],[Risque par unité de poste]],BJ10),"") ->  | BL10: =IF(Offer[[#This Row],[niveau]]="poste",IF(Offer[[#This Row],[Prix unitaire entrepr. 5]]=0,"/",Offer[[#This Row],[Prix unitaire entrepr. 5]]-Offer[[#This Row],[Rappel calcul prix unitaire de vente HTVA SANS risque]]),"") ->  | BM10: =IF(Offer[[#This Row],[niveau]]="poste",IF(Offer[[#This Row],[Prix unitaire entrepr. 5]]=0,"/",IF(Offer[[#This Row],[Quantité ↓]]=0,"/",(Offer[[#This Row],[Prix total devis entrepr. 5 OU R+ sans risque]])-(Offer[[#This Row],[Rappel calcul prix unitaire de vente HTVA SANS risque]]*Offer[[#This Row],[Quantité ↓]]))),"") ->  | BN10: =IF(Offer[[#This Row],[niveau]]="poste",IF(Offer[[#This Row],[Prix unitaire entrepr. 5]]=0,"/",Offer[[#This Row],[Prix unitaire entrepr. 5]]-Offer[[#This Row],[Rappel calcul prix unitaire de vente HTVA]]),"") ->  | BO10: =IF(Offer[[#This Row],[niveau]]="poste",IF(Offer[[#This Row],[Prix unitaire entrepr. 5]]=0,"/",1-(Offer[[#This Row],[Rappel calcul prix unitaire de vente HTVA SANS risque]]/Offer[[#This Row],[Prix unitaire entrepr. 5]])),"") ->  | BP10: =IF(Offer[[#This Row],[niveau]]="poste",Offer[[#This Row],[Prix unitaire de vente par unité de poste]]-Offer[[#This Row],[Risque par unité de poste]],"") ->  | BQ10: =IF(Offer[[#This Row],[niveau]]="poste",Offer[[#This Row],[Quantité ↓]]*Offer[[#This Row],[Rappel calcul prix unitaire de vente HTVA SANS risque]],IF(Offer[[#This Row],[niveau]]="ressource","",Offer[[#This Row],[Total prix de vente (HTVA)]]-Offer[[#This Row],[Risque]])) ->  | BR10: =IF(Offer[[#This Row],[niveau]]="poste",Offer[[#This Row],[Prix unitaire de vente par unité de poste]],"") ->  | BS10: =IF(Offer[[#This Row],[niveau]]="poste",IF((Offer[[#This Row],[Prix unitaire entrepr. 1]]+Offer[[#This Row],[Prix unitaire entrepr. 2]]+Offer[[#This Row],[Prix unitaire entrepr. 3]]+Offer[[#This Row],[Prix unitaire entrepr. 4]]+Offer[[#This Row],[Prix unitaire entrepr. 5]])=0,"",(Offer[[#This Row],[Prix unitaire entrepr. 1]]+Offer[[#This Row],[Prix unitaire entrepr. 2]]+Offer[[#This Row],[Prix unitaire entrepr. 3]]+Offer[[#This Row],[Prix unitaire entrepr. 4]]+Offer[[#This Row],[Prix unitaire entrepr. 5]])/(IF(Offer[[#This Row],[Prix unitaire entrepr. 1]]>0,1,0)+IF(Offer[[#This Row],[Prix unitaire entrepr. 2]]>0,1,0)+IF(Offer[[#This Row],[Prix unitaire entrepr. 3]]>0,1,0)+IF(Offer[[#This Row],[Prix unitaire entrepr. 4]]>0,1,0)+IF(Offer[[#This Row],[Prix unitaire entrepr. 5]]>0,1,0))),"") ->  | BT10: =IF(Offer[[#This Row],[niveau]]="poste",IF(Offer[[#This Row],[Moyenne des prix unitaires des entreprises]]="","/",Offer[[#This Row],[Moyenne des prix unitaires des entreprises]]-Offer[[#This Row],[Rappel calcul prix unitaire de vente HTVA SANS risque]]),"") ->  | BU10: =IF(Offer[[#This Row],[niveau]]="poste",IF(Offer[[#This Row],[Moyenne des prix unitaires des entreprises]]="","/",IF(Offer[[#This Row],[Quantité ↓]]=0,"/",(Offer[[#This Row],[Moyenne des prix unitaires des entreprises]]*Offer[[#This Row],[Quantité ↓]])-(Offer[[#This Row],[Rappel calcul prix unitaire de vente HTVA SANS risque]]*Offer[[#This Row],[Quantité ↓]]))),"") ->  | BV10: =IF(Offer[[#This Row],[niveau]]="poste",IF(Offer[[#This Row],[Moyenne des prix unitaires des entreprises]]="","/",1-(Offer[[#This Row],[Rappel calcul prix unitaire de vente HTVA SANS risque]]/Offer[[#This Row],[Moyenne des prix unitaires des entreprises]])),"") ->  | BW10: =IF(Offer[[#This Row],[niveau]]="poste",IF(#REF!='Calcul des prix'!$AL$3,Offer[[#This Row],[Prix total devis entrepr. 1 OU R+ sans risque]]*Offer[[#This Row],[TVA 6% applicable ?]],IF(#REF!='Calcul des prix'!$AR$3,Offer[[#This Row],[Prix total devis entrepr. 1 OU R+ sans risque]]*Offer[[#This Row],[TVA 6% applicable ?]],IF(#REF!='Calcul des prix'!$AX$3,Offer[[#This Row],[Prix total devis entrepr. 1 OU R+ sans risque]]*Offer[[#This Row],[TVA 6% applicable ?]],IF(#REF!='Calcul des prix'!$BD$3,Offer[[#This Row],[Prix total devis entrepr. 1 OU R+ sans risque]]*Offer[[#This Row],[TVA 6% applicable ?]],IF(#REF!='Calcul des prix'!$BJ$3,Offer[[#This Row],[Prix total devis entrepr. 1 OU R+ sans risque]]*Offer[[#This Row],[TVA 6% applicable ?]],""))))),"") -> 
B11: 00.1.01 | C11: Gestion des déchets de construction en cours d'exécution. | D11: Seuls les déchets générés lors des travaux (emballages, packaging, chutes, nettoyage, …) sont considérés dans ce poste. Les déchets de démolition sont compris dans les postes relatifs à la démolition. | E11: QP | F11: =IF(Offer[[#This Row],[niveau]]="ressource",IF(Offer[[#This Row],[Description]]="","",F10),IF(Offer[[#This Row],[niveau]]="poste",0,"")) -> 0 | G11: m³ | H11: =IF(Offer[[#This Row],[Description]]="","",IF(OR(Offer[[#This Row],[niveau]]="ressource",Offer[[#This Row],[niveau]]="poste"),ROUND(Offer[[#This Row],[Coût direct par unité de poste]]+Offer[[#This Row],[Coût indirect par unité de poste]]+Offer[[#This Row],[Marge par unité de poste]]+Offer[[#This Row],[Risque par unité de poste]],2),"")) -> 123.75 | I11: =IF(Offer[[#This Row],[niveau]]="poste",ROUND(Offer[[#This Row],[Quantité ↓]]*Offer[[#This Row],[Prix unitaire de vente par unité de poste]],2),IF(Offer[[#This Row],[niveau]]="ressource",IF(F11="","",IF(Offer[[#This Row],[Prix unitaire de vente par unité de ressource]]="","",ROUND(Offer[[#This Row],[Quantité ↓]]*Offer[[#This Row],[Prix unitaire de vente par unité de ressource]],2))))) -> 0 | J11: =IF(Offer[[#This Row],[niveau]]="poste","non","") -> non | K11: =IF(LEN(Offer[[#This Row],[Numéro ]])=2,"T1",IF(LEN(Offer[[#This Row],[Numéro ]])=4,"T2",IF(LEN(Offer[[#This Row],[Numéro ]])=6,"T3",IF(Offer[[#This Row],[Numéro ]]="","ressource","poste")))) -> poste | L11: =IF(Offer[[#This Row],[niveau]]="poste",IF(Offer[[#This Row],[En option ?]]="non",Offer[[#This Row],[Total prix de vente (HTVA)]],0),0) -> 0 | M11: =IF(Offer[[#This Row],[niveau]]="ressource",0,IF(Offer[[#This Row],[Total prix de vente (HTVA)]]<>0,1,0)) -> 0 | O11: =IF(Offer[[#This Row],[niveau]]="ressource",IF(Offer[[#This Row],[Description]]="","", IF(ISNUMBER(FIND("heure",Offer[[#This Row],[unité de la ressource]])),Settings!$B$6, IF(ISNUMBER(FIND("déchet",Offer[[#This Row],[Description]])),Settings!$B$8, IF(ISNUMBER(FIND("déchet",Offer[[#This Row],[Commentaire]])),Settings!$B$8, IF(ISNUMBER(FIND("km",Offer[[#This Row],[unité de la ressource]])),Settings!$B$10, IF(ISNUMBER(FIND("matériau",Offer[[#This Row],[Description]])),Settings!$B$7, IF(ISNUMBER(FIND("livraison",Offer[[#This Row],[Description]])),Settings!$B$7, IF(ISNUMBER(FIND("FF",Offer[[#This Row],[unité de la ressource]])),Settings!$B$9, Settings!$B$7)))))))),"") ->  | S11: =IF(Offer[[#This Row],[niveau]]="ressource",IF(Offer[[#This Row],[Description]]="","",IF(Offer[[#This Row],[Type de ressource]]=Settings!$B$6,IF(Offer[[#This Row],[quantité d''unité de ressource par unité de poste]]>1,15*Minute,IF(Offer[[#This Row],[quantité d''unité de ressource par unité de poste]]>15*Minute,5*Minute,1*Minute)),IF(Offer[[#This Row],[quantité d''unité de ressource par unité de poste]]>1000,100,IF(Offer[[#This Row],[quantité d''unité de ressource par unité de poste]]>100,10,IF(Offer[[#This Row],[quantité d''unité de ressource par unité de poste]]>10,1,IF(Offer[[#This Row],[quantité d''unité de ressource par unité de poste]]>1,0.1,IF(Offer[[#This Row],[quantité d''unité de ressource par unité de poste]]>0.1,0.01,0.001))))))),"") ->  | T11: =IF(Offer[[#This Row],[niveau]]="ressource",IF(Offer[[#This Row],[Description]]="","",MROUND(Offer[[#This Row],[quantité d''unité de ressource par unité de poste]]*Offer[[#This Row],[Quantité ↓]],Offer[[#This Row],[Arrondir selon multiple]])),"") ->  | U11: =SUM(U12:U14) -> 90 | V11: =IF(Offer[[#This Row],[Coût direct par unité de poste]]="","",IF(Offer[[#This Row],[Coût (direct) par unité de ressource]]="",Offer[[#This Row],[Coût direct par unité de poste]]*Offer[[#This Row],[Quantité ↓]],0)) -> 0 | W11: =IF(Offer[[#This Row],[niveau]]="ressource",IF(Offer[[#This Row],[Type de ressource]]=Settings!$B$6,Offer[[#This Row],[Coût (direct) par unité de ressource]]*Settings!$D$6,IF(Offer[[#This Row],[Type de ressource]]=Settings!$B$7,Offer[[#This Row],[Coût (direct) par unité de ressource]]*Settings!$D$7,IF(Offer[[#This Row],[Type de ressource]]=Settings!$B$8,Offer[[#This Row],[Coût (direct) par unité de ressource]]*Settings!$D$8,IF(Offer[[#This Row],[Type de ressource]]=Settings!$B$9,Offer[[#This Row],[Coût (direct) par unité de ressource]]*Settings!$D$9,IF(Offer[[#This Row],[Type de ressource]]=Settings!$B$10,Offer[[#This Row],[Coût (direct) par unité de ressource]]*Settings!$D$10,""))))),"") ->  | X11: =SUM(X12:X14) -> 10.5 | Y11: =IF(Offer[[#This Row],[Coût indirect par unité de poste]]="","",IF(Offer[[#This Row],[Coût (direct) par unité de ressource]]="",Offer[[#This Row],[Coût indirect par unité de poste]]*Offer[[#This Row],[Quantité ↓]],0)) -> 0 | Z11: =IF(Offer[[#This Row],[niveau]]="ressource",IF(Offer[[#This Row],[Type de ressource]]=Settings!$B$6,Offer[[#This Row],[Coût (direct) par unité de ressource]]*Settings!$E$6,IF(Offer[[#This Row],[Type de ressource]]=Settings!$B$7,Offer[[#This Row],[Coût (direct) par unité de ressource]]*Settings!$E$7,IF(Offer[[#This Row],[Type de ressource]]=Settings!$B$8,Offer[[#This Row],[Coût (direct) par unité de ressource]]*Settings!$E$8,IF(Offer[[#This Row],[Type de ressource]]=Settings!$B$9,Offer[[#This Row],[Coût (direct) par unité de ressource]]*Settings!$E$9,IF(Offer[[#This Row],[Type de ressource]]=Settings!$B$10,Offer[[#This Row],[Coût (direct) par unité de ressource]]*Settings!$E$10,""))))),"") ->  | AA11: =SUM(AA12:AA14) -> 9.75 | AB11: =IF(Offer[[#This Row],[Marge par unité de poste]]="","",IF(Offer[[#This Row],[Coût (direct) par unité de ressource]]="",Offer[[#This Row],[Marge par unité de poste]]*Offer[[#This Row],[Quantité ↓]],Offer[[#This Row],[Marge par unité de poste]])) -> 0 | AC11: =IF(Offer[[#This Row],[niveau]]="ressource",IF(Offer[[#This Row],[Type de ressource]]=Settings!$B$6,Offer[[#This Row],[Coût (direct) par unité de ressource]]*Settings!$H$6,IF(Offer[[#This Row],[Type de ressource]]=Settings!$B$7,Offer[[#This Row],[Coût (direct) par unité de ressource]]*Settings!$H$7,IF(Offer[[#This Row],[Type de ressource]]=Settings!$B$8,Offer[[#This Row],[Coût (direct) par unité de ressource]]*Settings!$H$8,IF(Offer[[#This Row],[Type de ressource]]=Settings!$B$9,Offer[[#This Row],[Coût (direct) par unité de ressource]]*Settings!$H$9,IF(Offer[[#This Row],[Type de ressource]]=Settings!$B$10,Offer[[#This Row],[Coût (direct) par unité de ressource]]*Settings!$H$10,""))))),"") ->  | AD11: =SUM(AD12:AD14) -> 13.5 | AE11: =IF(Offer[[#This Row],[niveau]]="ressource","",Paramétrage!$D$35*Offer[[#This Row],[Coût direct]]) -> 0 | AF11: =IF(Offer[[#This Row],[niveau]]="ressource",IF(Offer[[#This Row],[Description]]="","",Offer[[#This Row],[Risque par unité de ressource]]+Offer[[#This Row],[Marge par unité de ressource]]+Offer[[#This Row],[Coût indirect par unité de ressource]]+Offer[[#This Row],[Coût (direct) par unité de ressource]]),"") ->  | AG11: =IF(Offer[[#This Row],[niveau]]="poste",Paramétrage!$D$37,"") -> 0.06 | AH11: =IF(Offer[[#This Row],[niveau]]="poste",Offer[[#This Row],[TVA 6% applicable ?]]*Offer[[#This Row],[Prix de vente HTVA sans variante/option]],"") -> 0 | AI11: =IF(($I$1895)>0,Primes!$D$24,IF(($I$1481+$I$1599+$I$1599+$I$1755+$I$1828)>0,Primes!$D$25,"")) ->  | AJ11: oui | AK11: =IF(Offer[[#This Row],[niveau]]="ressource","","00 - Installation & généralités de chantier") -> 00 - Installation & généralités de chantier | AL11: =IF(Offer[[#This Row],[niveau]]="poste",0,"") -> 0 | AM11: =IF(Offer[[#This Row],[niveau]]="poste",Offer[[#This Row],[Quantité ↓]]*IF(AL11=0,Offer[[#This Row],[Prix unitaire de vente par unité de poste]]-Offer[[#This Row],[Risque par unité de poste]],AL11),"") -> 0 | AN11: =IF(Offer[[#This Row],[niveau]]="poste",IF(Offer[[#This Row],[Prix unitaire entrepr. 1]]=0,"/",Offer[[#This Row],[Prix unitaire entrepr. 1]]-Offer[[#This Row],[Rappel calcul prix unitaire de vente HTVA SANS risque]]),"") -> / | AO11: =IF(Offer[[#This Row],[niveau]]="poste",IF(Offer[[#This Row],[Prix unitaire entrepr. 1]]=0,"/",IF(Offer[[#This Row],[Quantité ↓]]=0,"/",(Offer[[#This Row],[Prix total devis entrepr. 1 OU R+ sans risque]])-(Offer[[#This Row],[Rappel calcul prix unitaire de vente HTVA SANS risque]]*Offer[[#This Row],[Quantité ↓]]))),"") -> / | AP11: =IF(Offer[[#This Row],[niveau]]="poste",IF(Offer[[#This Row],[Prix unitaire entrepr. 1]]=0,"/",Offer[[#This Row],[Prix unitaire entrepr. 1]]-Offer[[#This Row],[Rappel calcul prix unitaire de vente HTVA]]),"") -> / | AQ11: =IF(Offer[[#This Row],[niveau]]="poste",IF(Offer[[#This Row],[Prix unitaire entrepr. 1]]=0,"/",1-(Offer[[#This Row],[Rappel calcul prix unitaire de vente HTVA SANS risque]]/Offer[[#This Row],[Prix unitaire entrepr. 1]])),"") -> / | AR11: =IF(Offer[[#This Row],[niveau]]="poste",0,"") -> 0 | AS11: =IF(Offer[[#This Row],[niveau]]="poste",Offer[[#This Row],[Quantité ↓]]*IF(AR11=0,Offer[[#This Row],[Prix unitaire de vente par unité de poste]]-Offer[[#This Row],[Risque par unité de poste]],AR11),"") -> 0 | AT11: =IF(Offer[[#This Row],[niveau]]="poste",IF(Offer[[#This Row],[Prix unitaire entrepr. 2]]=0,"/",Offer[[#This Row],[Prix unitaire entrepr. 2]]-Offer[[#This Row],[Rappel calcul prix unitaire de vente HTVA SANS risque]]),"") -> / | AU11: =IF(Offer[[#This Row],[niveau]]="poste",IF(Offer[[#This Row],[Prix unitaire entrepr. 2]]=0,"/",IF(Offer[[#This Row],[Quantité ↓]]=0,"/",(Offer[[#This Row],[Prix total devis entrepr. 2 OU R+ sans risque]])-(Offer[[#This Row],[Rappel calcul prix unitaire de vente HTVA SANS risque]]*Offer[[#This Row],[Quantité ↓]]))),"") -> / | AV11: =IF(Offer[[#This Row],[niveau]]="poste",IF(Offer[[#This Row],[Prix unitaire entrepr. 2]]=0,"/",Offer[[#This Row],[Prix unitaire entrepr. 2]]-Offer[[#This Row],[Rappel calcul prix unitaire de vente HTVA]]),"") -> / | AW11: =IF(Offer[[#This Row],[niveau]]="poste",IF(Offer[[#This Row],[Prix unitaire entrepr. 2]]=0,"/",1-(Offer[[#This Row],[Rappel calcul prix unitaire de vente HTVA SANS risque]]/Offer[[#This Row],[Prix unitaire entrepr. 2]])),"") -> / | AX11: =IF(Offer[[#This Row],[niveau]]="poste",0,"") -> 0 | AY11: =IF(Offer[[#This Row],[niveau]]="poste",Offer[[#This Row],[Quantité ↓]]*IF(AX11=0,Offer[[#This Row],[Prix unitaire de vente par unité de poste]]-Offer[[#This Row],[Risque par unité de poste]],AX11),"") -> 0 | AZ11: =IF(Offer[[#This Row],[niveau]]="poste",IF(Offer[[#This Row],[Prix unitaire entrepr. 3]]=0,"/",Offer[[#This Row],[Prix unitaire entrepr. 3]]-Offer[[#This Row],[Rappel calcul prix unitaire de vente HTVA SANS risque]]),"") -> / | BA11: =IF(Offer[[#This Row],[niveau]]="poste",IF(Offer[[#This Row],[Prix unitaire entrepr. 3]]=0,"/",IF(Offer[[#This Row],[Quantité ↓]]=0,"/",(Offer[[#This Row],[Prix total devis entrepr. 3 OU R+ sans risque]])-(Offer[[#This Row],[Rappel calcul prix unitaire de vente HTVA SANS risque]]*Offer[[#This Row],[Quantité ↓]]))),"") -> / | BB11: =IF(Offer[[#This Row],[niveau]]="poste",IF(Offer[[#This Row],[Prix unitaire entrepr. 3]]=0,"/",Offer[[#This Row],[Prix unitaire entrepr. 3]]-Offer[[#This Row],[Rappel calcul prix unitaire de vente HTVA]]),"") -> / | BC11: =IF(Offer[[#This Row],[niveau]]="poste",IF(Offer[[#This Row],[Prix unitaire entrepr. 3]]=0,"/",1-(Offer[[#This Row],[Rappel calcul prix unitaire de vente HTVA SANS risque]]/Offer[[#This Row],[Prix unitaire entrepr. 3]])),"") -> / | BD11: =IF(Offer[[#This Row],[niveau]]="poste",0,"") -> 0 | BE11: =IF(Offer[[#This Row],[niveau]]="poste",Offer[[#This Row],[Quantité ↓]]*IF(BD11=0,Offer[[#This Row],[Prix unitaire de vente par unité de poste]]-Offer[[#This Row],[Risque par unité de poste]],BD11),"") -> 0 | BF11: =IF(Offer[[#This Row],[niveau]]="poste",IF(Offer[[#This Row],[Prix unitaire entrepr. 4]]=0,"/",Offer[[#This Row],[Prix unitaire entrepr. 4]]-Offer[[#This Row],[Rappel calcul prix unitaire de vente HTVA SANS risque]]),"") -> / | BG11: =IF(Offer[[#This Row],[niveau]]="poste",IF(Offer[[#This Row],[Prix unitaire entrepr. 4]]=0,"/",IF(Offer[[#This Row],[Quantité ↓]]=0,"/",(Offer[[#This Row],[Prix total devis entrepr. 4 OU R+ sans risque]])-(Offer[[#This Row],[Rappel calcul prix unitaire de vente HTVA SANS risque]]*Offer[[#This Row],[Quantité ↓]]))),"") -> / | BH11: =IF(Offer[[#This Row],[niveau]]="poste",IF(Offer[[#This Row],[Prix unitaire entrepr. 4]]=0,"/",Offer[[#This Row],[Prix unitaire entrepr. 4]]-Offer[[#This Row],[Rappel calcul prix unitaire de vente HTVA]]),"") -> / | BI11: =IF(Offer[[#This Row],[niveau]]="poste",IF(Offer[[#This Row],[Prix unitaire entrepr. 4]]=0,"/",1-(Offer[[#This Row],[Rappel calcul prix unitaire de vente HTVA SANS risque]]/Offer[[#This Row],[Prix unitaire entrepr. 4]])),"") -> / | BJ11: =IF(Offer[[#This Row],[niveau]]="poste",0,"") -> 0 | BK11: =IF(Offer[[#This Row],[niveau]]="poste",Offer[[#This Row],[Quantité ↓]]*IF(BJ11=0,Offer[[#This Row],[Prix unitaire de vente par unité de poste]]-Offer[[#This Row],[Risque par unité de poste]],BJ11),"") -> 0 | BL11: =IF(Offer[[#This Row],[niveau]]="poste",IF(Offer[[#This Row],[Prix unitaire entrepr. 5]]=0,"/",Offer[[#This Row],[Prix unitaire entrepr. 5]]-Offer[[#This Row],[Rappel calcul prix unitaire de vente HTVA SANS risque]]),"") -> / | BM11: =IF(Offer[[#This Row],[niveau]]="poste",IF(Offer[[#This Row],[Prix unitaire entrepr. 5]]=0,"/",IF(Offer[[#This Row],[Quantité ↓]]=0,"/",(Offer[[#This Row],[Prix total devis entrepr. 5 OU R+ sans risque]])-(Offer[[#This Row],[Rappel calcul prix unitaire de vente HTVA SANS risque]]*Offer[[#This Row],[Quantité ↓]]))),"") -> / | BN11: =IF(Offer[[#This Row],[niveau]]="poste",IF(Offer[[#This Row],[Prix unitaire entrepr. 5]]=0,"/",Offer[[#This Row],[Prix unitaire entrepr. 5]]-Offer[[#This Row],[Rappel calcul prix unitaire de vente HTVA]]),"") -> / | BO11: =IF(Offer[[#This Row],[niveau]]="poste",IF(Offer[[#This Row],[Prix unitaire entrepr. 5]]=0,"/",1-(Offer[[#This Row],[Rappel calcul prix unitaire de vente HTVA SANS risque]]/Offer[[#This Row],[Prix unitaire entrepr. 5]])),"") -> / | BP11: =IF(Offer[[#This Row],[niveau]]="poste",Offer[[#This Row],[Prix unitaire de vente par unité de poste]]-Offer[[#This Row],[Risque par unité de poste]],"") -> 110.25 | BQ11: =IF(Offer[[#This Row],[niveau]]="poste",Offer[[#This Row],[Quantité ↓]]*Offer[[#This Row],[Rappel calcul prix unitaire de vente HTVA SANS risque]],IF(Offer[[#This Row],[niveau]]="ressource","",Offer[[#This Row],[Total prix de vente (HTVA)]]-Offer[[#This Row],[Risque]])) -> 0 | BR11: =IF(Offer[[#This Row],[niveau]]="poste",Offer[[#This Row],[Prix unitaire de vente par unité de poste]],"") -> 123.75 | BS11: =IF(Offer[[#This Row],[niveau]]="poste",IF((Offer[[#This Row],[Prix unitaire entrepr. 1]]+Offer[[#This Row],[Prix unitaire entrepr. 2]]+Offer[[#This Row],[Prix unitaire entrepr. 3]]+Offer[[#This Row],[Prix unitaire entrepr. 4]]+Offer[[#This Row],[Prix unitaire entrepr. 5]])=0,"",(Offer[[#This Row],[Prix unitaire entrepr. 1]]+Offer[[#This Row],[Prix unitaire entrepr. 2]]+Offer[[#This Row],[Prix unitaire entrepr. 3]]+Offer[[#This Row],[Prix unitaire entrepr. 4]]+Offer[[#This Row],[Prix unitaire entrepr. 5]])/(IF(Offer[[#This Row],[Prix unitaire entrepr. 1]]>0,1,0)+IF(Offer[[#This Row],[Prix unitaire entrepr. 2]]>0,1,0)+IF(Offer[[#This Row],[Prix unitaire entrepr. 3]]>0,1,0)+IF(Offer[[#This Row],[Prix unitaire entrepr. 4]]>0,1,0)+IF(Offer[[#This Row],[Prix unitaire entrepr. 5]]>0,1,0))),"") ->  | BT11: =IF(Offer[[#This Row],[niveau]]="poste",IF(Offer[[#This Row],[Moyenne des prix unitaires des entreprises]]="","/",Offer[[#This Row],[Moyenne des prix unitaires des entreprises]]-Offer[[#This Row],[Rappel calcul prix unitaire de vente HTVA SANS risque]]),"") -> / | BU11: =IF(Offer[[#This Row],[niveau]]="poste",IF(Offer[[#This Row],[Moyenne des prix unitaires des entreprises]]="","/",IF(Offer[[#This Row],[Quantité ↓]]=0,"/",(Offer[[#This Row],[Moyenne des prix unitaires des entreprises]]*Offer[[#This Row],[Quantité ↓]])-(Offer[[#This Row],[Rappel calcul prix unitaire de vente HTVA SANS risque]]*Offer[[#This Row],[Quantité ↓]]))),"") -> / | BV11: =IF(Offer[[#This Row],[niveau]]="poste",IF(Offer[[#This Row],[Moyenne des prix unitaires des entreprises]]="","/",1-(Offer[[#This Row],[Rappel calcul prix unitaire de vente HTVA SANS risque]]/Offer[[#This Row],[Moyenne des prix unitaires des entreprises]])),"") -> / | BW11: =IF(Offer[[#This Row],[niveau]]="poste",IF(#REF!='Calcul des prix'!$AL$3,Offer[[#This Row],[Prix total devis entrepr. 1 OU R+ sans risque]]*Offer[[#This Row],[TVA 6% applicable ?]],IF(#REF!='Calcul des prix'!$AR$3,Offer[[#This Row],[Prix total devis entrepr. 1 OU R+ sans risque]]*Offer[[#This Row],[TVA 6% applicable ?]],IF(#REF!='Calcul des prix'!$AX$3,Offer[[#This Row],[Prix total devis entrepr. 1 OU R+ sans risque]]*Offer[[#This Row],[TVA 6% applicable ?]],IF(#REF!='Calcul des prix'!$BD$3,Offer[[#This Row],[Prix total devis entrepr. 1 OU R+ sans risque]]*Offer[[#This Row],[TVA 6% applicable ?]],IF(#REF!='Calcul des prix'!$BJ$3,Offer[[#This Row],[Prix total devis entrepr. 1 OU R+ sans risque]]*Offer[[#This Row],[TVA 6% applicable ?]],""))))),"") -> 
C12: évacuation déchets | F12: =IF(Offer[[#This Row],[niveau]]="ressource",IF(Offer[[#This Row],[Description]]="","",F11),IF(Offer[[#This Row],[niveau]]="poste",0,"")) -> 0 | G12: =IF(Offer[[#This Row],[niveau]]="ressource",IF(Offer[[#This Row],[Description]]="","",G11),"") -> m³ | H12: =IF(Offer[[#This Row],[Description]]="","",IF(OR(Offer[[#This Row],[niveau]]="ressource",Offer[[#This Row],[niveau]]="poste"),ROUND(Offer[[#This Row],[Coût direct par unité de poste]]+Offer[[#This Row],[Coût indirect par unité de poste]]+Offer[[#This Row],[Marge par unité de poste]]+Offer[[#This Row],[Risque par unité de poste]],2),"")) -> 57.75 | I12: =IF(Offer[[#This Row],[niveau]]="poste",ROUND(Offer[[#This Row],[Quantité ↓]]*Offer[[#This Row],[Prix unitaire de vente par unité de poste]],2),IF(Offer[[#This Row],[niveau]]="ressource",IF(Offer[[#This Row],[Description]]="","",ROUND(Offer[[#This Row],[Quantité ↓]]*Offer[[#This Row],[Prix unitaire de vente par unité de poste]],2)))) -> 0 | J12: =IF(Offer[[#This Row],[niveau]]="poste","non","") ->  | K12: =IF(LEN(Offer[[#This Row],[Numéro ]])=2,"T1",IF(LEN(Offer[[#This Row],[Numéro ]])=4,"T2",IF(LEN(Offer[[#This Row],[Numéro ]])=6,"T3",IF(Offer[[#This Row],[Numéro ]]="","ressource","poste")))) -> ressource | L12: =IF(Offer[[#This Row],[niveau]]="poste",IF(Offer[[#This Row],[En option ?]]="non",Offer[[#This Row],[Total prix de vente (HTVA)]],0),0) -> 0 | M12: =IF(Offer[[#This Row],[niveau]]="ressource",0,IF(Offer[[#This Row],[Total prix de vente (HTVA)]]<>0,1,0)) -> 0 | O12: =IF(Offer[[#This Row],[niveau]]="ressource",IF(Offer[[#This Row],[Description]]="","", IF(ISNUMBER(FIND("heure",Offer[[#This Row],[unité de la ressource]])),Settings!$B$6, IF(ISNUMBER(FIND("déchet",Offer[[#This Row],[Description]])),Settings!$B$8, IF(ISNUMBER(FIND("déchet",Offer[[#This Row],[Commentaire]])),Settings!$B$8, IF(ISNUMBER(FIND("km",Offer[[#This Row],[unité de la ressource]])),Settings!$B$10, IF(ISNUMBER(FIND("matériau",Offer[[#This Row],[Description]])),Settings!$B$7, IF(ISNUMBER(FIND("livraison",Offer[[#This Row],[Description]])),Settings!$B$7, IF(ISNUMBER(FIND("FF",Offer[[#This Row],[unité de la ressource]])),Settings!$B$9, Settings!$B$7)))))))),"") -> Main d'œuvre | P12: =IF(Offer[[#This Row],[unité de la ressource]]="km",Settings!$C$10,IF(Offer[[#This Row],[unité de la ressource]]="heure(s)",Settings!$C$6,"")) -> 35 | Q12: heure(s) | R12: 1 | S12: =IF(Offer[[#This Row],[niveau]]="ressource",IF(Offer[[#This Row],[Description]]="","",IF(Offer[[#This Row],[Type de ressource]]=Settings!$B$6,IF(Offer[[#This Row],[quantité d''unité de ressource par unité de poste]]>1,15*Minute,IF(Offer[[#This Row],[quantité d''unité de ressource par unité de poste]]>15*Minute,5*Minute,1*Minute)),IF(Offer[[#This Row],[quantité d''unité de ressource par unité de poste]]>1000,100,IF(Offer[[#This Row],[quantité d''unité de ressource par unité de poste]]>100,10,IF(Offer[[#This Row],[quantité d''unité de ressource par unité de poste]]>10,1,IF(Offer[[#This Row],[quantité d''unité de ressource par unité de poste]]>1,0.1,IF(Offer[[#This Row],[quantité d''unité de ressource par unité de poste]]>0.1,0.01,0.001))))))),"") -> 0.08333333333 | T12: =IF(Offer[[#This Row],[niveau]]="ressource",IF(Offer[[#This Row],[Description]]="","",MROUND(Offer[[#This Row],[quantité d''unité de ressource par unité de poste]]*Offer[[#This Row],[Quantité ↓]],Offer[[#This Row],[Arrondir selon multiple]])),"") -> 0 | U12: =IF(Offer[[#This Row],[niveau]]="ressource",IF(Offer[[#This Row],[quantité d''unité de ressource par unité de poste]]="","",IF(Offer[[#This Row],[Quantité ↓]]>0,ROUND(Offer[[#This Row],[Quantité totale de ressources nécessaires pour le poste]]*Offer[[#This Row],[Coût (direct) par unité de ressource]]/Offer[[#This Row],[Quantité ↓]],2),ROUND(Offer[[#This Row],[quantité d''unité de ressource par unité de poste]]*Offer[[#This Row],[Coût (direct) par unité de ressource]],2))),"") -> 35 | V12: =IF(Offer[[#This Row],[Description]]="","",IF(Offer[[#This Row],[niveau]]="ressource",Offer[[#This Row],[Coût direct par unité de poste]]*Offer[[#This Row],[Quantité ↓]]*Offer[[#This Row],[quantité d''unité de ressource par unité de poste]],IF(Offer[[#This Row],[niveau]]="poste","poste",""))) -> 0 | W12: =IF(Offer[[#This Row],[niveau]]="ressource",IF(Offer[[#This Row],[Type de ressource]]=Settings!$B$6,Offer[[#This Row],[Coût (direct) par unité de ressource]]*Settings!$D$6,IF(Offer[[#This Row],[Type de ressource]]=Settings!$B$7,Offer[[#This Row],[Coût (direct) par unité de ressource]]*Settings!$D$7,IF(Offer[[#This Row],[Type de ressource]]=Settings!$B$8,Offer[[#This Row],[Coût (direct) par unité de ressource]]*Settings!$D$8,IF(Offer[[#This Row],[Type de ressource]]=Settings!$B$9,Offer[[#This Row],[Coût (direct) par unité de ressource]]*Settings!$D$9,IF(Offer[[#This Row],[Type de ressource]]=Settings!$B$10,Offer[[#This Row],[Coût (direct) par unité de ressource]]*Settings!$D$10,""))))),"") -> 10.5 | X12: =IF(Offer[[#This Row],[niveau]]="ressource",IF(Offer[[#This Row],[Coût indirect par unité de ressource]]="","",Offer[[#This Row],[Coût indirect par unité de ressource]]*Offer[[#This Row],[quantité d''unité de ressource par unité de poste]]),IF(Offer[[#This Row],[niveau]]="poste","poste","")) -> 10.5 | Y12: =IF(Offer[[#This Row],[Coût indirect par unité de poste]]="","",IF(Offer[[#This Row],[Coût direct par unité de poste]]="",Offer[[#This Row],[Coût indirect par unité de poste]]*Offer[[#This Row],[Quantité ↓]],0)) -> 0 | Z12: =IF(Offer[[#This Row],[niveau]]="ressource",IF(Offer[[#This Row],[Type de ressource]]=Settings!$B$6,Offer[[#This Row],[Coût (direct) par unité de ressource]]*Settings!$E$6,IF(Offer[[#This Row],[Type de ressource]]=Settings!$B$7,Offer[[#This Row],[Coût (direct) par unité de ressource]]*Settings!$E$7,IF(Offer[[#This Row],[Type de ressource]]=Settings!$B$8,Offer[[#This Row],[Coût (direct) par unité de ressource]]*Settings!$E$8,IF(Offer[[#This Row],[Type de ressource]]=Settings!$B$9,Offer[[#This Row],[Coût (direct) par unité de ressource]]*Settings!$E$9,IF(Offer[[#This Row],[Type de ressource]]=Settings!$B$10,Offer[[#This Row],[Coût (direct) par unité de ressource]]*Settings!$E$10,""))))),"") -> 7 | AA12: =IF(Offer[[#This Row],[niveau]]="ressource",IF(Offer[[#This Row],[Marge par unité de ressource]]="","",Offer[[#This Row],[Marge par unité de ressource]]*Offer[[#This Row],[quantité d''unité de ressource par unité de poste]]),IF(Offer[[#This Row],[niveau]]="poste","poste","")) -> 7 | AB12: =IF(Offer[[#This Row],[Marge par unité de poste]]="","",IF(Offer[[#This Row],[Coût direct par unité de poste]]="",Offer[[#This Row],[Marge par unité de poste]]*Offer[[#This Row],[Quantité ↓]],0)) -> 0 | AC12: =IF(Offer[[#This Row],[niveau]]="ressource",IF(Offer[[#This Row],[Type de ressource]]=Settings!$B$6,Offer[[#This Row],[Coût (direct) par unité de ressource]]*Settings!$H$6,IF(Offer[[#This Row],[Type de ressource]]=Settings!$B$7,Offer[[#This Row],[Coût (direct) par unité de ressource]]*Settings!$H$7,IF(Offer[[#This Row],[Type de ressource]]=Settings!$B$8,Offer[[#This Row],[Coût (direct) par unité de ressource]]*Settings!$H$8,IF(Offer[[#This Row],[Type de ressource]]=Settings!$B$9,Offer[[#This Row],[Coût (direct) par unité de ressource]]*Settings!$H$9,IF(Offer[[#This Row],[Type de ressource]]=Settings!$B$10,Offer[[#This Row],[Coût (direct) par unité de ressource]]*Settings!$H$10,""))))),"") -> 5.25 | AD12: =IF(Offer[[#This Row],[niveau]]="ressource",IF(Offer[[#This Row],[Coût direct par unité de poste]]="","",Offer[[#This Row],[Coût direct par unité de poste]]*Paramétrage!$D$35),"") -> 5.25 | AE12: =IF(Offer[[#This Row],[Risque par unité de poste]]="","",IF(Offer[[#This Row],[Coût (direct) par unité de ressource]]="",Offer[[#This Row],[Risque par unité de poste]]*Offer[[#This Row],[Quantité ↓]],0)) -> 0 | AF12: =IF(Offer[[#This Row],[niveau]]="ressource",IF(Offer[[#This Row],[Description]]="","",Offer[[#This Row],[Risque par unité de ressource]]+Offer[[#This Row],[Marge par unité de ressource]]+Offer[[#This Row],[Coût indirect par unité de ressource]]+Offer[[#This Row],[Coût (direct) par unité de ressource]]),"") -> 57.75 | AG12: =IF(Offer[[#This Row],[niveau]]="poste",Paramétrage!$D$37,"") ->  | AH12: =IF(Offer[[#This Row],[niveau]]="poste",Offer[[#This Row],[TVA 6% applicable ?]]*Offer[[#This Row],[Prix de vente HTVA sans variante/option]],"") ->  | AJ12: =IF(Offer[[#This Row],[niveau]]="ressource","","non") ->  | AK12: =IF(Offer[[#This Row],[niveau]]="ressource","","00 - Installation & généralités de chantier") ->  | AL12: =IF(Offer[[#This Row],[niveau]]="poste",0,"") ->  | AM12: =IF(Offer[[#This Row],[niveau]]="poste",Offer[[#This Row],[Quantité ↓]]*IF(AL12=0,Offer[[#This Row],[Prix unitaire de vente par unité de poste]]-Offer[[#This Row],[Risque par unité de poste]],AL12),"") ->  | AN12: =IF(Offer[[#This Row],[niveau]]="poste",IF(Offer[[#This Row],[Prix unitaire entrepr. 1]]=0,"/",Offer[[#This Row],[Prix unitaire entrepr. 1]]-Offer[[#This Row],[Rappel calcul prix unitaire de vente HTVA SANS risque]]),"") ->  | AO12: =IF(Offer[[#This Row],[niveau]]="poste",IF(Offer[[#This Row],[Prix unitaire entrepr. 1]]=0,"/",IF(Offer[[#This Row],[Quantité ↓]]=0,"/",(Offer[[#This Row],[Prix total devis entrepr. 1 OU R+ sans risque]])-(Offer[[#This Row],[Rappel calcul prix unitaire de vente HTVA SANS risque]]*Offer[[#This Row],[Quantité ↓]]))),"") ->  | AP12: =IF(Offer[[#This Row],[niveau]]="poste",IF(Offer[[#This Row],[Prix unitaire entrepr. 1]]=0,"/",Offer[[#This Row],[Prix unitaire entrepr. 1]]-Offer[[#This Row],[Rappel calcul prix unitaire de vente HTVA]]),"") ->  | AQ12: =IF(Offer[[#This Row],[niveau]]="poste",IF(Offer[[#This Row],[Prix unitaire entrepr. 1]]=0,"/",1-(Offer[[#This Row],[Rappel calcul prix unitaire de vente HTVA SANS risque]]/Offer[[#This Row],[Prix unitaire entrepr. 1]])),"") ->  | AR12: =IF(Offer[[#This Row],[niveau]]="poste",0,"") ->  | AS12: =IF(Offer[[#This Row],[niveau]]="poste",Offer[[#This Row],[Quantité ↓]]*IF(AR12=0,Offer[[#This Row],[Prix unitaire de vente par unité de poste]]-Offer[[#This Row],[Risque par unité de poste]],AR12),"") ->  | AT12: =IF(Offer[[#This Row],[niveau]]="poste",IF(Offer[[#This Row],[Prix unitaire entrepr. 2]]=0,"/",Offer[[#This Row],[Prix unitaire entrepr. 2]]-Offer[[#This Row],[Rappel calcul prix unitaire de vente HTVA SANS risque]]),"") ->  | AU12: =IF(Offer[[#This Row],[niveau]]="poste",IF(Offer[[#This Row],[Prix unitaire entrepr. 2]]=0,"/",IF(Offer[[#This Row],[Quantité ↓]]=0,"/",(Offer[[#This Row],[Prix total devis entrepr. 2 OU R+ sans risque]])-(Offer[[#This Row],[Rappel calcul prix unitaire de vente HTVA SANS risque]]*Offer[[#This Row],[Quantité ↓]]))),"") ->  | AV12: =IF(Offer[[#This Row],[niveau]]="poste",IF(Offer[[#This Row],[Prix unitaire entrepr. 2]]=0,"/",Offer[[#This Row],[Prix unitaire entrepr. 2]]-Offer[[#This Row],[Rappel calcul prix unitaire de vente HTVA]]),"") ->  | AW12: =IF(Offer[[#This Row],[niveau]]="poste",IF(Offer[[#This Row],[Prix unitaire entrepr. 2]]=0,"/",1-(Offer[[#This Row],[Rappel calcul prix unitaire de vente HTVA SANS risque]]/Offer[[#This Row],[Prix unitaire entrepr. 2]])),"") ->  | AX12: =IF(Offer[[#This Row],[niveau]]="poste",0,"") ->  | AY12: =IF(Offer[[#This Row],[niveau]]="poste",Offer[[#This Row],[Quantité ↓]]*IF(AX12=0,Offer[[#This Row],[Prix unitaire de vente par unité de poste]]-Offer[[#This Row],[Risque par unité de poste]],AX12),"") ->  | AZ12: =IF(Offer[[#This Row],[niveau]]="poste",IF(Offer[[#This Row],[Prix unitaire entrepr. 3]]=0,"/",Offer[[#This Row],[Prix unitaire entrepr. 3]]-Offer[[#This Row],[Rappel calcul prix unitaire de vente HTVA SANS risque]]),"") ->  | BA12: =IF(Offer[[#This Row],[niveau]]="poste",IF(Offer[[#This Row],[Prix unitaire entrepr. 3]]=0,"/",IF(Offer[[#This Row],[Quantité ↓]]=0,"/",(Offer[[#This Row],[Prix total devis entrepr. 3 OU R+ sans risque]])-(Offer[[#This Row],[Rappel calcul prix unitaire de vente HTVA SANS risque]]*Offer[[#This Row],[Quantité ↓]]))),"") ->  | BB12: =IF(Offer[[#This Row],[niveau]]="poste",IF(Offer[[#This Row],[Prix unitaire entrepr. 3]]=0,"/",Offer[[#This Row],[Prix unitaire entrepr. 3]]-Offer[[#This Row],[Rappel calcul prix unitaire de vente HTVA]]),"") ->  | BC12: =IF(Offer[[#This Row],[niveau]]="poste",IF(Offer[[#This Row],[Prix unitaire entrepr. 3]]=0,"/",1-(Offer[[#This Row],[Rappel calcul prix unitaire de vente HTVA SANS risque]]/Offer[[#This Row],[Prix unitaire entrepr. 3]])),"") ->  | BD12: =IF(Offer[[#This Row],[niveau]]="poste",0,"") ->  | BE12: =IF(Offer[[#This Row],[niveau]]="poste",Offer[[#This Row],[Quantité ↓]]*IF(BD12=0,Offer[[#This Row],[Prix unitaire de vente par unité de poste]]-Offer[[#This Row],[Risque par unité de poste]],BD12),"") ->  | BF12: =IF(Offer[[#This Row],[niveau]]="poste",IF(Offer[[#This Row],[Prix unitaire entrepr. 4]]=0,"/",Offer[[#This Row],[Prix unitaire entrepr. 4]]-Offer[[#This Row],[Rappel calcul prix unitaire de vente HTVA SANS risque]]),"") ->  | BG12: =IF(Offer[[#This Row],[niveau]]="poste",IF(Offer[[#This Row],[Prix unitaire entrepr. 4]]=0,"/",IF(Offer[[#This Row],[Quantité ↓]]=0,"/",(Offer[[#This Row],[Prix total devis entrepr. 4 OU R+ sans risque]])-(Offer[[#This Row],[Rappel calcul prix unitaire de vente HTVA SANS risque]]*Offer[[#This Row],[Quantité ↓]]))),"") ->  | BH12: =IF(Offer[[#This Row],[niveau]]="poste",IF(Offer[[#This Row],[Prix unitaire entrepr. 4]]=0,"/",Offer[[#This Row],[Prix unitaire entrepr. 4]]-Offer[[#This Row],[Rappel calcul prix unitaire de vente HTVA]]),"") ->  | BI12: =IF(Offer[[#This Row],[niveau]]="poste",IF(Offer[[#This Row],[Prix unitaire entrepr. 4]]=0,"/",1-(Offer[[#This Row],[Rappel calcul prix unitaire de vente HTVA SANS risque]]/Offer[[#This Row],[Prix unitaire entrepr. 4]])),"") ->  | BJ12: =IF(Offer[[#This Row],[niveau]]="poste",0,"") ->  | BK12: =IF(Offer[[#This Row],[niveau]]="poste",Offer[[#This Row],[Quantité ↓]]*IF(BJ12=0,Offer[[#This Row],[Prix unitaire de vente par unité de poste]]-Offer[[#This Row],[Risque par unité de poste]],BJ12),"") ->  | BL12: =IF(Offer[[#This Row],[niveau]]="poste",IF(Offer[[#This Row],[Prix unitaire entrepr. 5]]=0,"/",Offer[[#This Row],[Prix unitaire entrepr. 5]]-Offer[[#This Row],[Rappel calcul prix unitaire de vente HTVA SANS risque]]),"") ->  | BM12: =IF(Offer[[#This Row],[niveau]]="poste",IF(Offer[[#This Row],[Prix unitaire entrepr. 5]]=0,"/",IF(Offer[[#This Row],[Quantité ↓]]=0,"/",(Offer[[#This Row],[Prix total devis entrepr. 5 OU R+ sans risque]])-(Offer[[#This Row],[Rappel calcul prix unitaire de vente HTVA SANS risque]]*Offer[[#This Row],[Quantité ↓]]))),"") ->  | BN12: =IF(Offer[[#This Row],[niveau]]="poste",IF(Offer[[#This Row],[Prix unitaire entrepr. 5]]=0,"/",Offer[[#This Row],[Prix unitaire entrepr. 5]]-Offer[[#This Row],[Rappel calcul prix unitaire de vente HTVA]]),"") ->  | BO12: =IF(Offer[[#This Row],[niveau]]="poste",IF(Offer[[#This Row],[Prix unitaire entrepr. 5]]=0,"/",1-(Offer[[#This Row],[Rappel calcul prix unitaire de vente HTVA SANS risque]]/Offer[[#This Row],[Prix unitaire entrepr. 5]])),"") ->  | BP12: =IF(Offer[[#This Row],[niveau]]="poste",Offer[[#This Row],[Prix unitaire de vente par unité de poste]]-Offer[[#This Row],[Risque par unité de poste]],"") ->  | BQ12: =IF(Offer[[#This Row],[niveau]]="poste",Offer[[#This Row],[Quantité ↓]]*Offer[[#This Row],[Rappel calcul prix unitaire de vente HTVA SANS risque]],IF(Offer[[#This Row],[niveau]]="ressource","",Offer[[#This Row],[Total prix de vente (HTVA)]]-Offer[[#This Row],[Risque]])) ->  | BR12: =IF(Offer[[#This Row],[niveau]]="poste",Offer[[#This Row],[Prix unitaire de vente par unité de poste]],"") ->  | BS12: =IF(Offer[[#This Row],[niveau]]="poste",IF((Offer[[#This Row],[Prix unitaire entrepr. 1]]+Offer[[#This Row],[Prix unitaire entrepr. 2]]+Offer[[#This Row],[Prix unitaire entrepr. 3]]+Offer[[#This Row],[Prix unitaire entrepr. 4]]+Offer[[#This Row],[Prix unitaire entrepr. 5]])=0,"",(Offer[[#This Row],[Prix unitaire entrepr. 1]]+Offer[[#This Row],[Prix unitaire entrepr. 2]]+Offer[[#This Row],[Prix unitaire entrepr. 3]]+Offer[[#This Row],[Prix unitaire entrepr. 4]]+Offer[[#This Row],[Prix unitaire entrepr. 5]])/(IF(Offer[[#This Row],[Prix unitaire entrepr. 1]]>0,1,0)+IF(Offer[[#This Row],[Prix unitaire entrepr. 2]]>0,1,0)+IF(Offer[[#This Row],[Prix unitaire entrepr. 3]]>0,1,0)+IF(Offer[[#This Row],[Prix unitaire entrepr. 4]]>0,1,0)+IF(Offer[[#This Row],[Prix unitaire entrepr. 5]]>0,1,0))),"") ->  | BT12: =IF(Offer[[#This Row],[niveau]]="poste",IF(Offer[[#This Row],[Moyenne des prix unitaires des entreprises]]="","/",Offer[[#This Row],[Moyenne des prix unitaires des entreprises]]-Offer[[#This Row],[Rappel calcul prix unitaire de vente HTVA SANS risque]]),"") ->  | BU12: =IF(Offer[[#This Row],[niveau]]="poste",IF(Offer[[#This Row],[Moyenne des prix unitaires des entreprises]]="","/",IF(Offer[[#This Row],[Quantité ↓]]=0,"/",(Offer[[#This Row],[Moyenne des prix unitaires des entreprises]]*Offer[[#This Row],[Quantité ↓]])-(Offer[[#This Row],[Rappel calcul prix unitaire de vente HTVA SANS risque]]*Offer[[#This Row],[Quantité ↓]]))),"") ->  | BV12: =IF(Offer[[#This Row],[niveau]]="poste",IF(Offer[[#This Row],[Moyenne des prix unitaires des entreprises]]="","/",1-(Offer[[#This Row],[Rappel calcul prix unitaire de vente HTVA SANS risque]]/Offer[[#This Row],[Moyenne des prix unitaires des entreprises]])),"") ->  | BW12: =IF(Offer[[#This Row],[niveau]]="poste",IF(#REF!='Calcul des prix'!$AL$3,Offer[[#This Row],[Prix total devis entrepr. 1 OU R+ sans risque]]*Offer[[#This Row],[TVA 6% applicable ?]],IF(#REF!='Calcul des prix'!$AR$3,Offer[[#This Row],[Prix total devis entrepr. 1 OU R+ sans risque]]*Offer[[#This Row],[TVA 6% applicable ?]],IF(#REF!='Calcul des prix'!$AX$3,Offer[[#This Row],[Prix total devis entrepr. 1 OU R+ sans risque]]*Offer[[#This Row],[TVA 6% applicable ?]],IF(#REF!='Calcul des prix'!$BD$3,Offer[[#This Row],[Prix total devis entrepr. 1 OU R+ sans risque]]*Offer[[#This Row],[TVA 6% applicable ?]],IF(#REF!='Calcul des prix'!$BJ$3,Offer[[#This Row],[Prix total devis entrepr. 1 OU R+ sans risque]]*Offer[[#This Row],[TVA 6% applicable ?]],""))))),"") -> 
C13: MELANGE - TOUT VENANT - containeur déchets | D13: DÉCHETS ACCEPTÉS: Déchets inertes industriels, plastique, bois refusé en container bois, isolant, gyproc, bloc de plâtre, béton cellulaire. encombrants (canapé, ...) DÉCHETS REFUSÉS : Tous déchets toxiques (peintures, solvants, …), pneus, tous déchets organiques, amiante, bois traités au carbolineum, ardoise fibrociment sans amiante pour une durée de 5 jours sur place, livraison et reprise inclus, les jours supplémentaires sont facturés 5€ HTVA/jour containeur de 10m³ (5,20 * 2,50 * 1,20m) | F13: =IF(Offer[[#This Row],[niveau]]="ressource",IF(Offer[[#This Row],[Description]]="","",F12),IF(Offer[[#This Row],[niveau]]="poste",0,"")) -> 0 | G13: =IF(Offer[[#This Row],[niveau]]="ressource",IF(Offer[[#This Row],[Description]]="","",G12),"") -> m³ | H13: =IF(Offer[[#This Row],[Description]]="","",IF(OR(Offer[[#This Row],[niveau]]="ressource",Offer[[#This Row],[niveau]]="poste"),ROUND(Offer[[#This Row],[Coût direct par unité de poste]]+Offer[[#This Row],[Coût indirect par unité de poste]]+Offer[[#This Row],[Marge par unité de poste]]+Offer[[#This Row],[Risque par unité de poste]],2),"")) -> 66 | I13: =IF(Offer[[#This Row],[niveau]]="poste",ROUND(Offer[[#This Row],[Quantité ↓]]*Offer[[#This Row],[Prix unitaire de vente par unité de poste]],2),IF(Offer[[#This Row],[niveau]]="ressource",IF(Offer[[#This Row],[Description]]="","",ROUND(Offer[[#This Row],[Quantité ↓]]*Offer[[#This Row],[Prix unitaire de vente par unité de poste]],2)))) -> 0 | J13: =IF(Offer[[#This Row],[niveau]]="poste","non","") ->  | K13: =IF(LEN(Offer[[#This Row],[Numéro ]])=2,"T1",IF(LEN(Offer[[#This Row],[Numéro ]])=4,"T2",IF(LEN(Offer[[#This Row],[Numéro ]])=6,"T3",IF(Offer[[#This Row],[Numéro ]]="","ressource","poste")))) -> ressource | L13: =IF(Offer[[#This Row],[niveau]]="poste",IF(Offer[[#This Row],[En option ?]]="non",Offer[[#This Row],[Total prix de vente (HTVA)]],0),0) -> 0 | M13: =IF(Offer[[#This Row],[niveau]]="ressource",0,IF(Offer[[#This Row],[Total prix de vente (HTVA)]]<>0,1,0)) -> 0 | O13: =IF(Offer[[#This Row],[niveau]]="ressource",IF(Offer[[#This Row],[Description]]="","", IF(ISNUMBER(FIND("heure",Offer[[#This Row],[unité de la ressource]])),Settings!$B$6, IF(ISNUMBER(FIND("déchet",Offer[[#This Row],[Description]])),Settings!$B$8, IF(ISNUMBER(FIND("déchet",Offer[[#This Row],[Commentaire]])),Settings!$B$8, IF(ISNUMBER(FIND("km",Offer[[#This Row],[unité de la ressource]])),Settings!$B$10, IF(ISNUMBER(FIND("matériau",Offer[[#This Row],[Description]])),Settings!$B$7, IF(ISNUMBER(FIND("livraison",Offer[[#This Row],[Description]])),Settings!$B$7, IF(ISNUMBER(FIND("FF",Offer[[#This Row],[unité de la ressource]])),Settings!$B$9, Settings!$B$7)))))))),"") -> Déchets | P13: 55 | Q13: m³ | R13: 1 | S13: =IF(Offer[[#This Row],[niveau]]="ressource",IF(Offer[[#This Row],[Description]]="","",IF(Offer[[#This Row],[Type de ressource]]=Settings!$B$6,IF(Offer[[#This Row],[quantité d''unité de ressource par unité de poste]]>1,15*Minute,IF(Offer[[#This Row],[quantité d''unité de ressource par unité de poste]]>15*Minute,5*Minute,1*Minute)),IF(Offer[[#This Row],[quantité d''unité de ressource par unité de poste]]>1000,100,IF(Offer[[#This Row],[quantité d''unité de ressource par unité de poste]]>100,10,IF(Offer[[#This Row],[quantité d''unité de ressource par unité de poste]]>10,1,IF(Offer[[#This Row],[quantité d''unité de ressource par unité de poste]]>1,0.1,IF(Offer[[#This Row],[quantité d''unité de ressource par unité de poste]]>0.1,0.01,0.001))))))),"") -> 0.01 | T13: =IF(Offer[[#This Row],[niveau]]="ressource",IF(Offer[[#This Row],[Description]]="","",MROUND(Offer[[#This Row],[quantité d''unité de ressource par unité de poste]]*Offer[[#This Row],[Quantité ↓]],Offer[[#This Row],[Arrondir selon multiple]])),"") -> 0 | U13: =IF(Offer[[#This Row],[niveau]]="ressource",IF(Offer[[#This Row],[quantité d''unité de ressource par unité de poste]]="","",IF(Offer[[#This Row],[Quantité ↓]]>0,ROUND(Offer[[#This Row],[Quantité totale de ressources nécessaires pour le poste]]*Offer[[#This Row],[Coût (direct) par unité de ressource]]/Offer[[#This Row],[Quantité ↓]],2),ROUND(Offer[[#This Row],[quantité d''unité de ressource par unité de poste]]*Offer[[#This Row],[Coût (direct) par unité de ressource]],2))),"") -> 55 | V13: =IF(Offer[[#This Row],[Description]]="","",IF(Offer[[#This Row],[niveau]]="ressource",Offer[[#This Row],[Coût direct par unité de poste]]*Offer[[#This Row],[Quantité ↓]]*Offer[[#This Row],[quantité d''unité de ressource par unité de poste]],IF(Offer[[#This Row],[niveau]]="poste","poste",""))) -> 0 | W13: =IF(Offer[[#This Row],[niveau]]="ressource",IF(Offer[[#This Row],[Type de ressource]]=Settings!$B$6,Offer[[#This Row],[Coût (direct) par unité de ressource]]*Settings!$D$6,IF(Offer[[#This Row],[Type de ressource]]=Settings!$B$7,Offer[[#This Row],[Coût (direct) par unité de ressource]]*Settings!$D$7,IF(Offer[[#This Row],[Type de ressource]]=Settings!$B$8,Offer[[#This Row],[Coût (direct) par unité de ressource]]*Settings!$D$8,IF(Offer[[#This Row],[Type de ressource]]=Settings!$B$9,Offer[[#This Row],[Coût (direct) par unité de ressource]]*Settings!$D$9,IF(Offer[[#This Row],[Type de ressource]]=Settings!$B$10,Offer[[#This Row],[Coût (direct) par unité de ressource]]*Settings!$D$10,""))))),"") -> 0 | X13: =IF(Offer[[#This Row],[niveau]]="ressource",IF(Offer[[#This Row],[Coût indirect par unité de ressource]]="","",Offer[[#This Row],[Coût indirect par unité de ressource]]*Offer[[#This Row],[quantité d''unité de ressource par unité de poste]]),IF(Offer[[#This Row],[niveau]]="poste","poste","")) -> 0 | Y13: =IF(Offer[[#This Row],[Coût indirect par unité de poste]]="","",IF(Offer[[#This Row],[Coût direct par unité de poste]]="",Offer[[#This Row],[Coût indirect par unité de poste]]*Offer[[#This Row],[Quantité ↓]],0)) -> 0 | Z13: =IF(Offer[[#This Row],[niveau]]="ressource",IF(Offer[[#This Row],[Type de ressource]]=Settings!$B$6,Offer[[#This Row],[Coût (direct) par unité de ressource]]*Settings!$E$6,IF(Offer[[#This Row],[Type de ressource]]=Settings!$B$7,Offer[[#This Row],[Coût (direct) par unité de ressource]]*Settings!$E$7,IF(Offer[[#This Row],[Type de ressource]]=Settings!$B$8,Offer[[#This Row],[Coût (direct) par unité de ressource]]*Settings!$E$8,IF(Offer[[#This Row],[Type de ressource]]=Settings!$B$9,Offer[[#This Row],[Coût (direct) par unité de ressource]]*Settings!$E$9,IF(Offer[[#This Row],[Type de ressource]]=Settings!$B$10,Offer[[#This Row],[Coût (direct) par unité de ressource]]*Settings!$E$10,""))))),"") -> 2.75 | AA13: =IF(Offer[[#This Row],[niveau]]="ressource",IF(Offer[[#This Row],[Marge par unité de ressource]]="","",Offer[[#This Row],[Marge par unité de ressource]]*Offer[[#This Row],[quantité d''unité de ressource par unité de poste]]),IF(Offer[[#This Row],[niveau]]="poste","poste","")) -> 2.75 | AB13: =IF(Offer[[#This Row],[Marge par unité de poste]]="","",IF(Offer[[#This Row],[Coût direct par unité de poste]]="",Offer[[#This Row],[Marge par unité de poste]]*Offer[[#This Row],[Quantité ↓]],0)) -> 0 | AC13: =IF(Offer[[#This Row],[niveau]]="ressource",IF(Offer[[#This Row],[Type de ressource]]=Settings!$B$6,Offer[[#This Row],[Coût (direct) par unité de ressource]]*Settings!$H$6,IF(Offer[[#This Row],[Type de ressource]]=Settings!$B$7,Offer[[#This Row],[Coût (direct) par unité de ressource]]*Settings!$H$7,IF(Offer[[#This Row],[Type de ressource]]=Settings!$B$8,Offer[[#This Row],[Coût (direct) par unité de ressource]]*Settings!$H$8,IF(Offer[[#This Row],[Type de ressource]]=Settings!$B$9,Offer[[#This Row],[Coût (direct) par unité de ressource]]*Settings!$H$9,IF(Offer[[#This Row],[Type de ressource]]=Settings!$B$10,Offer[[#This Row],[Coût (direct) par unité de ressource]]*Settings!$H$10,""))))),"") -> 8.25 | AD13: =IF(Offer[[#This Row],[niveau]]="ressource",IF(Offer[[#This Row],[Coût direct par unité de poste]]="","",Offer[[#This Row],[Coût direct par unité de poste]]*Paramétrage!$D$35),"") -> 8.25 | AE13: =IF(Offer[[#This Row],[Risque par unité de poste]]="","",IF(Offer[[#This Row],[Coût (direct) par unité de ressource]]="",Offer[[#This Row],[Risque par unité de poste]]*Offer[[#This Row],[Quantité ↓]],0)) -> 0 | AF13: =IF(Offer[[#This Row],[niveau]]="ressource",IF(Offer[[#This Row],[Description]]="","",Offer[[#This Row],[Risque par unité de ressource]]+Offer[[#This Row],[Marge par unité de ressource]]+Offer[[#This Row],[Coût indirect par unité de ressource]]+Offer[[#This Row],[Coût (direct) par unité de ressource]]),"") -> 66 | AG13: =IF(Offer[[#This Row],[niveau]]="poste",Paramétrage!$D$37,"") ->  | AH13: =IF(Offer[[#This Row],[niveau]]="poste",Offer[[#This Row],[TVA 6% applicable ?]]*Offer[[#This Row],[Prix de vente HTVA sans variante/option]],"") ->  | AJ13: =IF(Offer[[#This Row],[niveau]]="ressource","","non") ->  | AK13: =IF(Offer[[#This Row],[niveau]]="ressource","","00 - Installation & généralités de chantier") ->  | AL13: =IF(Offer[[#This Row],[niveau]]="poste",0,"") ->  | AM13: =IF(Offer[[#This Row],[niveau]]="poste",Offer[[#This Row],[Quantité ↓]]*IF(AL13=0,Offer[[#This Row],[Prix unitaire de vente par unité de poste]]-Offer[[#This Row],[Risque par unité de poste]],AL13),"") ->  | AN13: =IF(Offer[[#This Row],[niveau]]="poste",IF(Offer[[#This Row],[Prix unitaire entrepr. 1]]=0,"/",Offer[[#This Row],[Prix unitaire entrepr. 1]]-Offer[[#This Row],[Rappel calcul prix unitaire de vente HTVA SANS risque]]),"") ->  | AO13: =IF(Offer[[#This Row],[niveau]]="poste",IF(Offer[[#This Row],[Prix unitaire entrepr. 1]]=0,"/",IF(Offer[[#This Row],[Quantité ↓]]=0,"/",(Offer[[#This Row],[Prix total devis entrepr. 1 OU R+ sans risque]])-(Offer[[#This Row],[Rappel calcul prix unitaire de vente HTVA SANS risque]]*Offer[[#This Row],[Quantité ↓]]))),"") ->  | AP13: =IF(Offer[[#This Row],[niveau]]="poste",IF(Offer[[#This Row],[Prix unitaire entrepr. 1]]=0,"/",Offer[[#This Row],[Prix unitaire entrepr. 1]]-Offer[[#This Row],[Rappel calcul prix unitaire de vente HTVA]]),"") ->  | AQ13: =IF(Offer[[#This Row],[niveau]]="poste",IF(Offer[[#This Row],[Prix unitaire entrepr. 1]]=0,"/",1-(Offer[[#This Row],[Rappel calcul prix unitaire de vente HTVA SANS risque]]/Offer[[#This Row],[Prix unitaire entrepr. 1]])),"") ->  | AR13: =IF(Offer[[#This Row],[niveau]]="poste",0,"") ->  | AS13: =IF(Offer[[#This Row],[niveau]]="poste",Offer[[#This Row],[Quantité ↓]]*IF(AR13=0,Offer[[#This Row],[Prix unitaire de vente par unité de poste]]-Offer[[#This Row],[Risque par unité de poste]],AR13),"") ->  | AT13: =IF(Offer[[#This Row],[niveau]]="poste",IF(Offer[[#This Row],[Prix unitaire entrepr. 2]]=0,"/",Offer[[#This Row],[Prix unitaire entrepr. 2]]-Offer[[#This Row],[Rappel calcul prix unitaire de vente HTVA SANS risque]]),"") ->  | AU13: =IF(Offer[[#This Row],[niveau]]="poste",IF(Offer[[#This Row],[Prix unitaire entrepr. 2]]=0,"/",IF(Offer[[#This Row],[Quantité ↓]]=0,"/",(Offer[[#This Row],[Prix total devis entrepr. 2 OU R+ sans risque]])-(Offer[[#This Row],[Rappel calcul prix unitaire de vente HTVA SANS risque]]*Offer[[#This Row],[Quantité ↓]]))),"") ->  | AV13: =IF(Offer[[#This Row],[niveau]]="poste",IF(Offer[[#This Row],[Prix unitaire entrepr. 2]]=0,"/",Offer[[#This Row],[Prix unitaire entrepr. 2]]-Offer[[#This Row],[Rappel calcul prix unitaire de vente HTVA]]),"") ->  | AW13: =IF(Offer[[#This Row],[niveau]]="poste",IF(Offer[[#This Row],[Prix unitaire entrepr. 2]]=0,"/",1-(Offer[[#This Row],[Rappel calcul prix unitaire de vente HTVA SANS risque]]/Offer[[#This Row],[Prix unitaire entrepr. 2]])),"") ->  | AX13: =IF(Offer[[#This Row],[niveau]]="poste",0,"") ->  | AY13: =IF(Offer[[#This Row],[niveau]]="poste",Offer[[#This Row],[Quantité ↓]]*IF(AX13=0,Offer[[#This Row],[Prix unitaire de vente par unité de poste]]-Offer[[#This Row],[Risque par unité de poste]],AX13),"") ->  | AZ13: =IF(Offer[[#This Row],[niveau]]="poste",IF(Offer[[#This Row],[Prix unitaire entrepr. 3]]=0,"/",Offer[[#This Row],[Prix unitaire entrepr. 3]]-Offer[[#This Row],[Rappel calcul prix unitaire de vente HTVA SANS risque]]),"") ->  | BA13: =IF(Offer[[#This Row],[niveau]]="poste",IF(Offer[[#This Row],[Prix unitaire entrepr. 3]]=0,"/",IF(Offer[[#This Row],[Quantité ↓]]=0,"/",(Offer[[#This Row],[Prix total devis entrepr. 3 OU R+ sans risque]])-(Offer[[#This Row],[Rappel calcul prix unitaire de vente HTVA SANS risque]]*Offer[[#This Row],[Quantité ↓]]))),"") ->  | BB13: =IF(Offer[[#This Row],[niveau]]="poste",IF(Offer[[#This Row],[Prix unitaire entrepr. 3]]=0,"/",Offer[[#This Row],[Prix unitaire entrepr. 3]]-Offer[[#This Row],[Rappel calcul prix unitaire de vente HTVA]]),"") ->  | BC13: =IF(Offer[[#This Row],[niveau]]="poste",IF(Offer[[#This Row],[Prix unitaire entrepr. 3]]=0,"/",1-(Offer[[#This Row],[Rappel calcul prix unitaire de vente HTVA SANS risque]]/Offer[[#This Row],[Prix unitaire entrepr. 3]])),"") ->  | BD13: =IF(Offer[[#This Row],[niveau]]="poste",0,"") ->  | BE13: =IF(Offer[[#This Row],[niveau]]="poste",Offer[[#This Row],[Quantité ↓]]*IF(BD13=0,Offer[[#This Row],[Prix unitaire de vente par unité de poste]]-Offer[[#This Row],[Risque par unité de poste]],BD13),"") ->  | BF13: =IF(Offer[[#This Row],[niveau]]="poste",IF(Offer[[#This Row],[Prix unitaire entrepr. 4]]=0,"/",Offer[[#This Row],[Prix unitaire entrepr. 4]]-Offer[[#This Row],[Rappel calcul prix unitaire de vente HTVA SANS risque]]),"") ->  | BG13: =IF(Offer[[#This Row],[niveau]]="poste",IF(Offer[[#This Row],[Prix unitaire entrepr. 4]]=0,"/",IF(Offer[[#This Row],[Quantité ↓]]=0,"/",(Offer[[#This Row],[Prix total devis entrepr. 4 OU R+ sans risque]])-(Offer[[#This Row],[Rappel calcul prix unitaire de vente HTVA SANS risque]]*Offer[[#This Row],[Quantité ↓]]))),"") ->  | BH13: =IF(Offer[[#This Row],[niveau]]="poste",IF(Offer[[#This Row],[Prix unitaire entrepr. 4]]=0,"/",Offer[[#This Row],[Prix unitaire entrepr. 4]]-Offer[[#This Row],[Rappel calcul prix unitaire de vente HTVA]]),"") ->  | BI13: =IF(Offer[[#This Row],[niveau]]="poste",IF(Offer[[#This Row],[Prix unitaire entrepr. 4]]=0,"/",1-(Offer[[#This Row],[Rappel calcul prix unitaire de vente HTVA SANS risque]]/Offer[[#This Row],[Prix unitaire entrepr. 4]])),"") ->  | BJ13: =IF(Offer[[#This Row],[niveau]]="poste",0,"") ->  | BK13: =IF(Offer[[#This Row],[niveau]]="poste",Offer[[#This Row],[Quantité ↓]]*IF(BJ13=0,Offer[[#This Row],[Prix unitaire de vente par unité de poste]]-Offer[[#This Row],[Risque par unité de poste]],BJ13),"") ->  | BL13: =IF(Offer[[#This Row],[niveau]]="poste",IF(Offer[[#This Row],[Prix unitaire entrepr. 5]]=0,"/",Offer[[#This Row],[Prix unitaire entrepr. 5]]-Offer[[#This Row],[Rappel calcul prix unitaire de vente HTVA SANS risque]]),"") ->  | BM13: =IF(Offer[[#This Row],[niveau]]="poste",IF(Offer[[#This Row],[Prix unitaire entrepr. 5]]=0,"/",IF(Offer[[#This Row],[Quantité ↓]]=0,"/",(Offer[[#This Row],[Prix total devis entrepr. 5 OU R+ sans risque]])-(Offer[[#This Row],[Rappel calcul prix unitaire de vente HTVA SANS risque]]*Offer[[#This Row],[Quantité ↓]]))),"") ->  | BN13: =IF(Offer[[#This Row],[niveau]]="poste",IF(Offer[[#This Row],[Prix unitaire entrepr. 5]]=0,"/",Offer[[#This Row],[Prix unitaire entrepr. 5]]-Offer[[#This Row],[Rappel calcul prix unitaire de vente HTVA]]),"") ->  | BO13: =IF(Offer[[#This Row],[niveau]]="poste",IF(Offer[[#This Row],[Prix unitaire entrepr. 5]]=0,"/",1-(Offer[[#This Row],[Rappel calcul prix unitaire de vente HTVA SANS risque]]/Offer[[#This Row],[Prix unitaire entrepr. 5]])),"") ->  | BP13: =IF(Offer[[#This Row],[niveau]]="poste",Offer[[#This Row],[Prix unitaire de vente par unité de poste]]-Offer[[#This Row],[Risque par unité de poste]],"") ->  | BQ13: =IF(Offer[[#This Row],[niveau]]="poste",Offer[[#This Row],[Quantité ↓]]*Offer[[#This Row],[Rappel calcul prix unitaire de vente HTVA SANS risque]],IF(Offer[[#This Row],[niveau]]="ressource","",Offer[[#This Row],[Total prix de vente (HTVA)]]-Offer[[#This Row],[Risque]])) ->  | BR13: =IF(Offer[[#This Row],[niveau]]="poste",Offer[[#This Row],[Prix unitaire de vente par unité de poste]],"") ->  | BS13: =IF(Offer[[#This Row],[niveau]]="poste",IF((Offer[[#This Row],[Prix unitaire entrepr. 1]]+Offer[[#This Row],[Prix unitaire entrepr. 2]]+Offer[[#This Row],[Prix unitaire entrepr. 3]]+Offer[[#This Row],[Prix unitaire entrepr. 4]]+Offer[[#This Row],[Prix unitaire entrepr. 5]])=0,"",(Offer[[#This Row],[Prix unitaire entrepr. 1]]+Offer[[#This Row],[Prix unitaire entrepr. 2]]+Offer[[#This Row],[Prix unitaire entrepr. 3]]+Offer[[#This Row],[Prix unitaire entrepr. 4]]+Offer[[#This Row],[Prix unitaire entrepr. 5]])/(IF(Offer[[#This Row],[Prix unitaire entrepr. 1]]>0,1,0)+IF(Offer[[#This Row],[Prix unitaire entrepr. 2]]>0,1,0)+IF(Offer[[#This Row],[Prix unitaire entrepr. 3]]>0,1,0)+IF(Offer[[#This Row],[Prix unitaire entrepr. 4]]>0,1,0)+IF(Offer[[#This Row],[Prix unitaire entrepr. 5]]>0,1,0))),"") ->  | BT13: =IF(Offer[[#This Row],[niveau]]="poste",IF(Offer[[#This Row],[Moyenne des prix unitaires des entreprises]]="","/",Offer[[#This Row],[Moyenne des prix unitaires des entreprises]]-Offer[[#This Row],[Rappel calcul prix unitaire de vente HTVA SANS risque]]),"") ->  | BU13: =IF(Offer[[#This Row],[niveau]]="poste",IF(Offer[[#This Row],[Moyenne des prix unitaires des entreprises]]="","/",IF(Offer[[#This Row],[Quantité ↓]]=0,"/",(Offer[[#This Row],[Moyenne des prix unitaires des entreprises]]*Offer[[#This Row],[Quantité ↓]])-(Offer[[#This Row],[Rappel calcul prix unitaire de vente HTVA SANS risque]]*Offer[[#This Row],[Quantité ↓]]))),"") ->  | BV13: =IF(Offer[[#This Row],[niveau]]="poste",IF(Offer[[#This Row],[Moyenne des prix unitaires des entreprises]]="","/",1-(Offer[[#This Row],[Rappel calcul prix unitaire de vente HTVA SANS risque]]/Offer[[#This Row],[Moyenne des prix unitaires des entreprises]])),"") ->  | BW13: =IF(Offer[[#This Row],[niveau]]="poste",IF(#REF!='Calcul des prix'!$AL$3,Offer[[#This Row],[Prix total devis entrepr. 1 OU R+ sans risque]]*Offer[[#This Row],[TVA 6% applicable ?]],IF(#REF!='Calcul des prix'!$AR$3,Offer[[#This Row],[Prix total devis entrepr. 1 OU R+ sans risque]]*Offer[[#This Row],[TVA 6% applicable ?]],IF(#REF!='Calcul des prix'!$AX$3,Offer[[#This Row],[Prix total devis entrepr. 1 OU R+ sans risque]]*Offer[[#This Row],[TVA 6% applicable ?]],IF(#REF!='Calcul des prix'!$BD$3,Offer[[#This Row],[Prix total devis entrepr. 1 OU R+ sans risque]]*Offer[[#This Row],[TVA 6% applicable ?]],IF(#REF!='Calcul des prix'!$BJ$3,Offer[[#This Row],[Prix total devis entrepr. 1 OU R+ sans risque]]*Offer[[#This Row],[TVA 6% applicable ?]],""))))),"") -> 
F14: =IF(Offer[[#This Row],[niveau]]="ressource",IF(Offer[[#This Row],[Description]]="","",F13),IF(Offer[[#This Row],[niveau]]="poste",0,"")) ->  | G14: =IF(Offer[[#This Row],[niveau]]="ressource",IF(Offer[[#This Row],[Description]]="","",G13),"") ->  | H14: =IF(Offer[[#This Row],[Description]]="","",IF(OR(Offer[[#This Row],[niveau]]="ressource",Offer[[#This Row],[niveau]]="poste"),ROUND(Offer[[#This Row],[Coût direct par unité de poste]]+Offer[[#This Row],[Coût indirect par unité de poste]]+Offer[[#This Row],[Marge par unité de poste]]+Offer[[#This Row],[Risque par unité de poste]],2),"")) ->  | I14: =IF(Offer[[#This Row],[niveau]]="poste",ROUND(Offer[[#This Row],[Quantité ↓]]*Offer[[#This Row],[Prix unitaire de vente par unité de poste]],2),IF(Offer[[#This Row],[niveau]]="ressource",IF(Offer[[#This Row],[Description]]="","",ROUND(Offer[[#This Row],[Quantité ↓]]*Offer[[#This Row],[Prix unitaire de vente par unité de poste]],2)))) ->  | J14: =IF(Offer[[#This Row],[niveau]]="poste","non","") ->  | K14: =IF(LEN(Offer[[#This Row],[Numéro ]])=2,"T1",IF(LEN(Offer[[#This Row],[Numéro ]])=4,"T2",IF(LEN(Offer[[#This Row],[Numéro ]])=6,"T3",IF(Offer[[#This Row],[Numéro ]]="","ressource","poste")))) -> ressource | L14: =IF(Offer[[#This Row],[niveau]]="poste",IF(Offer[[#This Row],[En option ?]]="non",Offer[[#This Row],[Total prix de vente (HTVA)]],0),0) -> 0 | M14: =IF(Offer[[#This Row],[niveau]]="ressource",0,IF(Offer[[#This Row],[Total prix de vente (HTVA)]]<>0,1,0)) -> 0 | O14: =IF(Offer[[#This Row],[niveau]]="ressource",IF(Offer[[#This Row],[Description]]="","", IF(ISNUMBER(FIND("heure",Offer[[#This Row],[unité de la ressource]])),Settings!$B$6, IF(ISNUMBER(FIND("déchet",Offer[[#This Row],[Description]])),Settings!$B$8, IF(ISNUMBER(FIND("déchet",Offer[[#This Row],[Commentaire]])),Settings!$B$8, IF(ISNUMBER(FIND("km",Offer[[#This Row],[unité de la ressource]])),Settings!$B$10, IF(ISNUMBER(FIND("matériau",Offer[[#This Row],[Description]])),Settings!$B$7, IF(ISNUMBER(FIND("livraison",Offer[[#This Row],[Description]])),Settings!$B$7, IF(ISNUMBER(FIND("FF",Offer[[#This Row],[unité de la ressource]])),Settings!$B$9, Settings!$B$7)))))))),"") ->  | S14: =IF(Offer[[#This Row],[niveau]]="ressource",IF(Offer[[#This Row],[Description]]="","",IF(Offer[[#This Row],[Type de ressource]]=Settings!$B$6,IF(Offer[[#This Row],[quantité d''unité de ressource par unité de poste]]>1,15*Minute,IF(Offer[[#This Row],[quantité d''unité de ressource par unité de poste]]>15*Minute,5*Minute,1*Minute)),IF(Offer[[#This Row],[quantité d''unité de ressource par unité de poste]]>1000,100,IF(Offer[[#This Row],[quantité d''unité de ressource par unité de poste]]>100,10,IF(Offer[[#This Row],[quantité d''unité de ressource par unité de poste]]>10,1,IF(Offer[[#This Row],[quantité d''unité de ressource par unité de poste]]>1,0.1,IF(Offer[[#This Row],[quantité d''unité de ressource par unité de poste]]>0.1,0.01,0.001))))))),"") ->  | T14: =IF(Offer[[#This Row],[niveau]]="ressource",IF(Offer[[#This Row],[Description]]="","",MROUND(Offer[[#This Row],[quantité d''unité de ressource par unité de poste]]*Offer[[#This Row],[Quantité ↓]],Offer[[#This Row],[Arrondir selon multiple]])),"") ->  | U14: =IF(Offer[[#This Row],[niveau]]="ressource",IF(Offer[[#This Row],[quantité d''unité de ressource par unité de poste]]="","",IF(Offer[[#This Row],[Quantité ↓]]>0,ROUND(Offer[[#This Row],[Quantité totale de ressources nécessaires pour le poste]]*Offer[[#This Row],[Coût (direct) par unité de ressource]]/Offer[[#This Row],[Quantité ↓]],2),ROUND(Offer[[#This Row],[quantité d''unité de ressource par unité de poste]]*Offer[[#This Row],[Coût (direct) par unité de ressource]],2))),"") ->  | V14: =IF(Offer[[#This Row],[Description]]="","",IF(Offer[[#This Row],[niveau]]="ressource",Offer[[#This Row],[Coût direct par unité de poste]]*Offer[[#This Row],[Quantité ↓]]*Offer[[#This Row],[quantité d''unité de ressource par unité de poste]],IF(Offer[[#This Row],[niveau]]="poste","poste",""))) ->  | W14: =IF(Offer[[#This Row],[niveau]]="ressource",IF(Offer[[#This Row],[Type de ressource]]=Settings!$B$6,Offer[[#This Row],[Coût (direct) par unité de ressource]]*Settings!$D$6,IF(Offer[[#This Row],[Type de ressource]]=Settings!$B$7,Offer[[#This Row],[Coût (direct) par unité de ressource]]*Settings!$D$7,IF(Offer[[#This Row],[Type de ressource]]=Settings!$B$8,Offer[[#This Row],[Coût (direct) par unité de ressource]]*Settings!$D$8,IF(Offer[[#This Row],[Type de ressource]]=Settings!$B$9,Offer[[#This Row],[Coût (direct) par unité de ressource]]*Settings!$D$9,IF(Offer[[#This Row],[Type de ressource]]=Settings!$B$10,Offer[[#This Row],[Coût (direct) par unité de ressource]]*Settings!$D$10,""))))),"") ->  | X14: =IF(Offer[[#This Row],[niveau]]="ressource",IF(Offer[[#This Row],[Coût indirect par unité de ressource]]="","",Offer[[#This Row],[Coût indirect par unité de ressource]]*Offer[[#This Row],[quantité d''unité de ressource par unité de poste]]),IF(Offer[[#This Row],[niveau]]="poste","poste","")) ->  | Y14: =IF(Offer[[#This Row],[Coût indirect par unité de poste]]="","",IF(Offer[[#This Row],[Coût direct par unité de poste]]="",Offer[[#This Row],[Coût indirect par unité de poste]]*Offer[[#This Row],[Quantité ↓]],0)) ->  | Z14: =IF(Offer[[#This Row],[niveau]]="ressource",IF(Offer[[#This Row],[Type de ressource]]=Settings!$B$6,Offer[[#This Row],[Coût (direct) par unité de ressource]]*Settings!$E$6,IF(Offer[[#This Row],[Type de ressource]]=Settings!$B$7,Offer[[#This Row],[Coût (direct) par unité de ressource]]*Settings!$E$7,IF(Offer[[#This Row],[Type de ressource]]=Settings!$B$8,Offer[[#This Row],[Coût (direct) par unité de ressource]]*Settings!$E$8,IF(Offer[[#This Row],[Type de ressource]]=Settings!$B$9,Offer[[#This Row],[Coût (direct) par unité de ressource]]*Settings!$E$9,IF(Offer[[#This Row],[Type de ressource]]=Settings!$B$10,Offer[[#This Row],[Coût (direct) par unité de ressource]]*Settings!$E$10,""))))),"") ->  | AA14: =IF(Offer[[#This Row],[niveau]]="ressource",IF(Offer[[#This Row],[Marge par unité de ressource]]="","",Offer[[#This Row],[Marge par unité de ressource]]*Offer[[#This Row],[quantité d''unité de ressource par unité de poste]]),IF(Offer[[#This Row],[niveau]]="poste","poste","")) ->  | AB14: =IF(Offer[[#This Row],[Marge par unité de poste]]="","",IF(Offer[[#This Row],[Coût direct par unité de poste]]="",Offer[[#This Row],[Marge par unité de poste]]*Offer[[#This Row],[Quantité ↓]],0)) ->  | AC14: =IF(Offer[[#This Row],[niveau]]="ressource",IF(Offer[[#This Row],[Type de ressource]]=Settings!$B$6,Offer[[#This Row],[Coût (direct) par unité de ressource]]*Settings!$H$6,IF(Offer[[#This Row],[Type de ressource]]=Settings!$B$7,Offer[[#This Row],[Coût (direct) par unité de ressource]]*Settings!$H$7,IF(Offer[[#This Row],[Type de ressource]]=Settings!$B$8,Offer[[#This Row],[Coût (direct) par unité de ressource]]*Settings!$H$8,IF(Offer[[#This Row],[Type de ressource]]=Settings!$B$9,Offer[[#This Row],[Coût (direct) par unité de ressource]]*Settings!$H$9,IF(Offer[[#This Row],[Type de ressource]]=Settings!$B$10,Offer[[#This Row],[Coût (direct) par unité de ressource]]*Settings!$H$10,""))))),"") ->  | AD14: =IF(Offer[[#This Row],[niveau]]="ressource",IF(Offer[[#This Row],[Coût direct par unité de poste]]="","",Offer[[#This Row],[Coût direct par unité de poste]]*Paramétrage!$D$35),"") ->  | AE14: =IF(Offer[[#This Row],[Risque par unité de poste]]="","",IF(Offer[[#This Row],[Coût (direct) par unité de ressource]]="",Offer[[#This Row],[Risque par unité de poste]]*Offer[[#This Row],[Quantité ↓]],0)) ->  | AF14: =IF(Offer[[#This Row],[niveau]]="ressource",IF(Offer[[#This Row],[Description]]="","",Offer[[#This Row],[Risque par unité de ressource]]+Offer[[#This Row],[Marge par unité de ressource]]+Offer[[#This Row],[Coût indirect par unité de ressource]]+Offer[[#This Row],[Coût (direct) par unité de ressource]]),"") ->  | AG14: =IF(Offer[[#This Row],[niveau]]="poste",Paramétrage!$D$37,"") ->  | AH14: =IF(Offer[[#This Row],[niveau]]="poste",Offer[[#This Row],[TVA 6% applicable ?]]*Offer[[#This Row],[Prix de vente HTVA sans variante/option]],"") ->  | AJ14: =IF(Offer[[#This Row],[niveau]]="ressource","","non") ->  | AK14: =IF(Offer[[#This Row],[niveau]]="ressource","","00 - Installation & généralités de chantier") ->  | AL14: =IF(Offer[[#This Row],[niveau]]="poste",0,"") ->  | AM14: =IF(Offer[[#This Row],[niveau]]="poste",Offer[[#This Row],[Quantité ↓]]*IF(AL14=0,Offer[[#This Row],[Prix unitaire de vente par unité de poste]]-Offer[[#This Row],[Risque par unité de poste]],AL14),"") ->  | AN14: =IF(Offer[[#This Row],[niveau]]="poste",IF(Offer[[#This Row],[Prix unitaire entrepr. 1]]=0,"/",Offer[[#This Row],[Prix unitaire entrepr. 1]]-Offer[[#This Row],[Rappel calcul prix unitaire de vente HTVA SANS risque]]),"") ->  | AO14: =IF(Offer[[#This Row],[niveau]]="poste",IF(Offer[[#This Row],[Prix unitaire entrepr. 1]]=0,"/",IF(Offer[[#This Row],[Quantité ↓]]=0,"/",(Offer[[#This Row],[Prix total devis entrepr. 1 OU R+ sans risque]])-(Offer[[#This Row],[Rappel calcul prix unitaire de vente HTVA SANS risque]]*Offer[[#This Row],[Quantité ↓]]))),"") ->  | AP14: =IF(Offer[[#This Row],[niveau]]="poste",IF(Offer[[#This Row],[Prix unitaire entrepr. 1]]=0,"/",Offer[[#This Row],[Prix unitaire entrepr. 1]]-Offer[[#This Row],[Rappel calcul prix unitaire de vente HTVA]]),"") ->  | AQ14: =IF(Offer[[#This Row],[niveau]]="poste",IF(Offer[[#This Row],[Prix unitaire entrepr. 1]]=0,"/",1-(Offer[[#This Row],[Rappel calcul prix unitaire de vente HTVA SANS risque]]/Offer[[#This Row],[Prix unitaire entrepr. 1]])),"") ->  | AR14: =IF(Offer[[#This Row],[niveau]]="poste",0,"") ->  | AS14: =IF(Offer[[#This Row],[niveau]]="poste",Offer[[#This Row],[Quantité ↓]]*IF(AR14=0,Offer[[#This Row],[Prix unitaire de vente par unité de poste]]-Offer[[#This Row],[Risque par unité de poste]],AR14),"") ->  | AT14: =IF(Offer[[#This Row],[niveau]]="poste",IF(Offer[[#This Row],[Prix unitaire entrepr. 2]]=0,"/",Offer[[#This Row],[Prix unitaire entrepr. 2]]-Offer[[#This Row],[Rappel calcul prix unitaire de vente HTVA SANS risque]]),"") ->  | AU14: =IF(Offer[[#This Row],[niveau]]="poste",IF(Offer[[#This Row],[Prix unitaire entrepr. 2]]=0,"/",IF(Offer[[#This Row],[Quantité ↓]]=0,"/",(Offer[[#This Row],[Prix total devis entrepr. 2 OU R+ sans risque]])-(Offer[[#This Row],[Rappel calcul prix unitaire de vente HTVA SANS risque]]*Offer[[#This Row],[Quantité ↓]]))),"") ->  | AV14: =IF(Offer[[#This Row],[niveau]]="poste",IF(Offer[[#This Row],[Prix unitaire entrepr. 2]]=0,"/",Offer[[#This Row],[Prix unitaire entrepr. 2]]-Offer[[#This Row],[Rappel calcul prix unitaire de vente HTVA]]),"") ->  | AW14: =IF(Offer[[#This Row],[niveau]]="poste",IF(Offer[[#This Row],[Prix unitaire entrepr. 2]]=0,"/",1-(Offer[[#This Row],[Rappel calcul prix unitaire de vente HTVA SANS risque]]/Offer[[#This Row],[Prix unitaire entrepr. 2]])),"") ->  | AX14: =IF(Offer[[#This Row],[niveau]]="poste",0,"") ->  | AY14: =IF(Offer[[#This Row],[niveau]]="poste",Offer[[#This Row],[Quantité ↓]]*IF(AX14=0,Offer[[#This Row],[Prix unitaire de vente par unité de poste]]-Offer[[#This Row],[Risque par unité de poste]],AX14),"") ->  | AZ14: =IF(Offer[[#This Row],[niveau]]="poste",IF(Offer[[#This Row],[Prix unitaire entrepr. 3]]=0,"/",Offer[[#This Row],[Prix unitaire entrepr. 3]]-Offer[[#This Row],[Rappel calcul prix unitaire de vente HTVA SANS risque]]),"") ->  | BA14: =IF(Offer[[#This Row],[niveau]]="poste",IF(Offer[[#This Row],[Prix unitaire entrepr. 3]]=0,"/",IF(Offer[[#This Row],[Quantité ↓]]=0,"/",(Offer[[#This Row],[Prix total devis entrepr. 3 OU R+ sans risque]])-(Offer[[#This Row],[Rappel calcul prix unitaire de vente HTVA SANS risque]]*Offer[[#This Row],[Quantité ↓]]))),"") ->  | BB14: =IF(Offer[[#This Row],[niveau]]="poste",IF(Offer[[#This Row],[Prix unitaire entrepr. 3]]=0,"/",Offer[[#This Row],[Prix unitaire entrepr. 3]]-Offer[[#This Row],[Rappel calcul prix unitaire de vente HTVA]]),"") ->  | BC14: =IF(Offer[[#This Row],[niveau]]="poste",IF(Offer[[#This Row],[Prix unitaire entrepr. 3]]=0,"/",1-(Offer[[#This Row],[Rappel calcul prix unitaire de vente HTVA SANS risque]]/Offer[[#This Row],[Prix unitaire entrepr. 3]])),"") ->  | BD14: =IF(Offer[[#This Row],[niveau]]="poste",0,"") ->  | BE14: =IF(Offer[[#This Row],[niveau]]="poste",Offer[[#This Row],[Quantité ↓]]*IF(BD14=0,Offer[[#This Row],[Prix unitaire de vente par unité de poste]]-Offer[[#This Row],[Risque par unité de poste]],BD14),"") ->  | BF14: =IF(Offer[[#This Row],[niveau]]="poste",IF(Offer[[#This Row],[Prix unitaire entrepr. 4]]=0,"/",Offer[[#This Row],[Prix unitaire entrepr. 4]]-Offer[[#This Row],[Rappel calcul prix unitaire de vente HTVA SANS risque]]),"") ->  | BG14: =IF(Offer[[#This Row],[niveau]]="poste",IF(Offer[[#This Row],[Prix unitaire entrepr. 4]]=0,"/",IF(Offer[[#This Row],[Quantité ↓]]=0,"/",(Offer[[#This Row],[Prix total devis entrepr. 4 OU R+ sans risque]])-(Offer[[#This Row],[Rappel calcul prix unitaire de vente HTVA SANS risque]]*Offer[[#This Row],[Quantité ↓]]))),"") ->  | BH14: =IF(Offer[[#This Row],[niveau]]="poste",IF(Offer[[#This Row],[Prix unitaire entrepr. 4]]=0,"/",Offer[[#This Row],[Prix unitaire entrepr. 4]]-Offer[[#This Row],[Rappel calcul prix unitaire de vente HTVA]]),"") ->  | BI14: =IF(Offer[[#This Row],[niveau]]="poste",IF(Offer[[#This Row],[Prix unitaire entrepr. 4]]=0,"/",1-(Offer[[#This Row],[Rappel calcul prix unitaire de vente HTVA SANS risque]]/Offer[[#This Row],[Prix unitaire entrepr. 4]])),"") ->  | BJ14: =IF(Offer[[#This Row],[niveau]]="poste",0,"") ->  | BK14: =IF(Offer[[#This Row],[niveau]]="poste",Offer[[#This Row],[Quantité ↓]]*IF(BJ14=0,Offer[[#This Row],[Prix unitaire de vente par unité de poste]]-Offer[[#This Row],[Risque par unité de poste]],BJ14),"") ->  | BL14: =IF(Offer[[#This Row],[niveau]]="poste",IF(Offer[[#This Row],[Prix unitaire entrepr. 5]]=0,"/",Offer[[#This Row],[Prix unitaire entrepr. 5]]-Offer[[#This Row],[Rappel calcul prix unitaire de vente HTVA SANS risque]]),"") ->  | BM14: =IF(Offer[[#This Row],[niveau]]="poste",IF(Offer[[#This Row],[Prix unitaire entrepr. 5]]=0,"/",IF(Offer[[#This Row],[Quantité ↓]]=0,"/",(Offer[[#This Row],[Prix total devis entrepr. 5 OU R+ sans risque]])-(Offer[[#This Row],[Rappel calcul prix unitaire de vente HTVA SANS risque]]*Offer[[#This Row],[Quantité ↓]]))),"") ->  | BN14: =IF(Offer[[#This Row],[niveau]]="poste",IF(Offer[[#This Row],[Prix unitaire entrepr. 5]]=0,"/",Offer[[#This Row],[Prix unitaire entrepr. 5]]-Offer[[#This Row],[Rappel calcul prix unitaire de vente HTVA]]),"") ->  | BO14: =IF(Offer[[#This Row],[niveau]]="poste",IF(Offer[[#This Row],[Prix unitaire entrepr. 5]]=0,"/",1-(Offer[[#This Row],[Rappel calcul prix unitaire de vente HTVA SANS risque]]/Offer[[#This Row],[Prix unitaire entrepr. 5]])),"") ->  | BP14: =IF(Offer[[#This Row],[niveau]]="poste",Offer[[#This Row],[Prix unitaire de vente par unité de poste]]-Offer[[#This Row],[Risque par unité de poste]],"") ->  | BQ14: =IF(Offer[[#This Row],[niveau]]="poste",Offer[[#This Row],[Quantité ↓]]*Offer[[#This Row],[Rappel calcul prix unitaire de vente HTVA SANS risque]],IF(Offer[[#This Row],[niveau]]="ressource","",Offer[[#This Row],[Total prix de vente (HTVA)]]-Offer[[#This Row],[Risque]])) ->  | BR14: =IF(Offer[[#This Row],[niveau]]="poste",Offer[[#This Row],[Prix unitaire de vente par unité de poste]],"") ->  | BS14: =IF(Offer[[#This Row],[niveau]]="poste",IF((Offer[[#This Row],[Prix unitaire entrepr. 1]]+Offer[[#This Row],[Prix unitaire entrepr. 2]]+Offer[[#This Row],[Prix unitaire entrepr. 3]]+Offer[[#This Row],[Prix unitaire entrepr. 4]]+Offer[[#This Row],[Prix unitaire entrepr. 5]])=0,"",(Offer[[#This Row],[Prix unitaire entrepr. 1]]+Offer[[#This Row],[Prix unitaire entrepr. 2]]+Offer[[#This Row],[Prix unitaire entrepr. 3]]+Offer[[#This Row],[Prix unitaire entrepr. 4]]+Offer[[#This Row],[Prix unitaire entrepr. 5]])/(IF(Offer[[#This Row],[Prix unitaire entrepr. 1]]>0,1,0)+IF(Offer[[#This Row],[Prix unitaire entrepr. 2]]>0,1,0)+IF(Offer[[#This Row],[Prix unitaire entrepr. 3]]>0,1,0)+IF(Offer[[#This Row],[Prix unitaire entrepr. 4]]>0,1,0)+IF(Offer[[#This Row],[Prix unitaire entrepr. 5]]>0,1,0))),"") ->  | BT14: =IF(Offer[[#This Row],[niveau]]="poste",IF(Offer[[#This Row],[Moyenne des prix unitaires des entreprises]]="","/",Offer[[#This Row],[Moyenne des prix unitaires des entreprises]]-Offer[[#This Row],[Rappel calcul prix unitaire de vente HTVA SANS risque]]),"") ->  | BU14: =IF(Offer[[#This Row],[niveau]]="poste",IF(Offer[[#This Row],[Moyenne des prix unitaires des entreprises]]="","/",IF(Offer[[#This Row],[Quantité ↓]]=0,"/",(Offer[[#This Row],[Moyenne des prix unitaires des entreprises]]*Offer[[#This Row],[Quantité ↓]])-(Offer[[#This Row],[Rappel calcul prix unitaire de vente HTVA SANS risque]]*Offer[[#This Row],[Quantité ↓]]))),"") ->  | BV14: =IF(Offer[[#This Row],[niveau]]="poste",IF(Offer[[#This Row],[Moyenne des prix unitaires des entreprises]]="","/",1-(Offer[[#This Row],[Rappel calcul prix unitaire de vente HTVA SANS risque]]/Offer[[#This Row],[Moyenne des prix unitaires des entreprises]])),"") ->  | BW14: =IF(Offer[[#This Row],[niveau]]="poste",IF(#REF!='Calcul des prix'!$AL$3,Offer[[#This Row],[Prix total devis entrepr. 1 OU R+ sans risque]]*Offer[[#This Row],[TVA 6% applicable ?]],IF(#REF!='Calcul des prix'!$AR$3,Offer[[#This Row],[Prix total devis entrepr. 1 OU R+ sans risque]]*Offer[[#This Row],[TVA 6% applicable ?]],IF(#REF!='Calcul des prix'!$AX$3,Offer[[#This Row],[Prix total devis entrepr. 1 OU R+ sans risque]]*Offer[[#This Row],[TVA 6% applicable ?]],IF(#REF!='Calcul des prix'!$BD$3,Offer[[#This Row],[Prix total devis entrepr. 1 OU R+ sans risque]]*Offer[[#This Row],[TVA 6% applicable ?]],IF(#REF!='Calcul des prix'!$BJ$3,Offer[[#This Row],[Prix total devis entrepr. 1 OU R+ sans risque]]*Offer[[#This Row],[TVA 6% applicable ?]],""))))),"") -> 
B15: 00.1.02 | C15: Mesures de protection des abords, sécurisation et clôture du chantier | E15: QP | F15: =IF(Offer[[#This Row],[niveau]]="ressource",IF(Offer[[#This Row],[Description]]="","",F14),IF(Offer[[#This Row],[niveau]]="poste",0,"")) -> 0 | G15: m | H15: =IF(Offer[[#This Row],[Description]]="","",IF(OR(Offer[[#This Row],[niveau]]="ressource",Offer[[#This Row],[niveau]]="poste"),ROUND(Offer[[#This Row],[Coût direct par unité de poste]]+Offer[[#This Row],[Coût indirect par unité de poste]]+Offer[[#This Row],[Marge par unité de poste]]+Offer[[#This Row],[Risque par unité de poste]],2),"")) -> 74 | I15: =IF(Offer[[#This Row],[niveau]]="poste",ROUND(Offer[[#This Row],[Quantité ↓]]*Offer[[#This Row],[Prix unitaire de vente par unité de poste]],2),IF(Offer[[#This Row],[niveau]]="ressource",IF(F15="","",IF(Offer[[#This Row],[Prix unitaire de vente par unité de ressource]]="","",ROUND(Offer[[#This Row],[Quantité ↓]]*Offer[[#This Row],[Prix unitaire de vente par unité de ressource]],2))))) -> 0 | J15: =IF(Offer[[#This Row],[niveau]]="poste","non","") -> non | K15: =IF(LEN(Offer[[#This Row],[Numéro ]])=2,"T1",IF(LEN(Offer[[#This Row],[Numéro ]])=4,"T2",IF(LEN(Offer[[#This Row],[Numéro ]])=6,"T3",IF(Offer[[#This Row],[Numéro ]]="","ressource","poste")))) -> poste | L15: =IF(Offer[[#This Row],[niveau]]="poste",IF(Offer[[#This Row],[En option ?]]="non",Offer[[#This Row],[Total prix de vente (HTVA)]],0),0) -> 0 | M15: =IF(Offer[[#This Row],[niveau]]="ressource",0,IF(Offer[[#This Row],[Total prix de vente (HTVA)]]<>0,1,0)) -> 0 | O15: =IF(Offer[[#This Row],[niveau]]="ressource",IF(Offer[[#This Row],[Description]]="","", IF(ISNUMBER(FIND("heure",Offer[[#This Row],[unité de la ressource]])),Settings!$B$6, IF(ISNUMBER(FIND("déchet",Offer[[#This Row],[Description]])),Settings!$B$8, IF(ISNUMBER(FIND("déchet",Offer[[#This Row],[Commentaire]])),Settings!$B$8, IF(ISNUMBER(FIND("km",Offer[[#This Row],[unité de la ressource]])),Settings!$B$10, IF(ISNUMBER(FIND("matériau",Offer[[#This Row],[Description]])),Settings!$B$7, IF(ISNUMBER(FIND("livraison",Offer[[#This Row],[Description]])),Settings!$B$7, IF(ISNUMBER(FIND("FF",Offer[[#This Row],[unité de la ressource]])),Settings!$B$9, Settings!$B$7)))))))),"") ->  | S15: =IF(Offer[[#This Row],[niveau]]="ressource",IF(Offer[[#This Row],[Description]]="","",IF(Offer[[#This Row],[Type de ressource]]=Settings!$B$6,IF(Offer[[#This Row],[quantité d''unité de ressource par unité de poste]]>1,15*Minute,IF(Offer[[#This Row],[quantité d''unité de ressource par unité de poste]]>15*Minute,5*Minute,1*Minute)),IF(Offer[[#This Row],[quantité d''unité de ressource par unité de poste]]>1000,100,IF(Offer[[#This Row],[quantité d''unité de ressource par unité de poste]]>100,10,IF(Offer[[#This Row],[quantité d''unité de ressource par unité de poste]]>10,1,IF(Offer[[#This Row],[quantité d''unité de ressource par unité de poste]]>1,0.1,IF(Offer[[#This Row],[quantité d''unité de ressource par unité de poste]]>0.1,0.01,0.001))))))),"") ->  | T15: =IF(Offer[[#This Row],[niveau]]="ressource",IF(Offer[[#This Row],[Description]]="","",MROUND(Offer[[#This Row],[quantité d''unité de ressource par unité de poste]]*Offer[[#This Row],[Quantité ↓]],Offer[[#This Row],[Arrondir selon multiple]])),"") ->  | U15: =SUM(U16:U22) -> 55.1 | V15: =IF(Offer[[#This Row],[Coût direct par unité de poste]]="","",IF(Offer[[#This Row],[Coût (direct) par unité de ressource]]="",Offer[[#This Row],[Coût direct par unité de poste]]*Offer[[#This Row],[Quantité ↓]],0)) -> 0 | W15: =IF(Offer[[#This Row],[niveau]]="ressource",IF(Offer[[#This Row],[Type de ressource]]=Settings!$B$6,Offer[[#This Row],[Coût (direct) par unité de ressource]]*Settings!$D$6,IF(Offer[[#This Row],[Type de ressource]]=Settings!$B$7,Offer[[#This Row],[Coût (direct) par unité de ressource]]*Settings!$D$7,IF(Offer[[#This Row],[Type de ressource]]=Settings!$B$8,Offer[[#This Row],[Coût (direct) par unité de ressource]]*Settings!$D$8,IF(Offer[[#This Row],[Type de ressource]]=Settings!$B$9,Offer[[#This Row],[Coût (direct) par unité de ressource]]*Settings!$D$9,IF(Offer[[#This Row],[Type de ressource]]=Settings!$B$10,Offer[[#This Row],[Coût (direct) par unité de ressource]]*Settings!$D$10,""))))),"") ->  | X15: =SUM(X16:X22) -> 5.25 | Y15: =IF(Offer[[#This Row],[Coût indirect par unité de poste]]="","",IF(Offer[[#This Row],[Coût (direct) par unité de ressource]]="",Offer[[#This Row],[Coût indirect par unité de poste]]*Offer[[#This Row],[Quantité ↓]],0)) -> 0 | Z15: =IF(Offer[[#This Row],[niveau]]="ressource",IF(Offer[[#This Row],[Type de ressource]]=Settings!$B$6,Offer[[#This Row],[Coût (direct) par unité de ressource]]*Settings!$E$6,IF(Offer[[#This Row],[Type de ressource]]=Settings!$B$7,Offer[[#This Row],[Coût (direct) par unité de ressource]]*Settings!$E$7,IF(Offer[[#This Row],[Type de ressource]]=Settings!$B$8,Offer[[#This Row],[Coût (direct) par unité de ressource]]*Settings!$E$8,IF(Offer[[#This Row],[Type de ressource]]=Settings!$B$9,Offer[[#This Row],[Coût (direct) par unité de ressource]]*Settings!$E$9,IF(Offer[[#This Row],[Type de ressource]]=Settings!$B$10,Offer[[#This Row],[Coût (direct) par unité de ressource]]*Settings!$E$10,""))))),"") ->  | AA15: =SUM(AA16:AA22) -> 5.380357143 | AB15: =IF(Offer[[#This Row],[Marge par unité de poste]]="","",IF(Offer[[#This Row],[Coût (direct) par unité de ressource]]="",Offer[[#This Row],[Marge par unité de poste]]*Offer[[#This Row],[Quantité ↓]],Offer[[#This Row],[Marge par unité de poste]])) -> 0 | AC15: =IF(Offer[[#This Row],[niveau]]="ressource",IF(Offer[[#This Row],[Type de ressource]]=Settings!$B$6,Offer[[#This Row],[Coût (direct) par unité de ressource]]*Settings!$H$6,IF(Offer[[#This Row],[Type de ressource]]=Settings!$B$7,Offer[[#This Row],[Coût (direct) par unité de ressource]]*Settings!$H$7,IF(Offer[[#This Row],[Type de ressource]]=Settings!$B$8,Offer[[#This Row],[Coût (direct) par unité de ressource]]*Settings!$H$8,IF(Offer[[#This Row],[Type de ressource]]=Settings!$B$9,Offer[[#This Row],[Coût (direct) par unité de ressource]]*Settings!$H$9,IF(Offer[[#This Row],[Type de ressource]]=Settings!$B$10,Offer[[#This Row],[Coût (direct) par unité de ressource]]*Settings!$H$10,""))))),"") ->  | AD15: =SUM(AD16:AD22) -> 8.265 | AE15: =IF(Offer[[#This Row],[niveau]]="ressource","",Paramétrage!$D$35*Offer[[#This Row],[Coût direct]]) -> 0 | AF15: =IF(Offer[[#This Row],[niveau]]="ressource",IF(Offer[[#This Row],[Description]]="","",Offer[[#This Row],[Risque par unité de ressource]]+Offer[[#This Row],[Marge par unité de ressource]]+Offer[[#This Row],[Coût indirect par unité de ressource]]+Offer[[#This Row],[Coût (direct) par unité de ressource]]),"") ->  | AG15: =IF(Offer[[#This Row],[niveau]]="poste",Paramétrage!$D$37,"") -> 0.06 | AH15: =IF(Offer[[#This Row],[niveau]]="poste",Offer[[#This Row],[TVA 6% applicable ?]]*Offer[[#This Row],[Prix de vente HTVA sans variante/option]],"") -> 0 | AI15: 00.02 - Installation de chantier éligibles | AJ15: =IF(Offer[[#This Row],[niveau]]="ressource","","non") -> non | AK15: =IF(Offer[[#This Row],[niveau]]="ressource","","00 - Installation & généralités de chantier") -> 00 - Installation & généralités de chantier | AL15: =IF(Offer[[#This Row],[niveau]]="poste",0,"") -> 0 | AM15: =IF(Offer[[#This Row],[niveau]]="poste",Offer[[#This Row],[Quantité ↓]]*IF(AL15=0,Offer[[#This Row],[Prix unitaire de vente par unité de poste]]-Offer[[#This Row],[Risque par unité de poste]],AL15),"") -> 0 | AN15: =IF(Offer[[#This Row],[niveau]]="poste",IF(Offer[[#This Row],[Prix unitaire entrepr. 1]]=0,"/",Offer[[#This Row],[Prix unitaire entrepr. 1]]-Offer[[#This Row],[Rappel calcul prix unitaire de vente HTVA SANS risque]]),"") -> / | AO15: =IF(Offer[[#This Row],[niveau]]="poste",IF(Offer[[#This Row],[Prix unitaire entrepr. 1]]=0,"/",IF(Offer[[#This Row],[Quantité ↓]]=0,"/",(Offer[[#This Row],[Prix total devis entrepr. 1 OU R+ sans risque]])-(Offer[[#This Row],[Rappel calcul prix unitaire de vente HTVA SANS risque]]*Offer[[#This Row],[Quantité ↓]]))),"") -> / | AP15: =IF(Offer[[#This Row],[niveau]]="poste",IF(Offer[[#This Row],[Prix unitaire entrepr. 1]]=0,"/",Offer[[#This Row],[Prix unitaire entrepr. 1]]-Offer[[#This Row],[Rappel calcul prix unitaire de vente HTVA]]),"") -> / | AQ15: =IF(Offer[[#This Row],[niveau]]="poste",IF(Offer[[#This Row],[Prix unitaire entrepr. 1]]=0,"/",1-(Offer[[#This Row],[Rappel calcul prix unitaire de vente HTVA SANS risque]]/Offer[[#This Row],[Prix unitaire entrepr. 1]])),"") -> / | AR15: =IF(Offer[[#This Row],[niveau]]="poste",0,"") -> 0 | AS15: =IF(Offer[[#This Row],[niveau]]="poste",Offer[[#This Row],[Quantité ↓]]*IF(AR15=0,Offer[[#This Row],[Prix unitaire de vente par unité de poste]]-Offer[[#This Row],[Risque par unité de poste]],AR15),"") -> 0 | AT15: =IF(Offer[[#This Row],[niveau]]="poste",IF(Offer[[#This Row],[Prix unitaire entrepr. 2]]=0,"/",Offer[[#This Row],[Prix unitaire entrepr. 2]]-Offer[[#This Row],[Rappel calcul prix unitaire de vente HTVA SANS risque]]),"") -> / | AU15: =IF(Offer[[#This Row],[niveau]]="poste",IF(Offer[[#This Row],[Prix unitaire entrepr. 2]]=0,"/",IF(Offer[[#This Row],[Quantité ↓]]=0,"/",(Offer[[#This Row],[Prix total devis entrepr. 2 OU R+ sans risque]])-(Offer[[#This Row],[Rappel calcul prix unitaire de vente HTVA SANS risque]]*Offer[[#This Row],[Quantité ↓]]))),"") -> / | AV15: =IF(Offer[[#This Row],[niveau]]="poste",IF(Offer[[#This Row],[Prix unitaire entrepr. 2]]=0,"/",Offer[[#This Row],[Prix unitaire entrepr. 2]]-Offer[[#This Row],[Rappel calcul prix unitaire de vente HTVA]]),"") -> / | AW15: =IF(Offer[[#This Row],[niveau]]="poste",IF(Offer[[#This Row],[Prix unitaire entrepr. 2]]=0,"/",1-(Offer[[#This Row],[Rappel calcul prix unitaire de vente HTVA SANS risque]]/Offer[[#This Row],[Prix unitaire entrepr. 2]])),"") -> / | AX15: =IF(Offer[[#This Row],[niveau]]="poste",0,"") -> 0 | AY15: =IF(Offer[[#This Row],[niveau]]="poste",Offer[[#This Row],[Quantité ↓]]*IF(AX15=0,Offer[[#This Row],[Prix unitaire de vente par unité de poste]]-Offer[[#This Row],[Risque par unité de poste]],AX15),"") -> 0 | AZ15: =IF(Offer[[#This Row],[niveau]]="poste",IF(Offer[[#This Row],[Prix unitaire entrepr. 3]]=0,"/",Offer[[#This Row],[Prix unitaire entrepr. 3]]-Offer[[#This Row],[Rappel calcul prix unitaire de vente HTVA SANS risque]]),"") -> / | BA15: =IF(Offer[[#This Row],[niveau]]="poste",IF(Offer[[#This Row],[Prix unitaire entrepr. 3]]=0,"/",IF(Offer[[#This Row],[Quantité ↓]]=0,"/",(Offer[[#This Row],[Prix total devis entrepr. 3 OU R+ sans risque]])-(Offer[[#This Row],[Rappel calcul prix unitaire de vente HTVA SANS risque]]*Offer[[#This Row],[Quantité ↓]]))),"") -> / | BB15: =IF(Offer[[#This Row],[niveau]]="poste",IF(Offer[[#This Row],[Prix unitaire entrepr. 3]]=0,"/",Offer[[#This Row],[Prix unitaire entrepr. 3]]-Offer[[#This Row],[Rappel calcul prix unitaire de vente HTVA]]),"") -> / | BC15: =IF(Offer[[#This Row],[niveau]]="poste",IF(Offer[[#This Row],[Prix unitaire entrepr. 3]]=0,"/",1-(Offer[[#This Row],[Rappel calcul prix unitaire de vente HTVA SANS risque]]/Offer[[#This Row],[Prix unitaire entrepr. 3]])),"") -> / | BD15: =IF(Offer[[#This Row],[niveau]]="poste",0,"") -> 0 | BE15: =IF(Offer[[#This Row],[niveau]]="poste",Offer[[#This Row],[Quantité ↓]]*IF(BD15=0,Offer[[#This Row],[Prix unitaire de vente par unité de poste]]-Offer[[#This Row],[Risque par unité de poste]],BD15),"") -> 0 | BF15: =IF(Offer[[#This Row],[niveau]]="poste",IF(Offer[[#This Row],[Prix unitaire entrepr. 4]]=0,"/",Offer[[#This Row],[Prix unitaire entrepr. 4]]-Offer[[#This Row],[Rappel calcul prix unitaire de vente HTVA SANS risque]]),"") -> / | BG15: =IF(Offer[[#This Row],[niveau]]="poste",IF(Offer[[#This Row],[Prix unitaire entrepr. 4]]=0,"/",IF(Offer[[#This Row],[Quantité ↓]]=0,"/",(Offer[[#This Row],[Prix total devis entrepr. 4 OU R+ sans risque]])-(Offer[[#This Row],[Rappel calcul prix unitaire de vente HTVA SANS risque]]*Offer[[#This Row],[Quantité ↓]]))),"") -> / | BH15: =IF(Offer[[#This Row],[niveau]]="poste",IF(Offer[[#This Row],[Prix unitaire entrepr. 4]]=0,"/",Offer[[#This Row],[Prix unitaire entrepr. 4]]-Offer[[#This Row],[Rappel calcul prix unitaire de vente HTVA]]),"") -> / | BI15: =IF(Offer[[#This Row],[niveau]]="poste",IF(Offer[[#This Row],[Prix unitaire entrepr. 4]]=0,"/",1-(Offer[[#This Row],[Rappel calcul prix unitaire de vente HTVA SANS risque]]/Offer[[#This Row],[Prix unitaire entrepr. 4]])),"") -> / | BJ15: =IF(Offer[[#This Row],[niveau]]="poste",0,"") -> 0 | BK15: =IF(Offer[[#This Row],[niveau]]="poste",Offer[[#This Row],[Quantité ↓]]*IF(BJ15=0,Offer[[#This Row],[Prix unitaire de vente par unité de poste]]-Offer[[#This Row],[Risque par unité de poste]],BJ15),"") -> 0 | BL15: =IF(Offer[[#This Row],[niveau]]="poste",IF(Offer[[#This Row],[Prix unitaire entrepr. 5]]=0,"/",Offer[[#This Row],[Prix unitaire entrepr. 5]]-Offer[[#This Row],[Rappel calcul prix unitaire de vente HTVA SANS risque]]),"") -> / | BM15: =IF(Offer[[#This Row],[niveau]]="poste",IF(Offer[[#This Row],[Prix unitaire entrepr. 5]]=0,"/",IF(Offer[[#This Row],[Quantité ↓]]=0,"/",(Offer[[#This Row],[Prix total devis entrepr. 5 OU R+ sans risque]])-(Offer[[#This Row],[Rappel calcul prix unitaire de vente HTVA SANS risque]]*Offer[[#This Row],[Quantité ↓]]))),"") -> / | BN15: =IF(Offer[[#This Row],[niveau]]="poste",IF(Offer[[#This Row],[Prix unitaire entrepr. 5]]=0,"/",Offer[[#This Row],[Prix unitaire entrepr. 5]]-Offer[[#This Row],[Rappel calcul prix unitaire de vente HTVA]]),"") -> / | BO15: =IF(Offer[[#This Row],[niveau]]="poste",IF(Offer[[#This Row],[Prix unitaire entrepr. 5]]=0,"/",1-(Offer[[#This Row],[Rappel calcul prix unitaire de vente HTVA SANS risque]]/Offer[[#This Row],[Prix unitaire entrepr. 5]])),"") -> / | BP15: =IF(Offer[[#This Row],[niveau]]="poste",Offer[[#This Row],[Prix unitaire de vente par unité de poste]]-Offer[[#This Row],[Risque par unité de poste]],"") -> 65.735 | BQ15: =IF(Offer[[#This Row],[niveau]]="poste",Offer[[#This Row],[Quantité ↓]]*Offer[[#This Row],[Rappel calcul prix unitaire de vente HTVA SANS risque]],IF(Offer[[#This Row],[niveau]]="ressource","",Offer[[#This Row],[Total prix de vente (HTVA)]]-Offer[[#This Row],[Risque]])) -> 0 | BR15: =IF(Offer[[#This Row],[niveau]]="poste",Offer[[#This Row],[Prix unitaire de vente par unité de poste]],"") -> 74 | BS15: =IF(Offer[[#This Row],[niveau]]="poste",IF((Offer[[#This Row],[Prix unitaire entrepr. 1]]+Offer[[#This Row],[Prix unitaire entrepr. 2]]+Offer[[#This Row],[Prix unitaire entrepr. 3]]+Offer[[#This Row],[Prix unitaire entrepr. 4]]+Offer[[#This Row],[Prix unitaire entrepr. 5]])=0,"",(Offer[[#This Row],[Prix unitaire entrepr. 1]]+Offer[[#This Row],[Prix unitaire entrepr. 2]]+Offer[[#This Row],[Prix unitaire entrepr. 3]]+Offer[[#This Row],[Prix unitaire entrepr. 4]]+Offer[[#This Row],[Prix unitaire entrepr. 5]])/(IF(Offer[[#This Row],[Prix unitaire entrepr. 1]]>0,1,0)+IF(Offer[[#This Row],[Prix unitaire entrepr. 2]]>0,1,0)+IF(Offer[[#This Row],[Prix unitaire entrepr. 3]]>0,1,0)+IF(Offer[[#This Row],[Prix unitaire entrepr. 4]]>0,1,0)+IF(Offer[[#This Row],[Prix unitaire entrepr. 5]]>0,1,0))),"") ->  | BT15: =IF(Offer[[#This Row],[niveau]]="poste",IF(Offer[[#This Row],[Moyenne des prix unitaires des entreprises]]="","/",Offer[[#This Row],[Moyenne des prix unitaires des entreprises]]-Offer[[#This Row],[Rappel calcul prix unitaire de vente HTVA SANS risque]]),"") -> / | BU15: =IF(Offer[[#This Row],[niveau]]="poste",IF(Offer[[#This Row],[Moyenne des prix unitaires des entreprises]]="","/",IF(Offer[[#This Row],[Quantité ↓]]=0,"/",(Offer[[#This Row],[Moyenne des prix unitaires des entreprises]]*Offer[[#This Row],[Quantité ↓]])-(Offer[[#This Row],[Rappel calcul prix unitaire de vente HTVA SANS risque]]*Offer[[#This Row],[Quantité ↓]]))),"") -> / | BV15: =IF(Offer[[#This Row],[niveau]]="poste",IF(Offer[[#This Row],[Moyenne des prix unitaires des entreprises]]="","/",1-(Offer[[#This Row],[Rappel calcul prix unitaire de vente HTVA SANS risque]]/Offer[[#This Row],[Moyenne des prix unitaires des entreprises]])),"") -> / | BW15: =IF(Offer[[#This Row],[niveau]]="poste",IF(#REF!='Calcul des prix'!$AL$3,Offer[[#This Row],[Prix total devis entrepr. 1 OU R+ sans risque]]*Offer[[#This Row],[TVA 6% applicable ?]],IF(#REF!='Calcul des prix'!$AR$3,Offer[[#This Row],[Prix total devis entrepr. 1 OU R+ sans risque]]*Offer[[#This Row],[TVA 6% applicable ?]],IF(#REF!='Calcul des prix'!$AX$3,Offer[[#This Row],[Prix total devis entrepr. 1 OU R+ sans risque]]*Offer[[#This Row],[TVA 6% applicable ?]],IF(#REF!='Calcul des prix'!$BD$3,Offer[[#This Row],[Prix total devis entrepr. 1 OU R+ sans risque]]*Offer[[#This Row],[TVA 6% applicable ?]],IF(#REF!='Calcul des prix'!$BJ$3,Offer[[#This Row],[Prix total devis entrepr. 1 OU R+ sans risque]]*Offer[[#This Row],[TVA 6% applicable ?]],""))))),"") -> 
